Organisation Name,Directorate,Supplier Name,Supplier ID,Expense type,Best Value Accounting Code of Practice,Document/Invoice number,Clearing/Payment date,Invoice Amount
Buckinghamshire Council,Resources,Corporate Document Services Ltd,1000000,Printing & Stationery,Supplies & Services,4101041610,26/04/2023,2050.14
Buckinghamshire Council,Resources,Corporate Document Services Ltd,1000000,Printing & Stationery,Supplies & Services,4101041610,26/04/2023,-139.66
Buckinghamshire Council,"Planning, Growth & Sustainability",COMBINED OFFICE INTERIORS LTD,1000001,Furniture,Supplies & Services,4101038191,12/04/2023,1500
Buckinghamshire Council,Communities,COMBINED OFFICE INTERIORS LTD,1000001,Purchase of Equipment,Capital - Expenditure -Controllable,4101038971,12/04/2023,2165
Buckinghamshire Council,Communities,COMBINED OFFICE INTERIORS LTD,1000001,Purchase of Equipment,Capital - Expenditure -Controllable,4101038971,12/04/2023,1795
Buckinghamshire Council,Communities,COMBINED OFFICE INTERIORS LTD,1000001,Purchase of Equipment,Capital - Expenditure -Controllable,4101038971,12/04/2023,365
Buckinghamshire Council,Children's Services,COMBINED OFFICE INTERIORS LTD,1000001,Activities & General Recreation,Supplies & Services,4101039775,12/04/2023,2742
Buckinghamshire Council,Communities,COMBINED OFFICE INTERIORS LTD,1000001,Furniture,Supplies & Services,4101041103,21/04/2023,3395
Buckinghamshire Council,Children's Services,Hertfordshire Supplies,1000002,Administrative Equipment & Tools,Supplies & Services,4500122463,28/04/2023,421.68
Buckinghamshire Council,Children's Services,Hertfordshire Supplies,1000002,Administrative Equipment & Tools,Supplies & Services,4500122463,28/04/2023,434.94
Buckinghamshire Council,Resources,LYRECO UK LTD,1000008,Printing & Stationery,Supplies & Services,4101043339,26/04/2023,1420.6
Buckinghamshire Council,Communities,Arriva The Shires Ltd,1000010,Subsidised Bus Services - Core,Third Party Payments,4101044333,21/04/2023,5090.35
Buckinghamshire Council,Communities,Arriva The Shires Ltd,1000010,Travel Choice Scheme,Transfer Payments,4101044655,26/04/2023,914.62
Buckinghamshire Council,Communities,Arriva The Shires Ltd,1000010,Travel Choice Scheme,Transfer Payments,4101043431,19/04/2023,902.02
Buckinghamshire Council,Communities,Arriva The Shires Ltd,1000010,Subsidised Bus Services - Accessibility,Transfer Payments,4101043030,14/04/2023,14577.02
Buckinghamshire Council,Adults and Health,RIVERSIDE ECHG,1000014,Extra Care,Third Party Payments,4101043590,19/04/2023,12892.36
Buckinghamshire Council,Adults and Health,RIVERSIDE ECHG,1000014,SP Legacy Care/Counsel - Gross,Third Party Payments,4101041247,04/04/2023,16876.25
Buckinghamshire Council,Adults and Health,RIVERSIDE ECHG,1000014,SP Legacy Care/Counsel - Gross,Third Party Payments,4101041248,04/04/2023,11018
Buckinghamshire Council,Children's Services,Foster Care Associates Ltd,1000015,External Fostering Payments,Third Party Payments,7003019956,12/04/2023,2826
Buckinghamshire Council,Children's Services,Foster Care Associates Ltd,1000015,External Fostering Payments,Third Party Payments,7003019956,12/04/2023,2457.6
Buckinghamshire Council,Children's Services,Foster Care Associates Ltd,1000015,External Fostering Payments,Third Party Payments,7003019956,12/04/2023,2413.29
Buckinghamshire Council,Children's Services,Foster Care Associates Ltd,1000015,External Fostering Payments,Third Party Payments,7003019956,12/04/2023,2413.29
Buckinghamshire Council,Children's Services,Foster Care Associates Ltd,1000015,External Fostering Payments,Third Party Payments,7003019956,12/04/2023,2825.71
Buckinghamshire Council,Children's Services,Foster Care Associates Ltd,1000015,External Fostering Payments,Third Party Payments,7003019956,12/04/2023,2457.6
Buckinghamshire Council,Children's Services,Foster Care Associates Ltd,1000015,External Fostering Payments,Third Party Payments,7003019956,12/04/2023,2339.8
Buckinghamshire Council,Children's Services,Foster Care Associates Ltd,1000015,External Fostering Payments,Third Party Payments,7003019956,12/04/2023,2571.8
Buckinghamshire Council,Children's Services,Foster Care Associates Ltd,1000015,External Fostering Payments,Third Party Payments,7003019956,12/04/2023,2294.2
Buckinghamshire Council,Children's Services,Foster Care Associates Ltd,1000015,External Fostering Payments,Third Party Payments,7003019956,12/04/2023,2413
Buckinghamshire Council,Children's Services,Foster Care Associates Ltd,1000015,External Fostering Payments,Third Party Payments,7003019956,12/04/2023,2180
Buckinghamshire Council,Children's Services,Foster Care Associates Ltd,1000015,External Fostering Payments,Third Party Payments,7003019956,12/04/2023,1130.4
Buckinghamshire Council,Children's Services,Foster Care Associates Ltd,1000015,External Fostering Payments,Third Party Payments,7003019956,12/04/2023,983.04
Buckinghamshire Council,Children's Services,Foster Care Associates Ltd,1000015,External Fostering Payments,Third Party Payments,7003019956,12/04/2023,965.31
Buckinghamshire Council,Children's Services,Foster Care Associates Ltd,1000015,External Fostering Payments,Third Party Payments,7003019956,12/04/2023,965.31
Buckinghamshire Council,Children's Services,Foster Care Associates Ltd,1000015,External Fostering Payments,Third Party Payments,7003019956,12/04/2023,1130.29
Buckinghamshire Council,Children's Services,Foster Care Associates Ltd,1000015,External Fostering Payments,Third Party Payments,7003019956,12/04/2023,983.04
Buckinghamshire Council,Children's Services,Foster Care Associates Ltd,1000015,External Fostering Payments,Third Party Payments,7003019956,12/04/2023,935.92
Buckinghamshire Council,Children's Services,Foster Care Associates Ltd,1000015,External Fostering Payments,Third Party Payments,7003019956,12/04/2023,1028.72
Buckinghamshire Council,Children's Services,Foster Care Associates Ltd,1000015,External Fostering Payments,Third Party Payments,7003019956,12/04/2023,917.68
Buckinghamshire Council,Children's Services,Foster Care Associates Ltd,1000015,External Fostering Payments,Third Party Payments,7003019956,12/04/2023,965.2
Buckinghamshire Council,Children's Services,Foster Care Associates Ltd,1000015,External Fostering Payments,Third Party Payments,7003019956,12/04/2023,872
Buckinghamshire Council,Children's Services,FOLKSPUR FLOORING LTD,1000021,General Repairs & Maintenance,Premises,4101041038,04/04/2023,4196
Buckinghamshire Council,"Planning, Growth & Sustainability",FOLKSPUR FLOORING LTD,1000021,Buy Back BCC,Premises,7003020593,19/04/2023,965
Buckinghamshire Council,"Planning, Growth & Sustainability",TENCER LIMITED,1000023,Urgent Repairs & Maintenance,Premises,7003025624,28/04/2023,766.44
Buckinghamshire Council,Communities,TENCER LIMITED,1000023,General Repairs & Maintenance,Premises,7003025625,28/04/2023,549.15
Buckinghamshire Council,"Planning, Growth & Sustainability",TENCER LIMITED,1000023,Urgent Repairs & Maintenance,Premises,7003025627,28/04/2023,638.15
Buckinghamshire Council,"Planning, Growth & Sustainability",TENCER LIMITED,1000023,Urgent Repairs & Maintenance,Premises,7003025629,28/04/2023,572.52
Buckinghamshire Council,"Planning, Growth & Sustainability",TENCER LIMITED,1000023,Buy Back Contracts,Premises,7003028467,28/04/2023,641.99
Buckinghamshire Council,Children's Services,TENCER LIMITED,1000023,Construction - Building Work,Capital - Expenditure -Controllable,7003022577,26/04/2023,10503.83
Buckinghamshire Council,Children's Services,TENCER LIMITED,1000023,Construction - Building Work,Capital - Expenditure -Controllable,7003025606,26/04/2023,16008.33
Buckinghamshire Council,"Planning, Growth & Sustainability",TENCER LIMITED,1000023,Urgent Repairs & Maintenance,Premises,7003020526,19/04/2023,2031.25
Buckinghamshire Council,"Planning, Growth & Sustainability",TENCER LIMITED,1000023,Urgent Repairs & Maintenance,Premises,7003020527,19/04/2023,6372.92
Buckinghamshire Council,"Planning, Growth & Sustainability",TENCER LIMITED,1000023,Urgent Repairs & Maintenance,Premises,7003020539,19/04/2023,526.23
Buckinghamshire Council,Communities,TENCER LIMITED,1000023,General Repairs & Maintenance,Premises,7003020542,19/04/2023,1324.52
Buckinghamshire Council,"Planning, Growth & Sustainability",TENCER LIMITED,1000023,Urgent Repairs & Maintenance,Premises,7003020545,19/04/2023,3896.06
Buckinghamshire Council,"Planning, Growth & Sustainability",TENCER LIMITED,1000023,Urgent Repairs & Maintenance,Premises,7003020548,19/04/2023,874.5
Buckinghamshire Council,"Planning, Growth & Sustainability",TENCER LIMITED,1000023,Buy Back BCC,Premises,7003020622,19/04/2023,904.26
Buckinghamshire Council,"Planning, Growth & Sustainability",TENCER LIMITED,1000023,Urgent Repairs & Maintenance,Premises,7003020174,14/04/2023,561.2
Buckinghamshire Council,"Planning, Growth & Sustainability",TENCER LIMITED,1000023,Urgent Repairs & Maintenance,Premises,7003020185,14/04/2023,2039.75
Buckinghamshire Council,"Planning, Growth & Sustainability",TENCER LIMITED,1000023,Urgent Repairs & Maintenance,Premises,7003020186,14/04/2023,572.57
Buckinghamshire Council,"Planning, Growth & Sustainability",TENCER LIMITED,1000023,Urgent Repairs & Maintenance,Premises,7003020192,14/04/2023,542.43
Buckinghamshire Council,"Planning, Growth & Sustainability",TENCER LIMITED,1000023,Urgent Repairs & Maintenance,Premises,7003020211,14/04/2023,622.06
Buckinghamshire Council,"Planning, Growth & Sustainability",TENCER LIMITED,1000023,Urgent Repairs & Maintenance,Premises,7003020225,14/04/2023,1325.5
Buckinghamshire Council,"Planning, Growth & Sustainability",TENCER LIMITED,1000023,Urgent Repairs & Maintenance,Premises,7003020235,14/04/2023,633.91
Buckinghamshire Council,"Planning, Growth & Sustainability",TENCER LIMITED,1000023,Urgent Repairs & Maintenance,Premises,7003020300,14/04/2023,805.21
Buckinghamshire Council,"Planning, Growth & Sustainability",TENCER LIMITED,1000023,Urgent Repairs & Maintenance,Premises,7003020301,14/04/2023,1718.8
Buckinghamshire Council,"Planning, Growth & Sustainability",TENCER LIMITED,1000023,Buy Back BCC,Premises,7003018786,12/04/2023,1386.8
Buckinghamshire Council,"Planning, Growth & Sustainability",TENCER LIMITED,1000023,Urgent Repairs & Maintenance,Premises,7003018822,12/04/2023,1383.36
Buckinghamshire Council,"Planning, Growth & Sustainability",TENCER LIMITED,1000023,Urgent Repairs & Maintenance,Premises,7003018823,12/04/2023,922.51
Buckinghamshire Council,"Planning, Growth & Sustainability",TENCER LIMITED,1000023,Urgent Repairs & Maintenance,Premises,7003018824,12/04/2023,1529.35
Buckinghamshire Council,Communities,TENCER LIMITED,1000023,Urgent Repairs & Maintenance,Premises,7003018826,12/04/2023,649.64
Buckinghamshire Council,"Planning, Growth & Sustainability",TENCER LIMITED,1000023,Urgent Repairs & Maintenance,Premises,7003018838,12/04/2023,871.69
Buckinghamshire Council,"Planning, Growth & Sustainability",TENCER LIMITED,1000023,Urgent Repairs & Maintenance,Premises,7003018842,12/04/2023,2611.73
Buckinghamshire Council,"Planning, Growth & Sustainability",TENCER LIMITED,1000023,Urgent Repairs & Maintenance,Premises,7003018844,12/04/2023,3624.71
Buckinghamshire Council,Planning Growth & Sustainability,TENCER LIMITED,1000023,Construction - Building Work,Capital - Expenditure -Controllable,7003018846,12/04/2023,20572
Buckinghamshire Council,Children's Services,TENCER LIMITED,1000023,Construction - Building Work,Capital - Expenditure -Controllable,7003018893,12/04/2023,25726.63
Buckinghamshire Council,Adults and Health,MANDEVILLE CARE SERVICES LTD,1000027,Nurs-Perm EMI Other - Exp,Third Party Payments,7003019161,12/04/2023,1000
Buckinghamshire Council,Adults and Health,MANDEVILLE CARE SERVICES LTD,1000027,Nursing care-permanent -other,Third Party Payments,7003019161,12/04/2023,821.43
Buckinghamshire Council,Adults and Health,MANDEVILLE CARE SERVICES LTD,1000027,Nursing care-permanent -other,Third Party Payments,7003019161,12/04/2023,821.43
Buckinghamshire Council,Adults and Health,MANDEVILLE CARE SERVICES LTD,1000027,Nursing care-permanent -other,Third Party Payments,7003019161,12/04/2023,821.43
Buckinghamshire Council,Adults and Health,MANDEVILLE CARE SERVICES LTD,1000027,Res care-permanent - other,Third Party Payments,7003019161,12/04/2023,821.43
Buckinghamshire Council,Adults and Health,MANDEVILLE CARE SERVICES LTD,1000027,Nursing care-permanent -other,Third Party Payments,7003019161,12/04/2023,4043.07
Buckinghamshire Council,Adults and Health,MANDEVILLE CARE SERVICES LTD,1000027,Nursing care-permanent -other,Third Party Payments,7003019161,12/04/2023,4043.07
Buckinghamshire Council,Adults and Health,MANDEVILLE CARE SERVICES LTD,1000027,Nursing care-permanent -other,Third Party Payments,7003019161,12/04/2023,4043.07
Buckinghamshire Council,Adults and Health,MANDEVILLE CARE SERVICES LTD,1000027,Res care-permanent - other,Third Party Payments,7003019161,12/04/2023,4043.07
Buckinghamshire Council,Adults and Health,MANDEVILLE CARE SERVICES LTD,1000027,Nursing care-permanent -other,Third Party Payments,7003019161,12/04/2023,2057.14
Buckinghamshire Council,Adults and Health,MANDEVILLE CARE SERVICES LTD,1000027,Nursing care-permanent -other,Third Party Payments,7003019161,12/04/2023,2414.29
Buckinghamshire Council,Adults and Health,MANDEVILLE CARE SERVICES LTD,1000027,Nursing care-permanent -other,Third Party Payments,7003019161,12/04/2023,5200
Buckinghamshire Council,Adults and Health,MANDEVILLE CARE SERVICES LTD,1000027,Nursing care-permanent -other,Third Party Payments,7003019161,12/04/2023,5200
Buckinghamshire Council,Adults and Health,MANDEVILLE CARE SERVICES LTD,1000027,Nursing care-permanent -other,Third Party Payments,7003019161,12/04/2023,2228.57
Buckinghamshire Council,Adults and Health,MANDEVILLE CARE SERVICES LTD,1000027,Nurs-Perm EMI Other - Exp,Third Party Payments,7003019161,12/04/2023,4600
Buckinghamshire Council,Adults and Health,MANDEVILLE CARE SERVICES LTD,1000027,Res-Perm EMI-Other - Exp,Third Party Payments,7003019161,12/04/2023,3935.71
Buckinghamshire Council,Adults and Health,MANDEVILLE CARE SERVICES LTD,1000027,Nursing care-permanent -other,Controllable Customer & Client Receipts,7003019161,12/04/2023,-78.36
Buckinghamshire Council,Adults and Health,MANDEVILLE CARE SERVICES LTD,1000027,Nursing care-permanent -other,Controllable Customer & Client Receipts,7003019161,12/04/2023,-360.44
Buckinghamshire Council,Adults and Health,MANDEVILLE CARE SERVICES LTD,1000027,Nursing care-permanent -other,Controllable Customer & Client Receipts,7003019161,12/04/2023,-94.79
Buckinghamshire Council,Adults and Health,MANDEVILLE CARE SERVICES LTD,1000027,Nursing care-permanent -other,Controllable Customer & Client Receipts,7003019161,12/04/2023,-436.01
Buckinghamshire Council,Adults and Health,MANDEVILLE CARE SERVICES LTD,1000027,Nursing care-permanent -other,Controllable Customer & Client Receipts,7003019161,12/04/2023,-130.42
Buckinghamshire Council,Adults and Health,MANDEVILLE CARE SERVICES LTD,1000027,Nursing care-permanent -other,Controllable Customer & Client Receipts,7003019161,12/04/2023,-640.86
Buckinghamshire Council,Adults and Health,MANDEVILLE CARE SERVICES LTD,1000027,Nursing care-permanent -other,Controllable Customer & Client Receipts,7003019161,12/04/2023,-244.36
Buckinghamshire Council,Adults and Health,MANDEVILLE CARE SERVICES LTD,1000027,Nursing care-permanent -other,Controllable Customer & Client Receipts,7003019161,12/04/2023,-1124.08
Buckinghamshire Council,Adults and Health,MANDEVILLE CARE SERVICES LTD,1000027,Res care-permanent - other,Controllable Customer & Client Receipts,7003019161,12/04/2023,-234.41
Buckinghamshire Council,Adults and Health,MANDEVILLE CARE SERVICES LTD,1000027,Res care-permanent - other,Controllable Customer & Client Receipts,7003019161,12/04/2023,-1078.27
Buckinghamshire Council,Adults and Health,MANDEVILLE CARE SERVICES LTD,1000027,Nursing care-permanent -other,Controllable Customer & Client Receipts,7003019161,12/04/2023,-375.77
Buckinghamshire Council,Adults and Health,MANDEVILLE CARE SERVICES LTD,1000027,Nursing care-permanent -other,Controllable Customer & Client Receipts,7003019161,12/04/2023,-407.09
Buckinghamshire Council,Adults and Health,MANDEVILLE CARE SERVICES LTD,1000027,Nursing care-permanent -other,Controllable Customer & Client Receipts,7003019161,12/04/2023,-876.8
Buckinghamshire Council,Adults and Health,MANDEVILLE CARE SERVICES LTD,1000027,Nursing care-permanent -other,Controllable Customer & Client Receipts,7003019161,12/04/2023,-876.8
Buckinghamshire Council,Adults and Health,MANDEVILLE CARE SERVICES LTD,1000027,Nursing care-permanent -other,Controllable Customer & Client Receipts,7003019161,12/04/2023,-344.46
Buckinghamshire Council,Adults and Health,MANDEVILLE CARE SERVICES LTD,1000027,Other Com Care exp (eg pet sitting),Third Party Payments,4101044803,26/04/2023,30800
Buckinghamshire Council,Children's Services,FOSTERING NETWORK,1000036,Support for Foster Carers,Third Party Payments,4101042718,26/04/2023,600
Buckinghamshire Council,Children's Services,FOSTERING NETWORK,1000036,Supply of consultancy services,Supplies & Services,4101044792,26/04/2023,600
Buckinghamshire Council,Deputy Chief Executive,REDACTED,1000114,Legal Fees,Supplies & Services,4101044699,26/04/2023,1875
Buckinghamshire Council,Communities,REDACTED,1000114,Supply of consultancy services,Supplies & Services,4101044729,26/04/2023,511
Buckinghamshire Council,Communities,REDACTED,1000114,Supply of consultancy services,Supplies & Services,4101044730,26/04/2023,1356.8
Buckinghamshire Council,Deputy Chief Executive,REDACTED,1000114,Legal Fees,Supplies & Services,4101044735,26/04/2023,6718.5
Buckinghamshire Council,Planning Growth & Sustainability,REDACTED,1000114,Highways Payments to Main Contractor,Capital - Expenditure -Controllable,4101040367,12/04/2023,10603.8
Buckinghamshire Council,Children's Services,FOSTERPLUS LTD,1000125,External Fostering Payments,Third Party Payments,7003019957,12/04/2023,2389.6
Buckinghamshire Council,Children's Services,FOSTERPLUS LTD,1000125,External Fostering Payments,Third Party Payments,7003019957,12/04/2023,955.84
Buckinghamshire Council,Resources,ESRI UK LTD,1000129,Software Support,Supplies & Services,4101041014,26/04/2023,1315
Buckinghamshire Council,Resources,ESRI UK LTD,1000129,Software Support,Supplies & Services,4101041015,26/04/2023,11595
Buckinghamshire Council,Adults and Health,ABBEYFIELD BEACONSFIELD SOCIETY,1000144,Res care-permanent - other,Third Party Payments,7003019162,12/04/2023,215.99
Buckinghamshire Council,Adults and Health,ABBEYFIELD BEACONSFIELD SOCIETY,1000144,Res care-permanent - other,Third Party Payments,7003019162,12/04/2023,544.43
Buckinghamshire Council,Adults and Health,ABBEYFIELD BEACONSFIELD SOCIETY,1000144,Res care-permanent - other,Third Party Payments,7003019162,12/04/2023,889.65
Buckinghamshire Council,Adults and Health,ABBEYFIELD BEACONSFIELD SOCIETY,1000144,Res care-permanent - other,Third Party Payments,7003019162,12/04/2023,993.53
Buckinghamshire Council,Adults and Health,ABBEYFIELD BEACONSFIELD SOCIETY,1000144,Res care-permanent - other,Third Party Payments,7003019162,12/04/2023,4378.87
Buckinghamshire Council,Adults and Health,ABBEYFIELD BEACONSFIELD SOCIETY,1000144,Res care-permanent - other,Third Party Payments,7003019162,12/04/2023,2679.66
Buckinghamshire Council,Adults and Health,ABBEYFIELD BEACONSFIELD SOCIETY,1000144,Res care-permanent - other,Controllable Customer & Client Receipts,7003019162,12/04/2023,-414.21
Buckinghamshire Council,Adults and Health,ABBEYFIELD BEACONSFIELD SOCIETY,1000144,Res care-permanent - other,Controllable Customer & Client Receipts,7003019162,12/04/2023,-1932.89
Buckinghamshire Council,Adults and Health,ABBEYFIELD BEACONSFIELD SOCIETY,1000144,Res care-permanent - other,Controllable Customer & Client Receipts,7003019162,12/04/2023,-163.34
Buckinghamshire Council,Adults and Health,ABBEYFIELD BEACONSFIELD SOCIETY,1000144,Res care-permanent - other,Controllable Customer & Client Receipts,7003019162,12/04/2023,-690.46
Buckinghamshire Council,Adults and Health,ABBEYFIELD BEACONSFIELD SOCIETY,1000144,Res care-permanent - other,Controllable Customer & Client Receipts,7003019162,12/04/2023,-215.99
Buckinghamshire Council,Adults and Health,ABBEYFIELD BEACONSFIELD SOCIETY,1000144,Res care-permanent - other,Controllable Customer & Client Receipts,7003019162,12/04/2023,-993.53
Buckinghamshire Council,Adults and Health,ABBEYFIELD BEACONSFIELD SOCIETY,1000144,Res care-permanent - other,Controllable Customer & Client Receipts,7003019162,12/04/2023,-335.16
Buckinghamshire Council,Adults and Health,ABBEYFIELD BEACONSFIELD SOCIETY,1000144,Res care-permanent - other,Controllable Customer & Client Receipts,7003019162,12/04/2023,-1541.76
Buckinghamshire Council,Adults and Health,AGE CONCERN (BUCKS),1000148,Grants to External Bodies,Supplies & Services,4101042471,12/04/2023,14735.38
Buckinghamshire Council,Adults and Health,AGE CONCERN (BUCKS),1000148,Grants to External Bodies,Supplies & Services,4101042532,12/04/2023,17764.63
Buckinghamshire Council,Adults and Health,BURNHAM LODGE CARE LTD,1000159,Nurs-Perm EMI Other - Exp,Third Party Payments,7003019163,12/04/2023,4363.24
Buckinghamshire Council,Adults and Health,BURNHAM LODGE CARE LTD,1000159,Nurs-Perm EMI Other - Exp,Third Party Payments,7003019163,12/04/2023,900.51
Buckinghamshire Council,Adults and Health,BURNHAM LODGE CARE LTD,1000159,Nurs-Perm EMI Other - Exp,Third Party Payments,7003019163,12/04/2023,882.86
Buckinghamshire Council,Adults and Health,BURNHAM LODGE CARE LTD,1000159,Nursing care-permanent -other,Third Party Payments,7003019163,12/04/2023,928.57
Buckinghamshire Council,Adults and Health,BURNHAM LODGE CARE LTD,1000159,Nursing care-permanent -other,Third Party Payments,7003019163,12/04/2023,900.51
Buckinghamshire Council,Adults and Health,BURNHAM LODGE CARE LTD,1000159,Nursing care-permanent -other,Third Party Payments,7003019163,12/04/2023,900.51
Buckinghamshire Council,Adults and Health,BURNHAM LODGE CARE LTD,1000159,Nursing care-permanent -other,Third Party Payments,7003019163,12/04/2023,750.43
Buckinghamshire Council,Adults and Health,BURNHAM LODGE CARE LTD,1000159,Res-Perm EMI-Other - Exp,Third Party Payments,7003019163,12/04/2023,956.43
Buckinghamshire Council,Adults and Health,BURNHAM LODGE CARE LTD,1000159,Res-Perm EMI-Other - Exp,Third Party Payments,7003019163,12/04/2023,825.47
Buckinghamshire Council,Adults and Health,BURNHAM LODGE CARE LTD,1000159,Nurs-Perm EMI Other - Exp,Third Party Payments,7003019163,12/04/2023,-3428.26
Buckinghamshire Council,Adults and Health,BURNHAM LODGE CARE LTD,1000159,Res-Perm EMI-Other - Exp,Third Party Payments,7003019163,12/04/2023,183.92
Buckinghamshire Council,Adults and Health,BURNHAM LODGE CARE LTD,1000159,Nurs-Perm EMI Other - Exp,Third Party Payments,7003019163,12/04/2023,-4363.24
Buckinghamshire Council,Adults and Health,BURNHAM LODGE CARE LTD,1000159,Nurs-Perm EMI Other - Exp,Third Party Payments,7003019163,12/04/2023,-4363.24
Buckinghamshire Council,Adults and Health,BURNHAM LODGE CARE LTD,1000159,Nurs-Perm EMI Other - Exp,Third Party Payments,7003019163,12/04/2023,-4363.24
Buckinghamshire Council,Adults and Health,BURNHAM LODGE CARE LTD,1000159,Nurs-Perm EMI Other - Exp,Third Party Payments,7003019163,12/04/2023,4432.33
Buckinghamshire Council,Adults and Health,BURNHAM LODGE CARE LTD,1000159,Nurs-Perm EMI Other - Exp,Third Party Payments,7003019163,12/04/2023,4345.42
Buckinghamshire Council,Adults and Health,BURNHAM LODGE CARE LTD,1000159,Nursing care-permanent -other,Third Party Payments,7003019163,12/04/2023,4432.33
Buckinghamshire Council,Adults and Health,BURNHAM LODGE CARE LTD,1000159,Nursing care-permanent -other,Third Party Payments,7003019163,12/04/2023,4432.33
Buckinghamshire Council,Adults and Health,BURNHAM LODGE CARE LTD,1000159,Nursing care-permanent -other,Third Party Payments,7003019163,12/04/2023,3693.6
Buckinghamshire Council,Adults and Health,BURNHAM LODGE CARE LTD,1000159,Nursing care-permanent -other,Third Party Payments,7003019163,12/04/2023,4570.43
Buckinghamshire Council,Adults and Health,BURNHAM LODGE CARE LTD,1000159,Res-Perm EMI-Other - Exp,Third Party Payments,7003019163,12/04/2023,4707.54
Buckinghamshire Council,Adults and Health,BURNHAM LODGE CARE LTD,1000159,Res-Perm EMI-Other - Exp,Third Party Payments,7003019163,12/04/2023,4062.98
Buckinghamshire Council,Adults and Health,BURNHAM LODGE CARE LTD,1000159,Res care-permanent - other,Controllable Customer & Client Receipts,7003019163,12/04/2023,-112.11
Buckinghamshire Council,Adults and Health,BURNHAM LODGE CARE LTD,1000159,Res care-permanent - other,Controllable Customer & Client Receipts,7003019163,12/04/2023,-510.49
Buckinghamshire Council,Adults and Health,BURNHAM LODGE CARE LTD,1000159,Res care-permanent - other,Controllable Customer & Client Receipts,7003019163,12/04/2023,-24.91
Buckinghamshire Council,Adults and Health,BURNHAM LODGE CARE LTD,1000159,Res care-permanent - other,Controllable Customer & Client Receipts,7003019163,12/04/2023,-114.57
Buckinghamshire Council,Adults and Health,BURNHAM LODGE CARE LTD,1000159,Nursing care-permanent -other,Controllable Customer & Client Receipts,7003019163,12/04/2023,-112.11
Buckinghamshire Council,Adults and Health,BURNHAM LODGE CARE LTD,1000159,Nursing care-permanent -other,Controllable Customer & Client Receipts,7003019163,12/04/2023,-510.49
Buckinghamshire Council,Adults and Health,BURNHAM LODGE CARE LTD,1000159,Nursing care-permanent -other,Controllable Customer & Client Receipts,7003019163,12/04/2023,-116.61
Buckinghamshire Council,Adults and Health,BURNHAM LODGE CARE LTD,1000159,Nursing care-permanent -other,Controllable Customer & Client Receipts,7003019163,12/04/2023,-566.05
Buckinghamshire Council,Adults and Health,BURNHAM LODGE CARE LTD,1000159,Nursing care-permanent -other,Controllable Customer & Client Receipts,7003019163,12/04/2023,-146.08
Buckinghamshire Council,Adults and Health,BURNHAM LODGE CARE LTD,1000159,Nursing care-permanent -other,Controllable Customer & Client Receipts,7003019163,12/04/2023,-705.42
Buckinghamshire Council,Adults and Health,BURNHAM LODGE CARE LTD,1000159,Nursing care-permanent -other,Controllable Customer & Client Receipts,7003019163,12/04/2023,-214.29
Buckinghamshire Council,Adults and Health,BURNHAM LODGE CARE LTD,1000159,Nursing care-permanent -other,Controllable Customer & Client Receipts,7003019163,12/04/2023,-985.71
Buckinghamshire Council,Adults and Health,BURNHAM LODGE CARE LTD,1000159,Nursing care-permanent -other,Controllable Customer & Client Receipts,7003019163,12/04/2023,-1412.24
Buckinghamshire Council,Adults and Health,BURNHAM LODGE CARE LTD,1000159,Nursing care-permanent -other,Controllable Customer & Client Receipts,7003019163,12/04/2023,3584.09
Buckinghamshire Council,Adults and Health,BURNHAM LODGE CARE LTD,1000159,Nursing care-permanent -other,Controllable Customer & Client Receipts,7003019163,12/04/2023,4363.24
Buckinghamshire Council,Adults and Health,BURNHAM LODGE CARE LTD,1000159,Nursing care-permanent -other,Controllable Customer & Client Receipts,7003019163,12/04/2023,3941.67
Buckinghamshire Council,Adults and Health,BURNHAM LODGE CARE LTD,1000159,Nursing care-permanent -other,Controllable Customer & Client Receipts,7003019163,12/04/2023,1412.24
Buckinghamshire Council,Adults and Health,BURNHAM LODGE CARE LTD,1000159,Nursing care-permanent -other,Controllable Customer & Client Receipts,7003019163,12/04/2023,-308.7
Buckinghamshire Council,Adults and Health,Wesgate Healthcare Ltd,1000160,Res-Perm EMI-Other - Exp,Third Party Payments,7003019164,12/04/2023,-3107.14
Buckinghamshire Council,Adults and Health,Wesgate Healthcare Ltd,1000160,Res-Perm EMI-Other - Exp,Third Party Payments,7003019164,12/04/2023,-5800
Buckinghamshire Council,Adults and Health,Wesgate Healthcare Ltd,1000160,Nurs-Perm EMI Other - Exp,Third Party Payments,7003019164,12/04/2023,761.61
Buckinghamshire Council,Adults and Health,Wesgate Healthcare Ltd,1000160,Nursing care-permanent -other,Third Party Payments,7003019164,12/04/2023,857.9
Buckinghamshire Council,Adults and Health,Wesgate Healthcare Ltd,1000160,Nursing care-permanent -other,Third Party Payments,7003019164,12/04/2023,1071.43
Buckinghamshire Council,Adults and Health,Wesgate Healthcare Ltd,1000160,Nurs-Perm EMI Other - Exp,Third Party Payments,7003019164,12/04/2023,809.29
Buckinghamshire Council,Adults and Health,Wesgate Healthcare Ltd,1000160,Nurs-Perm EMI Other - Exp,Third Party Payments,7003019164,12/04/2023,797.46
Buckinghamshire Council,Adults and Health,Wesgate Healthcare Ltd,1000160,Nurs-Perm EMI Other - Exp,Third Party Payments,7003019164,12/04/2023,993.44
Buckinghamshire Council,Adults and Health,Wesgate Healthcare Ltd,1000160,Nurs-Perm EMI Other - Exp,Third Party Payments,7003019164,12/04/2023,957.72
Buckinghamshire Council,Adults and Health,Wesgate Healthcare Ltd,1000160,Nursing care-permanent -other,Third Party Payments,7003019164,12/04/2023,8.86
Buckinghamshire Council,Adults and Health,Wesgate Healthcare Ltd,1000160,Nursing care-permanent -other,Third Party Payments,7003019164,12/04/2023,799.85
Buckinghamshire Council,Adults and Health,Wesgate Healthcare Ltd,1000160,Nursing care-permanent -other,Third Party Payments,7003019164,12/04/2023,1000
Buckinghamshire Council,Adults and Health,Wesgate Healthcare Ltd,1000160,Nursing care-permanent -other,Third Party Payments,7003019164,12/04/2023,1178.57
Buckinghamshire Council,Adults and Health,Wesgate Healthcare Ltd,1000160,Nursing care-permanent -other,Third Party Payments,7003019164,12/04/2023,40.74
Buckinghamshire Council,Adults and Health,Wesgate Healthcare Ltd,1000160,Nurs-Perm EMI Other - Exp,Third Party Payments,7003019164,12/04/2023,854.61
Buckinghamshire Council,Adults and Health,Wesgate Healthcare Ltd,1000160,Nurs-Perm EMI Other - Exp,Third Party Payments,7003019164,12/04/2023,613.08
Buckinghamshire Council,Adults and Health,Wesgate Healthcare Ltd,1000160,Nursing care-permanent -other,Third Party Payments,7003019164,12/04/2023,893.46
Buckinghamshire Council,Adults and Health,Wesgate Healthcare Ltd,1000160,Res-Perm EMI-Other - Exp,Third Party Payments,7003019164,12/04/2023,754.93
Buckinghamshire Council,Adults and Health,Wesgate Healthcare Ltd,1000160,Res-Perm EMI-Other - Exp,Third Party Payments,7003019164,12/04/2023,3728.57
Buckinghamshire Council,Adults and Health,Wesgate Healthcare Ltd,1000160,Res-Perm EMI-Other - Exp,Third Party Payments,7003019164,12/04/2023,5800
Buckinghamshire Council,Adults and Health,Wesgate Healthcare Ltd,1000160,Res-Perm EMI-Other - Exp,Third Party Payments,7003019164,12/04/2023,5800
Buckinghamshire Council,Adults and Health,Wesgate Healthcare Ltd,1000160,Res-Perm EMI-Other - Exp,Third Party Payments,7003019164,12/04/2023,1035.71
Buckinghamshire Council,Adults and Health,Wesgate Healthcare Ltd,1000160,Nursing care-permanent -other,Third Party Payments,7003019164,12/04/2023,-2486.71
Buckinghamshire Council,Adults and Health,Wesgate Healthcare Ltd,1000160,Nurs-Perm EMI Other - Exp,Third Party Payments,7003019164,12/04/2023,3748.67
Buckinghamshire Council,Adults and Health,Wesgate Healthcare Ltd,1000160,Nursing care-permanent -other,Third Party Payments,7003019164,12/04/2023,5273.57
Buckinghamshire Council,Adults and Health,Wesgate Healthcare Ltd,1000160,Nursing care-permanent -other,Third Party Payments,7003019164,12/04/2023,4222.57
Buckinghamshire Council,Adults and Health,Wesgate Healthcare Ltd,1000160,Nurs-Perm EMI Other - Exp,Third Party Payments,7003019164,12/04/2023,3983.3
Buckinghamshire Council,Adults and Health,Wesgate Healthcare Ltd,1000160,Nurs-Perm EMI Other - Exp,Third Party Payments,7003019164,12/04/2023,3925.11
Buckinghamshire Council,Adults and Health,Wesgate Healthcare Ltd,1000160,Nursing care-permanent -other,Third Party Payments,7003019164,12/04/2023,3936.88
Buckinghamshire Council,Adults and Health,Wesgate Healthcare Ltd,1000160,Nursing care-permanent -other,Third Party Payments,7003019164,12/04/2023,4922
Buckinghamshire Council,Adults and Health,Wesgate Healthcare Ltd,1000160,Nurs-Perm EMI Other - Exp,Third Party Payments,7003019164,12/04/2023,4206.4
Buckinghamshire Council,Adults and Health,Wesgate Healthcare Ltd,1000160,Nurs-Perm EMI Other - Exp,Third Party Payments,7003019164,12/04/2023,3017.57
Buckinghamshire Council,Adults and Health,Wesgate Healthcare Ltd,1000160,Nursing care-permanent -other,Third Party Payments,7003019164,12/04/2023,4397.6
Buckinghamshire Council,Adults and Health,Wesgate Healthcare Ltd,1000160,Res-Perm EMI-Other - Exp,Third Party Payments,7003019164,12/04/2023,3715.75
Buckinghamshire Council,Adults and Health,Wesgate Healthcare Ltd,1000160,Nurs-Perm EMI Other - Exp,Third Party Payments,7003019164,12/04/2023,4405.52
Buckinghamshire Council,Adults and Health,Wesgate Healthcare Ltd,1000160,Nurs-Perm EMI Other - Exp,Third Party Payments,7003019164,12/04/2023,4569.8
Buckinghamshire Council,Adults and Health,Wesgate Healthcare Ltd,1000160,Nursing care-permanent -other,Third Party Payments,7003019164,12/04/2023,5421.43
Buckinghamshire Council,Adults and Health,Wesgate Healthcare Ltd,1000160,Res-Perm EMI-Other - Exp,Third Party Payments,7003019164,12/04/2023,828.57
Buckinghamshire Council,Adults and Health,Wesgate Healthcare Ltd,1000160,Nursing care-permanent -other,Controllable Customer & Client Receipts,7003019164,12/04/2023,-64.25
Buckinghamshire Council,Adults and Health,Wesgate Healthcare Ltd,1000160,Nursing care-permanent -other,Controllable Customer & Client Receipts,7003019164,12/04/2023,-295.55
Buckinghamshire Council,Adults and Health,Wesgate Healthcare Ltd,1000160,Nursing care-permanent -other,Controllable Customer & Client Receipts,7003019164,12/04/2023,-7.39
Buckinghamshire Council,Adults and Health,Wesgate Healthcare Ltd,1000160,Nursing care-permanent -other,Controllable Customer & Client Receipts,7003019164,12/04/2023,-34.01
Buckinghamshire Council,Adults and Health,Wesgate Healthcare Ltd,1000160,Nursing care-permanent -other,Controllable Customer & Client Receipts,7003019164,12/04/2023,-176.47
Buckinghamshire Council,Adults and Health,Wesgate Healthcare Ltd,1000160,Nursing care-permanent -other,Controllable Customer & Client Receipts,7003019164,12/04/2023,-855.03
Buckinghamshire Council,Adults and Health,Wesgate Healthcare Ltd,1000160,Nursing care-permanent -other,Controllable Customer & Client Receipts,7003019164,12/04/2023,-115.3
Buckinghamshire Council,Adults and Health,Wesgate Healthcare Ltd,1000160,Nursing care-permanent -other,Controllable Customer & Client Receipts,7003019164,12/04/2023,-544.3
Buckinghamshire Council,Adults and Health,Wesgate Healthcare Ltd,1000160,Nursing care-permanent -other,Controllable Customer & Client Receipts,7003019164,12/04/2023,-94.32
Buckinghamshire Council,Adults and Health,Wesgate Healthcare Ltd,1000160,Nursing care-permanent -other,Controllable Customer & Client Receipts,7003019164,12/04/2023,-466.72
Buckinghamshire Council,Adults and Health,Wesgate Healthcare Ltd,1000160,Nursing care-permanent -other,Controllable Customer & Client Receipts,7003019164,12/04/2023,-131.34
Buckinghamshire Council,Adults and Health,Wesgate Healthcare Ltd,1000160,Nursing care-permanent -other,Controllable Customer & Client Receipts,7003019164,12/04/2023,-630.58
Buckinghamshire Council,Adults and Health,Wesgate Healthcare Ltd,1000160,Nursing care-permanent -other,Controllable Customer & Client Receipts,7003019164,12/04/2023,-172.54
Buckinghamshire Council,Adults and Health,Wesgate Healthcare Ltd,1000160,Nursing care-permanent -other,Controllable Customer & Client Receipts,7003019164,12/04/2023,-833.62
Buckinghamshire Council,Adults and Health,Wesgate Healthcare Ltd,1000160,Nursing care-permanent -other,Controllable Customer & Client Receipts,7003019164,12/04/2023,-178.57
Buckinghamshire Council,Adults and Health,Wesgate Healthcare Ltd,1000160,Nursing care-permanent -other,Controllable Customer & Client Receipts,7003019164,12/04/2023,-821.43
Buckinghamshire Council,Adults and Health,Wesgate Healthcare Ltd,1000160,Res care-permanent - other,Controllable Customer & Client Receipts,7003019164,12/04/2023,-112.11
Buckinghamshire Council,Adults and Health,Wesgate Healthcare Ltd,1000160,Res care-permanent - other,Controllable Customer & Client Receipts,7003019164,12/04/2023,-510.49
Buckinghamshire Council,Adults and Health,Wesgate Healthcare Ltd,1000160,Res care-permanent - other,Controllable Customer & Client Receipts,7003019164,12/04/2023,-772.56
Buckinghamshire Council,Adults and Health,Wesgate Healthcare Ltd,1000160,Res care-permanent - other,Controllable Customer & Client Receipts,7003019164,12/04/2023,-964.16
Buckinghamshire Council,Adults and Health,Wesgate Healthcare Ltd,1000160,Res care-permanent - other,Controllable Customer & Client Receipts,7003019164,12/04/2023,-832.16
Buckinghamshire Council,Adults and Health,Wesgate Healthcare Ltd,1000160,Res care-permanent - other,Controllable Customer & Client Receipts,7003019164,12/04/2023,-148.6
Buckinghamshire Council,Adults and Health,Wesgate Healthcare Ltd,1000160,Res care-permanent - other,Controllable Customer & Client Receipts,7003019164,12/04/2023,-118.88
Buckinghamshire Council,Adults and Health,Wesgate Healthcare Ltd,1000160,Nursing care-permanent -other,Controllable Customer & Client Receipts,7003019164,12/04/2023,216.39
Buckinghamshire Council,Adults and Health,Wesgate Healthcare Ltd,1000160,Nursing care-permanent -other,Controllable Customer & Client Receipts,7003019164,12/04/2023,-406.36
Buckinghamshire Council,Adults and Health,Wesgate Healthcare Ltd,1000160,Nursing care-permanent -other,Controllable Customer & Client Receipts,7003019164,12/04/2023,-225.76
Buckinghamshire Council,Adults and Health,Wesgate Healthcare Ltd,1000160,Nursing care-permanent -other,Controllable Customer & Client Receipts,7003019164,12/04/2023,-1038.48
Buckinghamshire Council,Adults and Health,Wesgate Healthcare Ltd,1000160,Nursing care-permanent -other,Controllable Customer & Client Receipts,7003019164,12/04/2023,-8.86
Buckinghamshire Council,Adults and Health,Wesgate Healthcare Ltd,1000160,Nursing care-permanent -other,Controllable Customer & Client Receipts,7003019164,12/04/2023,-40.74
Buckinghamshire Council,Adults and Health,CHALFONT LODGE NURSING HOME,1000164,Nurs-Perm EMI Other - Exp,Third Party Payments,7003019165,12/04/2023,964.29
Buckinghamshire Council,Adults and Health,CHALFONT LODGE NURSING HOME,1000164,Nursing care-permanent -other,Third Party Payments,7003019165,12/04/2023,993.21
Buckinghamshire Council,Adults and Health,CHALFONT LODGE NURSING HOME,1000164,Res-Perm EMI-Other - Exp,Third Party Payments,7003019165,12/04/2023,993.21
Buckinghamshire Council,Adults and Health,CHALFONT LODGE NURSING HOME,1000164,Res-Perm EMI-Other - Exp,Third Party Payments,7003019165,12/04/2023,1035.71
Buckinghamshire Council,Adults and Health,CHALFONT LODGE NURSING HOME,1000164,Nurs-Perm EMI Other - Exp,Third Party Payments,7003019165,12/04/2023,1148.16
Buckinghamshire Council,Adults and Health,CHALFONT LODGE NURSING HOME,1000164,Nursing care-permanent -other,Third Party Payments,7003019165,12/04/2023,1009.29
Buckinghamshire Council,Adults and Health,CHALFONT LODGE NURSING HOME,1000164,Nursing care-permanent -other,Third Party Payments,7003019165,12/04/2023,1223.94
Buckinghamshire Council,Adults and Health,CHALFONT LODGE NURSING HOME,1000164,Nurs-Perm EMI Other - Exp,Third Party Payments,7003019165,12/04/2023,855.64
Buckinghamshire Council,Adults and Health,CHALFONT LODGE NURSING HOME,1000164,Nurs-Perm EMI Other - Exp,Third Party Payments,7003019165,12/04/2023,922.43
Buckinghamshire Council,Adults and Health,CHALFONT LODGE NURSING HOME,1000164,Nursing care-permanent -other,Third Party Payments,7003019165,12/04/2023,1200.69
Buckinghamshire Council,Adults and Health,CHALFONT LODGE NURSING HOME,1000164,Res-Perm EMI-Other - Exp,Third Party Payments,7003019165,12/04/2023,750.43
Buckinghamshire Council,Adults and Health,CHALFONT LODGE NURSING HOME,1000164,Res-Perm EMI-Other - Exp,Third Party Payments,7003019165,12/04/2023,1035.71
Buckinghamshire Council,Adults and Health,CHALFONT LODGE NURSING HOME,1000164,Nursing care-permanent -other,Third Party Payments,7003019165,12/04/2023,957.86
Buckinghamshire Council,Adults and Health,CHALFONT LODGE NURSING HOME,1000164,Nurs-Perm EMI Other - Exp,Third Party Payments,7003019165,12/04/2023,882.86
Buckinghamshire Council,Adults and Health,CHALFONT LODGE NURSING HOME,1000164,Res care-permanent - other,Third Party Payments,7003019165,12/04/2023,964.29
Buckinghamshire Council,Adults and Health,CHALFONT LODGE NURSING HOME,1000164,Nurs-Perm EMI Other - Exp,Third Party Payments,7003019165,12/04/2023,1035.71
Buckinghamshire Council,Adults and Health,CHALFONT LODGE NURSING HOME,1000164,Nursing care-permanent -other,Third Party Payments,7003019165,12/04/2023,1033.34
Buckinghamshire Council,Adults and Health,CHALFONT LODGE NURSING HOME,1000164,Nurs-Perm EMI Other - Exp,Third Party Payments,7003019165,12/04/2023,6628
Buckinghamshire Council,Adults and Health,CHALFONT LODGE NURSING HOME,1000164,Nurs-Perm EMI Other - Exp,Third Party Payments,7003019165,12/04/2023,1183.57
Buckinghamshire Council,Adults and Health,CHALFONT LODGE NURSING HOME,1000164,Nursing care-permanent -other,Third Party Payments,7003019165,12/04/2023,-551.59
Buckinghamshire Council,Adults and Health,CHALFONT LODGE NURSING HOME,1000164,Nursing care-permanent -other,Third Party Payments,7003019165,12/04/2023,-824.98
Buckinghamshire Council,Adults and Health,CHALFONT LODGE NURSING HOME,1000164,Nursing care-permanent -other,Third Party Payments,7003019165,12/04/2023,3342.86
Buckinghamshire Council,Adults and Health,CHALFONT LODGE NURSING HOME,1000164,Nursing care-permanent -other,Third Party Payments,7003019165,12/04/2023,1285.71
Buckinghamshire Council,Adults and Health,CHALFONT LODGE NURSING HOME,1000164,Nurs-Perm EMI Other - Exp,Third Party Payments,7003019165,12/04/2023,4746.21
Buckinghamshire Council,Adults and Health,CHALFONT LODGE NURSING HOME,1000164,Nursing care-permanent -other,Third Party Payments,7003019165,12/04/2023,4888.62
Buckinghamshire Council,Adults and Health,CHALFONT LODGE NURSING HOME,1000164,Res-Perm EMI-Other - Exp,Third Party Payments,7003019165,12/04/2023,5097.79
Buckinghamshire Council,Adults and Health,CHALFONT LODGE NURSING HOME,1000164,Res-Perm EMI-Other - Exp,Third Party Payments,7003019165,12/04/2023,4888.62
Buckinghamshire Council,Adults and Health,CHALFONT LODGE NURSING HOME,1000164,Nurs-Perm EMI Other - Exp,Third Party Payments,7003019165,12/04/2023,5651.23
Buckinghamshire Council,Adults and Health,CHALFONT LODGE NURSING HOME,1000164,Nursing care-permanent -other,Third Party Payments,7003019165,12/04/2023,4967.74
Buckinghamshire Council,Adults and Health,CHALFONT LODGE NURSING HOME,1000164,Nursing care-permanent -other,Third Party Payments,7003019165,12/04/2023,6024.23
Buckinghamshire Council,Adults and Health,CHALFONT LODGE NURSING HOME,1000164,Nurs-Perm EMI Other - Exp,Third Party Payments,7003019165,12/04/2023,5825.54
Buckinghamshire Council,Adults and Health,CHALFONT LODGE NURSING HOME,1000164,Nurs-Perm EMI Other - Exp,Third Party Payments,7003019165,12/04/2023,4540.2
Buckinghamshire Council,Adults and Health,CHALFONT LODGE NURSING HOME,1000164,Nurs-Perm EMI Other - Exp,Third Party Payments,7003019165,12/04/2023,4211.43
Buckinghamshire Council,Adults and Health,CHALFONT LODGE NURSING HOME,1000164,Nursing care-permanent -other,Third Party Payments,7003019165,12/04/2023,5909.78
Buckinghamshire Council,Adults and Health,CHALFONT LODGE NURSING HOME,1000164,Res-Perm EMI-Other - Exp,Third Party Payments,7003019165,12/04/2023,3693.6
Buckinghamshire Council,Adults and Health,CHALFONT LODGE NURSING HOME,1000164,Nurs-Perm EMI Other - Exp,Third Party Payments,7003019165,12/04/2023,4345.42
Buckinghamshire Council,Adults and Health,CHALFONT LODGE NURSING HOME,1000164,Res care-permanent - other,Third Party Payments,7003019165,12/04/2023,4746.21
Buckinghamshire Council,Adults and Health,CHALFONT LODGE NURSING HOME,1000164,Nurs-Perm EMI Other - Exp,Third Party Payments,7003019165,12/04/2023,5097.79
Buckinghamshire Council,Adults and Health,CHALFONT LODGE NURSING HOME,1000164,Nursing care-permanent -other,Third Party Payments,7003019165,12/04/2023,5086.12
Buckinghamshire Council,Adults and Health,CHALFONT LODGE NURSING HOME,1000164,Nursing care-permanent -other,Third Party Payments,7003019165,12/04/2023,4406.14
Buckinghamshire Council,Adults and Health,CHALFONT LODGE NURSING HOME,1000164,Res-Perm EMI-Other - Exp,Third Party Payments,7003019165,12/04/2023,4764.29
Buckinghamshire Council,Adults and Health,CHALFONT LODGE NURSING HOME,1000164,Nursing care-permanent -other,Third Party Payments,7003019165,12/04/2023,5914.29
Buckinghamshire Council,Adults and Health,CHALFONT LODGE NURSING HOME,1000164,Nursing care-permanent -other,Third Party Payments,7003019165,12/04/2023,4001.14
Buckinghamshire Council,Adults and Health,CHALFONT LODGE NURSING HOME,1000164,Nursing care-permanent -other,Controllable Customer & Client Receipts,7003019165,12/04/2023,-214.99
Buckinghamshire Council,Adults and Health,CHALFONT LODGE NURSING HOME,1000164,Nursing care-permanent -other,Controllable Customer & Client Receipts,7003019165,12/04/2023,-1037.67
Buckinghamshire Council,Adults and Health,CHALFONT LODGE NURSING HOME,1000164,Nursing care-permanent -other,Controllable Customer & Client Receipts,7003019165,12/04/2023,-208.33
Buckinghamshire Council,Adults and Health,CHALFONT LODGE NURSING HOME,1000164,Nursing care-permanent -other,Controllable Customer & Client Receipts,7003019165,12/04/2023,-1003.61
Buckinghamshire Council,Adults and Health,CHALFONT LODGE NURSING HOME,1000164,Res care-permanent - other,Controllable Customer & Client Receipts,7003019165,12/04/2023,-137.66
Buckinghamshire Council,Adults and Health,CHALFONT LODGE NURSING HOME,1000164,Res care-permanent - other,Controllable Customer & Client Receipts,7003019165,12/04/2023,-670.02
Buckinghamshire Council,Adults and Health,CHALFONT LODGE NURSING HOME,1000164,Res care-permanent - other,Controllable Customer & Client Receipts,7003019165,12/04/2023,-160.79
Buckinghamshire Council,Adults and Health,CHALFONT LODGE NURSING HOME,1000164,Res care-permanent - other,Controllable Customer & Client Receipts,7003019165,12/04/2023,-779.53
Buckinghamshire Council,Adults and Health,CHALFONT LODGE NURSING HOME,1000164,Nursing care-permanent -other,Controllable Customer & Client Receipts,7003019165,12/04/2023,-91.39
Buckinghamshire Council,Adults and Health,CHALFONT LODGE NURSING HOME,1000164,Nursing care-permanent -other,Controllable Customer & Client Receipts,7003019165,12/04/2023,-420.41
Buckinghamshire Council,Adults and Health,CHALFONT LODGE NURSING HOME,1000164,Res care-permanent - other,Controllable Customer & Client Receipts,7003019165,12/04/2023,-70.12
Buckinghamshire Council,Adults and Health,CHALFONT LODGE NURSING HOME,1000164,Res care-permanent - other,Controllable Customer & Client Receipts,7003019165,12/04/2023,-335.08
Buckinghamshire Council,Adults and Health,CHALFONT LODGE NURSING HOME,1000164,Res care-permanent - other,Controllable Customer & Client Receipts,7003019165,12/04/2023,-136.91
Buckinghamshire Council,Adults and Health,CHALFONT LODGE NURSING HOME,1000164,Res care-permanent - other,Controllable Customer & Client Receipts,7003019165,12/04/2023,-629.81
Buckinghamshire Council,Adults and Health,CHALFONT LODGE NURSING HOME,1000164,Nursing care-permanent -other,Controllable Customer & Client Receipts,7003019165,12/04/2023,-189.76
Buckinghamshire Council,Adults and Health,CHALFONT LODGE NURSING HOME,1000164,Nursing care-permanent -other,Controllable Customer & Client Receipts,7003019165,12/04/2023,-905.4
Buckinghamshire Council,Adults and Health,CHALFONT LODGE NURSING HOME,1000164,Nursing care-permanent -other,Controllable Customer & Client Receipts,7003019165,12/04/2023,-167.89
Buckinghamshire Council,Adults and Health,CHALFONT LODGE NURSING HOME,1000164,Nursing care-permanent -other,Controllable Customer & Client Receipts,7003019165,12/04/2023,-772.27
Buckinghamshire Council,Adults and Health,CHALFONT LODGE NURSING HOME,1000164,Nursing care-permanent -other,Controllable Customer & Client Receipts,7003019165,12/04/2023,-35.21
Buckinghamshire Council,Adults and Health,CHALFONT LODGE NURSING HOME,1000164,Nursing care-permanent -other,Controllable Customer & Client Receipts,7003019165,12/04/2023,-161.99
Buckinghamshire Council,Adults and Health,CHALFONT LODGE NURSING HOME,1000164,Nursing care-permanent -other,Controllable Customer & Client Receipts,7003019165,12/04/2023,-130.43
Buckinghamshire Council,Adults and Health,CHALFONT LODGE NURSING HOME,1000164,Nursing care-permanent -other,Controllable Customer & Client Receipts,7003019165,12/04/2023,-629.99
Buckinghamshire Council,Adults and Health,CHALFONT LODGE NURSING HOME,1000164,Nursing care-permanent -other,Controllable Customer & Client Receipts,7003019165,12/04/2023,-118.93
Buckinghamshire Council,Adults and Health,CHALFONT LODGE NURSING HOME,1000164,Nursing care-permanent -other,Controllable Customer & Client Receipts,7003019165,12/04/2023,-579.27
Buckinghamshire Council,Adults and Health,CHALFONT LODGE NURSING HOME,1000164,Nursing care-permanent -other,Controllable Customer & Client Receipts,7003019165,12/04/2023,-834.4
Buckinghamshire Council,Adults and Health,CHALFONT LODGE NURSING HOME,1000164,Nursing care-permanent -other,Controllable Customer & Client Receipts,7003019165,12/04/2023,-133.01
Buckinghamshire Council,Adults and Health,CHALFONT LODGE NURSING HOME,1000164,Nursing care-permanent -other,Controllable Customer & Client Receipts,7003019165,12/04/2023,-646.81
Buckinghamshire Council,Adults and Health,CHALFONT LODGE NURSING HOME,1000164,Nursing care-permanent -other,Controllable Customer & Client Receipts,7003019165,12/04/2023,179.37
Buckinghamshire Council,Adults and Health,CHALFONT LODGE NURSING HOME,1000164,Nursing care-permanent -other,Controllable Customer & Client Receipts,7003019165,12/04/2023,824.98
Buckinghamshire Council,Adults and Health,REDACTED,1000165,Nurs-Perm EMI Other - Exp,Third Party Payments,7003019166,12/04/2023,714.29
Buckinghamshire Council,Adults and Health,REDACTED,1000165,Nursing care-permanent -other,Third Party Payments,7003019166,12/04/2023,1050.6
Buckinghamshire Council,Adults and Health,REDACTED,1000165,Nurs-Perm EMI Other - Exp,Third Party Payments,7003019166,12/04/2023,714.29
Buckinghamshire Council,Adults and Health,REDACTED,1000165,Nurs-Perm EMI Other - Exp,Third Party Payments,7003019166,12/04/2023,785.71
Buckinghamshire Council,Adults and Health,REDACTED,1000165,Nursing care-permanent -other,Third Party Payments,7003019166,12/04/2023,612.35
Buckinghamshire Council,Adults and Health,REDACTED,1000165,Nursing care-permanent -other,Third Party Payments,7003019166,12/04/2023,612.35
Buckinghamshire Council,Adults and Health,REDACTED,1000165,Res-Perm EMI-Other - Exp,Third Party Payments,7003019166,12/04/2023,650.62
Buckinghamshire Council,Adults and Health,REDACTED,1000165,Res care-permanent - other,Third Party Payments,7003019166,12/04/2023,662.14
Buckinghamshire Council,Adults and Health,REDACTED,1000165,Res care-permanent - other,Third Party Payments,7003019166,12/04/2023,574.08
Buckinghamshire Council,Adults and Health,REDACTED,1000165,Nursing care-permanent -other,Third Party Payments,7003019166,12/04/2023,612.35
Buckinghamshire Council,Adults and Health,REDACTED,1000165,Nurs-Perm EMI Other - Exp,Third Party Payments,7003019166,12/04/2023,650.62
Buckinghamshire Council,Adults and Health,REDACTED,1000165,Nurs-Perm EMI Other - Exp,Third Party Payments,7003019166,12/04/2023,1642.86
Buckinghamshire Council,Adults and Health,REDACTED,1000165,Nurs-Perm EMI Other - Exp,Third Party Payments,7003019166,12/04/2023,821.43
Buckinghamshire Council,Adults and Health,REDACTED,1000165,Nurs-Perm EMI Other - Exp,Third Party Payments,7003019166,12/04/2023,3515.71
Buckinghamshire Council,Adults and Health,REDACTED,1000165,Nursing care-permanent -other,Third Party Payments,7003019166,12/04/2023,5171.06
Buckinghamshire Council,Adults and Health,REDACTED,1000165,Nurs-Perm EMI Other - Exp,Third Party Payments,7003019166,12/04/2023,3867.29
Buckinghamshire Council,Adults and Health,REDACTED,1000165,Nurs-Perm EMI Other - Exp,Third Party Payments,7003019166,12/04/2023,3515.71
Buckinghamshire Council,Adults and Health,REDACTED,1000165,Nursing care-permanent -other,Third Party Payments,7003019166,12/04/2023,3013.99
Buckinghamshire Council,Adults and Health,REDACTED,1000165,Nursing care-permanent -other,Third Party Payments,7003019166,12/04/2023,3013.99
Buckinghamshire Council,Adults and Health,REDACTED,1000165,Res-Perm EMI-Other - Exp,Third Party Payments,7003019166,12/04/2023,3202.36
Buckinghamshire Council,Adults and Health,REDACTED,1000165,Res care-permanent - other,Third Party Payments,7003019166,12/04/2023,3259.07
Buckinghamshire Council,Adults and Health,REDACTED,1000165,Res care-permanent - other,Third Party Payments,7003019166,12/04/2023,2825.62
Buckinghamshire Council,Adults and Health,REDACTED,1000165,Nursing care-permanent -other,Third Party Payments,7003019166,12/04/2023,3013.99
Buckinghamshire Council,Adults and Health,REDACTED,1000165,Nurs-Perm EMI Other - Exp,Third Party Payments,7003019166,12/04/2023,3202.36
Buckinghamshire Council,Adults and Health,REDACTED,1000165,Nurs-Perm EMI Other - Exp,Third Party Payments,7003019166,12/04/2023,3778.57
Buckinghamshire Council,Adults and Health,REDACTED,1000165,Nursing care-permanent -other,Controllable Customer & Client Receipts,7003019166,12/04/2023,-112.11
Buckinghamshire Council,Adults and Health,REDACTED,1000165,Nursing care-permanent -other,Controllable Customer & Client Receipts,7003019166,12/04/2023,-510.49
Buckinghamshire Council,Adults and Health,REDACTED,1000165,Nursing care-permanent -other,Controllable Customer & Client Receipts,7003019166,12/04/2023,-78.36
Buckinghamshire Council,Adults and Health,REDACTED,1000165,Nursing care-permanent -other,Controllable Customer & Client Receipts,7003019166,12/04/2023,-360.44
Buckinghamshire Council,Adults and Health,REDACTED,1000165,Res care-permanent - other,Controllable Customer & Client Receipts,7003019166,12/04/2023,-167.83
Buckinghamshire Council,Adults and Health,REDACTED,1000165,Res care-permanent - other,Controllable Customer & Client Receipts,7003019166,12/04/2023,-810.79
Buckinghamshire Council,Adults and Health,REDACTED,1000165,Res care-permanent - other,Controllable Customer & Client Receipts,7003019166,12/04/2023,-111.73
Buckinghamshire Council,Adults and Health,REDACTED,1000165,Res care-permanent - other,Controllable Customer & Client Receipts,7003019166,12/04/2023,-513.95
Buckinghamshire Council,Adults and Health,REDACTED,1000165,Res care-permanent - other,Controllable Customer & Client Receipts,7003019166,12/04/2023,-112.11
Buckinghamshire Council,Adults and Health,REDACTED,1000165,Res care-permanent - other,Controllable Customer & Client Receipts,7003019166,12/04/2023,-510.49
Buckinghamshire Council,Adults and Health,REDACTED,1000165,Nursing care-permanent -other,Controllable Customer & Client Receipts,7003019166,12/04/2023,-159.91
Buckinghamshire Council,Adults and Health,REDACTED,1000165,Nursing care-permanent -other,Controllable Customer & Client Receipts,7003019166,12/04/2023,-774.53
Buckinghamshire Council,Adults and Health,REDACTED,1000165,Nursing care-permanent -other,Controllable Customer & Client Receipts,7003019166,12/04/2023,-157.73
Buckinghamshire Council,Adults and Health,REDACTED,1000165,Nursing care-permanent -other,Controllable Customer & Client Receipts,7003019166,12/04/2023,-759.09
Buckinghamshire Council,Adults and Health,REDACTED,1000165,Nursing care-permanent -other,Controllable Customer & Client Receipts,7003019166,12/04/2023,-200.11
Buckinghamshire Council,Adults and Health,REDACTED,1000165,Nursing care-permanent -other,Controllable Customer & Client Receipts,7003019166,12/04/2023,-973.33
Buckinghamshire Council,Adults and Health,REDACTED,1000165,Nursing care-permanent -other,Controllable Customer & Client Receipts,7003019166,12/04/2023,-112.11
Buckinghamshire Council,Adults and Health,REDACTED,1000165,Nursing care-permanent -other,Controllable Customer & Client Receipts,7003019166,12/04/2023,-510.49
Buckinghamshire Council,Adults and Health,REDACTED,1000165,Nursing care-permanent -other,Controllable Customer & Client Receipts,7003019166,12/04/2023,-224.21
Buckinghamshire Council,Adults and Health,REDACTED,1000165,Nursing care-permanent -other,Controllable Customer & Client Receipts,7003019166,12/04/2023,-112.11
Buckinghamshire Council,Adults and Health,REDACTED,1000165,Nursing care-permanent -other,Controllable Customer & Client Receipts,7003019166,12/04/2023,-515.69
Buckinghamshire Council,Adults and Health,CHERRY TREE NURSING HOME,1000166,Nurs-Perm EMI Other - Exp,Third Party Payments,7003019167,12/04/2023,1035.71
Buckinghamshire Council,Adults and Health,CHERRY TREE NURSING HOME,1000166,Nurs-Perm EMI Other - Exp,Third Party Payments,7003019167,12/04/2023,928.57
Buckinghamshire Council,Adults and Health,CHERRY TREE NURSING HOME,1000166,Nursing care-permanent -other,Third Party Payments,7003019167,12/04/2023,882.86
Buckinghamshire Council,Adults and Health,CHERRY TREE NURSING HOME,1000166,Nursing care-permanent -other,Third Party Payments,7003019167,12/04/2023,821.43
Buckinghamshire Council,Adults and Health,CHERRY TREE NURSING HOME,1000166,Nursing care-permanent -other,Third Party Payments,7003019167,12/04/2023,821.43
Buckinghamshire Council,Adults and Health,CHERRY TREE NURSING HOME,1000166,Nursing care-permanent -other,Third Party Payments,7003019167,12/04/2023,821.43
Buckinghamshire Council,Adults and Health,CHERRY TREE NURSING HOME,1000166,Nursing care-permanent -other,Third Party Payments,7003019167,12/04/2023,821.43
Buckinghamshire Council,Adults and Health,CHERRY TREE NURSING HOME,1000166,Nursing care-permanent -other,Third Party Payments,7003019167,12/04/2023,821.43
Buckinghamshire Council,Adults and Health,CHERRY TREE NURSING HOME,1000166,Nursing care-permanent -other,Third Party Payments,7003019167,12/04/2023,821.43
Buckinghamshire Council,Adults and Health,CHERRY TREE NURSING HOME,1000166,Nurs-Perm EMI Other - Exp,Third Party Payments,7003019167,12/04/2023,821.43
Buckinghamshire Council,Adults and Health,CHERRY TREE NURSING HOME,1000166,Nursing care-permanent -other,Third Party Payments,7003019167,12/04/2023,882.86
Buckinghamshire Council,Adults and Health,CHERRY TREE NURSING HOME,1000166,Nursing care-permanent -other,Third Party Payments,7003019167,12/04/2023,882.86
Buckinghamshire Council,Adults and Health,CHERRY TREE NURSING HOME,1000166,Nursing care-permanent -other,Third Party Payments,7003019167,12/04/2023,4345.42
Buckinghamshire Council,Adults and Health,CHERRY TREE NURSING HOME,1000166,Nursing care-permanent -other,Third Party Payments,7003019167,12/04/2023,4043.07
Buckinghamshire Council,Adults and Health,CHERRY TREE NURSING HOME,1000166,Nursing care-permanent -other,Third Party Payments,7003019167,12/04/2023,4043.07
Buckinghamshire Council,Adults and Health,CHERRY TREE NURSING HOME,1000166,Nursing care-permanent -other,Third Party Payments,7003019167,12/04/2023,4043.07
Buckinghamshire Council,Adults and Health,CHERRY TREE NURSING HOME,1000166,Nursing care-permanent -other,Third Party Payments,7003019167,12/04/2023,4043.07
Buckinghamshire Council,Adults and Health,CHERRY TREE NURSING HOME,1000166,Nursing care-permanent -other,Third Party Payments,7003019167,12/04/2023,4043.07
Buckinghamshire Council,Adults and Health,CHERRY TREE NURSING HOME,1000166,Nursing care-permanent -other,Third Party Payments,7003019167,12/04/2023,4043.07
Buckinghamshire Council,Adults and Health,CHERRY TREE NURSING HOME,1000166,Nurs-Perm EMI Other - Exp,Third Party Payments,7003019167,12/04/2023,4043.07
Buckinghamshire Council,Adults and Health,CHERRY TREE NURSING HOME,1000166,Nursing care-permanent -other,Third Party Payments,7003019167,12/04/2023,4345.42
Buckinghamshire Council,Adults and Health,CHERRY TREE NURSING HOME,1000166,Nursing care-permanent -other,Third Party Payments,7003019167,12/04/2023,4345.42
Buckinghamshire Council,Adults and Health,CHERRY TREE NURSING HOME,1000166,Nurs-Perm EMI Other - Exp,Third Party Payments,7003019167,12/04/2023,4764.29
Buckinghamshire Council,Adults and Health,CHERRY TREE NURSING HOME,1000166,Nurs-Perm EMI Other - Exp,Third Party Payments,7003019167,12/04/2023,4271.43
Buckinghamshire Council,Adults and Health,CHERRY TREE NURSING HOME,1000166,Res care-permanent - other,Third Party Payments,7003019167,12/04/2023,-1200
Buckinghamshire Council,Adults and Health,CHERRY TREE NURSING HOME,1000166,Res care-permanent - other,Third Party Payments,7003019167,12/04/2023,-4800
Buckinghamshire Council,Adults and Health,CHERRY TREE NURSING HOME,1000166,Nursing care-permanent -other,Controllable Customer & Client Receipts,7003019167,12/04/2023,-173.69
Buckinghamshire Council,Adults and Health,CHERRY TREE NURSING HOME,1000166,Nursing care-permanent -other,Controllable Customer & Client Receipts,7003019167,12/04/2023,-845.13
Buckinghamshire Council,Adults and Health,CHERRY TREE NURSING HOME,1000166,Nursing care-permanent -other,Controllable Customer & Client Receipts,7003019167,12/04/2023,-42.59
Buckinghamshire Council,Adults and Health,CHERRY TREE NURSING HOME,1000166,Nursing care-permanent -other,Controllable Customer & Client Receipts,7003019167,12/04/2023,-207.91
Buckinghamshire Council,Adults and Health,CHERRY TREE NURSING HOME,1000166,Nursing care-permanent -other,Controllable Customer & Client Receipts,7003019167,12/04/2023,-113.99
Buckinghamshire Council,Adults and Health,CHERRY TREE NURSING HOME,1000166,Nursing care-permanent -other,Controllable Customer & Client Receipts,7003019167,12/04/2023,-554.63
Buckinghamshire Council,Adults and Health,CHERRY TREE NURSING HOME,1000166,Nursing care-permanent -other,Controllable Customer & Client Receipts,7003019167,12/04/2023,-120.73
Buckinghamshire Council,Adults and Health,CHERRY TREE NURSING HOME,1000166,Nursing care-permanent -other,Controllable Customer & Client Receipts,7003019167,12/04/2023,-570.83
Buckinghamshire Council,Adults and Health,CHERRY TREE NURSING HOME,1000166,Nursing care-permanent -other,Controllable Customer & Client Receipts,7003019167,12/04/2023,-821.43
Buckinghamshire Council,Adults and Health,CHERRY TREE NURSING HOME,1000166,Nursing care-permanent -other,Controllable Customer & Client Receipts,7003019167,12/04/2023,-4043.07
Buckinghamshire Council,Adults and Health,CHERRY TREE NURSING HOME,1000166,Nursing care-permanent -other,Controllable Customer & Client Receipts,7003019167,12/04/2023,-255.1
Buckinghamshire Council,Adults and Health,CHERRY TREE NURSING HOME,1000166,Nursing care-permanent -other,Controllable Customer & Client Receipts,7003019167,12/04/2023,-1217.92
Buckinghamshire Council,Adults and Health,CHERRY TREE NURSING HOME,1000166,Nursing care-permanent -other,Controllable Customer & Client Receipts,7003019167,12/04/2023,-112.11
Buckinghamshire Council,Adults and Health,CHERRY TREE NURSING HOME,1000166,Nursing care-permanent -other,Controllable Customer & Client Receipts,7003019167,12/04/2023,-510.49
Buckinghamshire Council,Adults and Health,CHERRY TREE NURSING HOME,1000166,Nursing care-permanent -other,Controllable Customer & Client Receipts,7003019167,12/04/2023,-286.93
Buckinghamshire Council,Adults and Health,CHERRY TREE NURSING HOME,1000166,Nursing care-permanent -other,Controllable Customer & Client Receipts,7003019167,12/04/2023,-1319.87
Buckinghamshire Council,Adults and Health,CHERRY TREE NURSING HOME,1000166,Nursing care-permanent -other,Controllable Customer & Client Receipts,7003019167,12/04/2023,-100.88
Buckinghamshire Council,Adults and Health,CHERRY TREE NURSING HOME,1000166,Nursing care-permanent -other,Controllable Customer & Client Receipts,7003019167,12/04/2023,-525.1
Buckinghamshire Council,Adults and Health,CHERRY TREE NURSING HOME,1000166,Nursing care-permanent -other,Controllable Customer & Client Receipts,7003019167,12/04/2023,-122.82
Buckinghamshire Council,Adults and Health,CHERRY TREE NURSING HOME,1000166,Nursing care-permanent -other,Controllable Customer & Client Receipts,7003019167,12/04/2023,-581.04
Buckinghamshire Council,Adults and Health,CHERRY TREE NURSING HOME,1000166,Res care-permanent - other,Controllable Customer & Client Receipts,7003019167,12/04/2023,192.82
Buckinghamshire Council,Adults and Health,CHERRY TREE NURSING HOME,1000166,Nursing care-permanent -other,Controllable Customer & Client Receipts,7003019167,12/04/2023,-192.82
Buckinghamshire Council,Adults and Health,CHERRY TREE NURSING HOME,1000166,Res care-permanent - other,Controllable Customer & Client Receipts,7003019167,12/04/2023,771.28
Buckinghamshire Council,Adults and Health,CHERRY TREE NURSING HOME,1000166,Nursing care-permanent -other,Controllable Customer & Client Receipts,7003019167,12/04/2023,-771.28
Buckinghamshire Council,Adults and Health,DENHAM MANOR NURSING HOME,1000169,Nursing care-permanent -other,Third Party Payments,7003019168,12/04/2023,573.31
Buckinghamshire Council,Adults and Health,DENHAM MANOR NURSING HOME,1000169,Nurs-Perm EMI Other - Exp,Third Party Payments,7003019168,12/04/2023,800.01
Buckinghamshire Council,Adults and Health,DENHAM MANOR NURSING HOME,1000169,Nursing care-permanent -other,Third Party Payments,7003019168,12/04/2023,573.31
Buckinghamshire Council,Adults and Health,DENHAM MANOR NURSING HOME,1000169,Nursing care-permanent -other,Third Party Payments,7003019168,12/04/2023,581.91
Buckinghamshire Council,Adults and Health,DENHAM MANOR NURSING HOME,1000169,Nursing care-permanent -other,Third Party Payments,7003019168,12/04/2023,573.31
Buckinghamshire Council,Adults and Health,DENHAM MANOR NURSING HOME,1000169,Nursing care-permanent -other,Third Party Payments,7003019168,12/04/2023,581.91
Buckinghamshire Council,Adults and Health,DENHAM MANOR NURSING HOME,1000169,Nursing care-permanent -other,Third Party Payments,7003019168,12/04/2023,794.57
Buckinghamshire Council,Adults and Health,DENHAM MANOR NURSING HOME,1000169,Nurs-Perm EMI Other - Exp,Third Party Payments,7003019168,12/04/2023,3503.43
Buckinghamshire Council,Adults and Health,DENHAM MANOR NURSING HOME,1000169,Nurs-Perm EMI Other - Exp,Third Party Payments,7003019168,12/04/2023,4671.24
Buckinghamshire Council,Adults and Health,DENHAM MANOR NURSING HOME,1000169,Nurs-Perm EMI Other - Exp,Third Party Payments,7003019168,12/04/2023,834.15
Buckinghamshire Council,Adults and Health,DENHAM MANOR NURSING HOME,1000169,Nursing care-permanent -other,Third Party Payments,7003019168,12/04/2023,2821.84
Buckinghamshire Council,Adults and Health,DENHAM MANOR NURSING HOME,1000169,Nurs-Perm EMI Other - Exp,Third Party Payments,7003019168,12/04/2023,4105.7
Buckinghamshire Council,Adults and Health,DENHAM MANOR NURSING HOME,1000169,Nurs-Perm EMI Other - Exp,Third Party Payments,7003019168,12/04/2023,3937.67
Buckinghamshire Council,Adults and Health,DENHAM MANOR NURSING HOME,1000169,Nursing care-permanent -other,Third Party Payments,7003019168,12/04/2023,2821.84
Buckinghamshire Council,Adults and Health,DENHAM MANOR NURSING HOME,1000169,Nursing care-permanent -other,Third Party Payments,7003019168,12/04/2023,2864.19
Buckinghamshire Council,Adults and Health,DENHAM MANOR NURSING HOME,1000169,Nursing care-permanent -other,Third Party Payments,7003019168,12/04/2023,2821.84
Buckinghamshire Council,Adults and Health,DENHAM MANOR NURSING HOME,1000169,Nursing care-permanent -other,Third Party Payments,7003019168,12/04/2023,2864.19
Buckinghamshire Council,Adults and Health,DENHAM MANOR NURSING HOME,1000169,Nursing care-permanent -other,Third Party Payments,7003019168,12/04/2023,3910.89
Buckinghamshire Council,Adults and Health,DENHAM MANOR NURSING HOME,1000169,Nursing care-permanent -other,Controllable Customer & Client Receipts,7003019168,12/04/2023,-78.36
Buckinghamshire Council,Adults and Health,DENHAM MANOR NURSING HOME,1000169,Nursing care-permanent -other,Controllable Customer & Client Receipts,7003019168,12/04/2023,-360.44
Buckinghamshire Council,Adults and Health,DENHAM MANOR NURSING HOME,1000169,Nursing care-permanent -other,Controllable Customer & Client Receipts,7003019168,12/04/2023,-112.11
Buckinghamshire Council,Adults and Health,DENHAM MANOR NURSING HOME,1000169,Nursing care-permanent -other,Controllable Customer & Client Receipts,7003019168,12/04/2023,-527.07
Buckinghamshire Council,Adults and Health,DENHAM MANOR NURSING HOME,1000169,Nursing care-permanent -other,Controllable Customer & Client Receipts,7003019168,12/04/2023,-88.21
Buckinghamshire Council,Adults and Health,DENHAM MANOR NURSING HOME,1000169,Nursing care-permanent -other,Controllable Customer & Client Receipts,7003019168,12/04/2023,-418.31
Buckinghamshire Council,Adults and Health,DENHAM MANOR NURSING HOME,1000169,Nursing care-permanent -other,Controllable Customer & Client Receipts,7003019168,12/04/2023,-90.11
Buckinghamshire Council,Adults and Health,DENHAM MANOR NURSING HOME,1000169,Nursing care-permanent -other,Controllable Customer & Client Receipts,7003019168,12/04/2023,-439.99
Buckinghamshire Council,Adults and Health,DENHAM MANOR NURSING HOME,1000169,Nursing care-permanent -other,Controllable Customer & Client Receipts,7003019168,12/04/2023,-133.05
Buckinghamshire Council,Adults and Health,DENHAM MANOR NURSING HOME,1000169,Nursing care-permanent -other,Controllable Customer & Client Receipts,7003019168,12/04/2023,-629.03
Buckinghamshire Council,Adults and Health,DENHAM MANOR NURSING HOME,1000169,Nursing care-permanent -other,Controllable Customer & Client Receipts,7003019168,12/04/2023,-89.25
Buckinghamshire Council,Adults and Health,DENHAM MANOR NURSING HOME,1000169,Nursing care-permanent -other,Controllable Customer & Client Receipts,7003019168,12/04/2023,-442.25
Buckinghamshire Council,Adults and Health,DENHAM MANOR NURSING HOME,1000169,Nursing care-permanent -other,Controllable Customer & Client Receipts,7003019168,12/04/2023,-112.44
Buckinghamshire Council,Adults and Health,DENHAM MANOR NURSING HOME,1000169,Nursing care-permanent -other,Controllable Customer & Client Receipts,7003019168,12/04/2023,-546.3
Buckinghamshire Council,Adults and Health,Ambient Support Limited,1000171,Extra Care,Third Party Payments,7003019154,12/04/2023,186.21
Buckinghamshire Council,Adults and Health,Ambient Support Limited,1000171,Extra Care,Third Party Payments,7003019154,12/04/2023,186.21
Buckinghamshire Council,Adults and Health,Ambient Support Limited,1000171,Extra Care,Third Party Payments,7003019154,12/04/2023,1862.14
Buckinghamshire Council,Adults and Health,Ambient Support Limited,1000171,Extra Care,Third Party Payments,7003019154,12/04/2023,100.71
Buckinghamshire Council,Adults and Health,Ambient Support Limited,1000171,Extra Care,Third Party Payments,7003019154,12/04/2023,36.59
Buckinghamshire Council,Adults and Health,Ambient Support Limited,1000171,Extra Care,Third Party Payments,7003019154,12/04/2023,935.21
Buckinghamshire Council,Adults and Health,Ambient Support Limited,1000171,Extra Care,Third Party Payments,7003019154,12/04/2023,935.21
Buckinghamshire Council,Adults and Health,Ambient Support Limited,1000171,Extra Care,Third Party Payments,7003019154,12/04/2023,9352.13
Buckinghamshire Council,Adults and Health,Ambient Support Limited,1000171,Extra Care,Third Party Payments,7003019154,12/04/2023,323.19
Buckinghamshire Council,Adults and Health,Ambient Support Limited,1000171,Extra Care,Third Party Payments,7003019154,12/04/2023,180.12
Buckinghamshire Council,Adults and Health,Ambient Support Limited,1000171,Extra Care,Third Party Payments,7003019155,12/04/2023,186.21
Buckinghamshire Council,Adults and Health,Ambient Support Limited,1000171,Extra Care,Third Party Payments,7003019155,12/04/2023,186.21
Buckinghamshire Council,Adults and Health,Ambient Support Limited,1000171,Extra Care,Third Party Payments,7003019155,12/04/2023,186.21
Buckinghamshire Council,Adults and Health,Ambient Support Limited,1000171,Extra Care,Third Party Payments,7003019155,12/04/2023,186.21
Buckinghamshire Council,Adults and Health,Ambient Support Limited,1000171,Extra Care,Third Party Payments,7003019155,12/04/2023,186.21
Buckinghamshire Council,Adults and Health,Ambient Support Limited,1000171,Extra Care,Third Party Payments,7003019155,12/04/2023,186.21
Buckinghamshire Council,Adults and Health,Ambient Support Limited,1000171,Extra Care,Third Party Payments,7003019155,12/04/2023,186.21
Buckinghamshire Council,Adults and Health,Ambient Support Limited,1000171,Extra Care,Third Party Payments,7003019155,12/04/2023,186.21
Buckinghamshire Council,Adults and Health,Ambient Support Limited,1000171,Extra Care,Third Party Payments,7003019155,12/04/2023,186.21
Buckinghamshire Council,Adults and Health,Ambient Support Limited,1000171,Extra Care,Third Party Payments,7003019155,12/04/2023,558.64
Buckinghamshire Council,Adults and Health,Ambient Support Limited,1000171,Extra Care,Third Party Payments,7003019155,12/04/2023,93.25
Buckinghamshire Council,Adults and Health,Ambient Support Limited,1000171,Extra Care,Third Party Payments,7003019155,12/04/2023,26.11
Buckinghamshire Council,Adults and Health,Ambient Support Limited,1000171,Extra Care,Third Party Payments,7003019155,12/04/2023,153.41
Buckinghamshire Council,Adults and Health,Ambient Support Limited,1000171,Extra Care,Third Party Payments,7003019155,12/04/2023,133.4
Buckinghamshire Council,Adults and Health,Ambient Support Limited,1000171,Extra Care,Third Party Payments,7003019155,12/04/2023,174.07
Buckinghamshire Council,Adults and Health,Ambient Support Limited,1000171,Extra Care,Third Party Payments,7003019155,12/04/2023,74.6
Buckinghamshire Council,Adults and Health,Ambient Support Limited,1000171,Extra Care,Third Party Payments,7003019155,12/04/2023,33.57
Buckinghamshire Council,Adults and Health,Ambient Support Limited,1000171,Extra Care,Third Party Payments,7003019155,12/04/2023,52.27
Buckinghamshire Council,Adults and Health,Ambient Support Limited,1000171,Extra Care,Third Party Payments,7003019155,12/04/2023,935.21
Buckinghamshire Council,Adults and Health,Ambient Support Limited,1000171,Extra Care,Third Party Payments,7003019155,12/04/2023,935.21
Buckinghamshire Council,Adults and Health,Ambient Support Limited,1000171,Extra Care,Third Party Payments,7003019155,12/04/2023,935.21
Buckinghamshire Council,Adults and Health,Ambient Support Limited,1000171,Extra Care,Third Party Payments,7003019155,12/04/2023,935.21
Buckinghamshire Council,Adults and Health,Ambient Support Limited,1000171,Extra Care,Third Party Payments,7003019155,12/04/2023,935.21
Buckinghamshire Council,Adults and Health,Ambient Support Limited,1000171,Extra Care,Third Party Payments,7003019155,12/04/2023,935.21
Buckinghamshire Council,Adults and Health,Ambient Support Limited,1000171,Extra Care,Third Party Payments,7003019155,12/04/2023,935.21
Buckinghamshire Council,Adults and Health,Ambient Support Limited,1000171,Extra Care,Third Party Payments,7003019155,12/04/2023,935.21
Buckinghamshire Council,Adults and Health,Ambient Support Limited,1000171,Extra Care,Third Party Payments,7003019155,12/04/2023,935.21
Buckinghamshire Council,Adults and Health,Ambient Support Limited,1000171,Extra Care,Third Party Payments,7003019155,12/04/2023,2805.64
Buckinghamshire Council,Adults and Health,Ambient Support Limited,1000171,Extra Care,Third Party Payments,7003019155,12/04/2023,299.25
Buckinghamshire Council,Adults and Health,Ambient Support Limited,1000171,Extra Care,Third Party Payments,7003019155,12/04/2023,83.79
Buckinghamshire Council,Adults and Health,Ambient Support Limited,1000171,Extra Care,Third Party Payments,7003019155,12/04/2023,492.49
Buckinghamshire Council,Adults and Health,Ambient Support Limited,1000171,Extra Care,Third Party Payments,7003019155,12/04/2023,428.25
Buckinghamshire Council,Adults and Health,Ambient Support Limited,1000171,Extra Care,Third Party Payments,7003019155,12/04/2023,558.6
Buckinghamshire Council,Adults and Health,Ambient Support Limited,1000171,Extra Care,Third Party Payments,7003019155,12/04/2023,367.08
Buckinghamshire Council,Adults and Health,Ambient Support Limited,1000171,Extra Care,Third Party Payments,7003019155,12/04/2023,107.73
Buckinghamshire Council,Adults and Health,Ambient Support Limited,1000171,Extra Care,Third Party Payments,7003019155,12/04/2023,257.27
Buckinghamshire Council,Adults and Health,Ambient Support Limited,1000171,Extra Care,Third Party Payments,7003019156,12/04/2023,151.25
Buckinghamshire Council,Adults and Health,Ambient Support Limited,1000171,Extra Care,Third Party Payments,7003019156,12/04/2023,151.25
Buckinghamshire Council,Adults and Health,Ambient Support Limited,1000171,Extra Care,Third Party Payments,7003019156,12/04/2023,151.25
Buckinghamshire Council,Adults and Health,Ambient Support Limited,1000171,Extra Care,Third Party Payments,7003019156,12/04/2023,151.25
Buckinghamshire Council,Adults and Health,Ambient Support Limited,1000171,Extra Care,Third Party Payments,7003019156,12/04/2023,151.25
Buckinghamshire Council,Adults and Health,Ambient Support Limited,1000171,Extra Care,Third Party Payments,7003019156,12/04/2023,151.25
Buckinghamshire Council,Adults and Health,Ambient Support Limited,1000171,Extra Care,Third Party Payments,7003019156,12/04/2023,151.25
Buckinghamshire Council,Adults and Health,Ambient Support Limited,1000171,Extra Care,Third Party Payments,7003019156,12/04/2023,151.25
Buckinghamshire Council,Adults and Health,Ambient Support Limited,1000171,Extra Care,Third Party Payments,7003019156,12/04/2023,605
Buckinghamshire Council,Adults and Health,Ambient Support Limited,1000171,Extra Care,Third Party Payments,7003019156,12/04/2023,111.9
Buckinghamshire Council,Adults and Health,Ambient Support Limited,1000171,Extra Care,Third Party Payments,7003019156,12/04/2023,82.06
Buckinghamshire Council,Adults and Health,Ambient Support Limited,1000171,Extra Care,Third Party Payments,7003019156,12/04/2023,141.74
Buckinghamshire Council,Adults and Health,Ambient Support Limited,1000171,Extra Care,Third Party Payments,7003019156,12/04/2023,82.06
Buckinghamshire Council,Adults and Health,Ambient Support Limited,1000171,Extra Care,Third Party Payments,7003019156,12/04/2023,49.66
Buckinghamshire Council,Adults and Health,Ambient Support Limited,1000171,Extra Care,Third Party Payments,7003019156,12/04/2023,37.35
Buckinghamshire Council,Adults and Health,Ambient Support Limited,1000171,Extra Care,Third Party Payments,7003019156,12/04/2023,162.25
Buckinghamshire Council,Adults and Health,Ambient Support Limited,1000171,Extra Care,Third Party Payments,7003019156,12/04/2023,759
Buckinghamshire Council,Adults and Health,Ambient Support Limited,1000171,Extra Care,Third Party Payments,7003019156,12/04/2023,759
Buckinghamshire Council,Adults and Health,Ambient Support Limited,1000171,Extra Care,Third Party Payments,7003019156,12/04/2023,759
Buckinghamshire Council,Adults and Health,Ambient Support Limited,1000171,Extra Care,Third Party Payments,7003019156,12/04/2023,759
Buckinghamshire Council,Adults and Health,Ambient Support Limited,1000171,Extra Care,Third Party Payments,7003019156,12/04/2023,759
Buckinghamshire Council,Adults and Health,Ambient Support Limited,1000171,Extra Care,Third Party Payments,7003019156,12/04/2023,759
Buckinghamshire Council,Adults and Health,Ambient Support Limited,1000171,Extra Care,Third Party Payments,7003019156,12/04/2023,759
Buckinghamshire Council,Adults and Health,Ambient Support Limited,1000171,Extra Care,Third Party Payments,7003019156,12/04/2023,759
Buckinghamshire Council,Adults and Health,Ambient Support Limited,1000171,Extra Care,Third Party Payments,7003019156,12/04/2023,3036
Buckinghamshire Council,Adults and Health,Ambient Support Limited,1000171,Extra Care,Third Party Payments,7003019156,12/04/2023,359.1
Buckinghamshire Council,Adults and Health,Ambient Support Limited,1000171,Extra Care,Third Party Payments,7003019156,12/04/2023,263.34
Buckinghamshire Council,Adults and Health,Ambient Support Limited,1000171,Extra Care,Third Party Payments,7003019156,12/04/2023,646.38
Buckinghamshire Council,Adults and Health,Ambient Support Limited,1000171,Extra Care,Third Party Payments,7003019156,12/04/2023,263.34
Buckinghamshire Council,Adults and Health,Ambient Support Limited,1000171,Extra Care,Third Party Payments,7003019156,12/04/2023,244.46
Buckinghamshire Council,Adults and Health,Ambient Support Limited,1000171,Extra Care,Third Party Payments,7003019156,12/04/2023,183.77
Buckinghamshire Council,Adults and Health,Ambient Support Limited,1000171,Extra Care,Third Party Payments,7003019156,12/04/2023,520.8
Buckinghamshire Council,Adults and Health,Ambient Support Limited,1000171,Res care-permanent - other,Third Party Payments,7003019169,12/04/2023,542.5
Buckinghamshire Council,Adults and Health,Ambient Support Limited,1000171,Res care-permanent - other,Third Party Payments,7003019169,12/04/2023,2366.2
Buckinghamshire Council,Adults and Health,Ambient Support Limited,1000171,Residential  Care-Permanent Block - Othe,Third Party Payments,7003019169,12/04/2023,354.93
Buckinghamshire Council,Adults and Health,Ambient Support Limited,1000171,Res-Perm EMI-Other - Exp,Third Party Payments,7003019169,12/04/2023,366.12
Buckinghamshire Council,Adults and Health,Ambient Support Limited,1000171,Residential  Care-Permanent Block - Othe,Third Party Payments,7003019169,12/04/2023,-4027.32
Buckinghamshire Council,Adults and Health,Ambient Support Limited,1000171,Res-Perm EMI-Other - Exp,Third Party Payments,7003019169,12/04/2023,1098.36
Buckinghamshire Council,Adults and Health,Ambient Support Limited,1000171,Res-Perm EMI-Other - Exp,Third Party Payments,7003019169,12/04/2023,-1098.36
Buckinghamshire Council,Adults and Health,Ambient Support Limited,1000171,Res-Perm EMI-Other - Exp,Third Party Payments,7003019169,12/04/2023,1098.36
Buckinghamshire Council,Adults and Health,Ambient Support Limited,1000171,Res-Perm EMI-Other - Exp,Third Party Payments,7003019169,12/04/2023,-1098.36
Buckinghamshire Council,Adults and Health,Ambient Support Limited,1000171,Res-Perm EMI-Other - Exp,Third Party Payments,7003019169,12/04/2023,1098.36
Buckinghamshire Council,Adults and Health,Ambient Support Limited,1000171,Res-Perm EMI-Other - Exp,Third Party Payments,7003019169,12/04/2023,-1098.36
Buckinghamshire Council,Adults and Health,Ambient Support Limited,1000171,Res-Perm EMI-Other - Exp,Third Party Payments,7003019169,12/04/2023,1098.36
Buckinghamshire Council,Adults and Health,Ambient Support Limited,1000171,Res-Perm EMI-Other - Exp,Third Party Payments,7003019169,12/04/2023,-1098.36
Buckinghamshire Council,Adults and Health,Ambient Support Limited,1000171,Res-Perm EMI-Other - Exp,Third Party Payments,7003019169,12/04/2023,1098.36
Buckinghamshire Council,Adults and Health,Ambient Support Limited,1000171,Res-Perm EMI-Other - Exp,Third Party Payments,7003019169,12/04/2023,-1098.36
Buckinghamshire Council,Adults and Health,Ambient Support Limited,1000171,Res-Perm EMI-Other - Exp,Third Party Payments,7003019169,12/04/2023,1098.36
Buckinghamshire Council,Adults and Health,Ambient Support Limited,1000171,Res-Perm EMI-Other - Exp,Third Party Payments,7003019169,12/04/2023,-1098.36
Buckinghamshire Council,Adults and Health,Ambient Support Limited,1000171,Res-Perm EMI-Other - Exp,Third Party Payments,7003019169,12/04/2023,1098.36
Buckinghamshire Council,Adults and Health,Ambient Support Limited,1000171,Res-Perm EMI-Other - Exp,Third Party Payments,7003019169,12/04/2023,-1098.36
Buckinghamshire Council,Adults and Health,Ambient Support Limited,1000171,Res-Perm EMI-Other - Exp,Third Party Payments,7003019169,12/04/2023,1098.36
Buckinghamshire Council,Adults and Health,Ambient Support Limited,1000171,Res-Perm EMI-Other - Exp,Third Party Payments,7003019169,12/04/2023,-1098.36
Buckinghamshire Council,Adults and Health,Ambient Support Limited,1000171,Res-Perm EMI-Other - Exp,Third Party Payments,7003019169,12/04/2023,1098.36
Buckinghamshire Council,Adults and Health,Ambient Support Limited,1000171,Res-Perm EMI-Other - Exp,Third Party Payments,7003019169,12/04/2023,-1098.36
Buckinghamshire Council,Adults and Health,Ambient Support Limited,1000171,Res-Perm EMI-Other - Exp,Third Party Payments,7003019169,12/04/2023,1098.36
Buckinghamshire Council,Adults and Health,Ambient Support Limited,1000171,Res-Perm EMI-Other - Exp,Third Party Payments,7003019169,12/04/2023,-1098.36
Buckinghamshire Council,Adults and Health,Ambient Support Limited,1000171,Res-Perm EMI-Other - Exp,Third Party Payments,7003019169,12/04/2023,1098.36
Buckinghamshire Council,Adults and Health,Ambient Support Limited,1000171,Res-Perm EMI-Other - Exp,Third Party Payments,7003019169,12/04/2023,-1098.36
Buckinghamshire Council,Adults and Health,Ambient Support Limited,1000171,Res-Perm EMI-Other - Exp,Third Party Payments,7003019169,12/04/2023,1098.36
Buckinghamshire Council,Adults and Health,Ambient Support Limited,1000171,Res-Perm EMI-Other - Exp,Third Party Payments,7003019169,12/04/2023,-1098.36
Buckinghamshire Council,Adults and Health,Ambient Support Limited,1000171,Res-Perm EMI-Other - Exp,Third Party Payments,7003019169,12/04/2023,1098.36
Buckinghamshire Council,Adults and Health,Ambient Support Limited,1000171,Res-Perm EMI-Other - Exp,Third Party Payments,7003019169,12/04/2023,-1098.36
Buckinghamshire Council,Adults and Health,Ambient Support Limited,1000171,Res-Perm EMI-Other - Exp,Third Party Payments,7003019169,12/04/2023,1098.36
Buckinghamshire Council,Adults and Health,Ambient Support Limited,1000171,Res-Perm EMI-Other - Exp,Third Party Payments,7003019169,12/04/2023,-1098.36
Buckinghamshire Council,Adults and Health,Ambient Support Limited,1000171,Res-Perm EMI-Other - Exp,Third Party Payments,7003019169,12/04/2023,1098.36
Buckinghamshire Council,Adults and Health,Ambient Support Limited,1000171,Res-Perm EMI-Other - Exp,Third Party Payments,7003019169,12/04/2023,-1098.36
Buckinghamshire Council,Adults and Health,Ambient Support Limited,1000171,Res-Perm EMI-Other - Exp,Third Party Payments,7003019169,12/04/2023,366.12
Buckinghamshire Council,Adults and Health,Ambient Support Limited,1000171,Res-Perm EMI-Other - Exp,Third Party Payments,7003019169,12/04/2023,1098.36
Buckinghamshire Council,Adults and Health,Ambient Support Limited,1000171,Res-Perm EMI-Other - Exp,Third Party Payments,7003019169,12/04/2023,1098.36
Buckinghamshire Council,Adults and Health,Ambient Support Limited,1000171,Res-Perm EMI-Other - Exp,Third Party Payments,7003019169,12/04/2023,1098.36
Buckinghamshire Council,Adults and Health,Ambient Support Limited,1000171,Res-Perm EMI-Other - Exp,Third Party Payments,7003019169,12/04/2023,-1098.36
Buckinghamshire Council,Adults and Health,Ambient Support Limited,1000171,Res-Perm EMI-Other - Exp,Third Party Payments,7003019169,12/04/2023,1098.36
Buckinghamshire Council,Adults and Health,Ambient Support Limited,1000171,Res-Perm EMI-Other - Exp,Third Party Payments,7003019169,12/04/2023,-1098.36
Buckinghamshire Council,Adults and Health,Ambient Support Limited,1000171,Res-Perm EMI-Other - Exp,Third Party Payments,7003019169,12/04/2023,1098.36
Buckinghamshire Council,Adults and Health,Ambient Support Limited,1000171,Res-Perm EMI-Other - Exp,Third Party Payments,7003019169,12/04/2023,-1098.36
Buckinghamshire Council,Adults and Health,Ambient Support Limited,1000171,Res-Perm EMI-Other - Exp,Third Party Payments,7003019169,12/04/2023,1098.36
Buckinghamshire Council,Adults and Health,Ambient Support Limited,1000171,Res-Perm EMI-Other - Exp,Third Party Payments,7003019169,12/04/2023,-1098.36
Buckinghamshire Council,Adults and Health,Ambient Support Limited,1000171,Res-Perm EMI-Other - Exp,Third Party Payments,7003019169,12/04/2023,-1098.36
Buckinghamshire Council,Adults and Health,Ambient Support Limited,1000171,Res-Perm EMI-Other - Exp,Third Party Payments,7003019169,12/04/2023,1098.36
Buckinghamshire Council,Adults and Health,Ambient Support Limited,1000171,Res-Perm EMI-Other - Exp,Third Party Payments,7003019169,12/04/2023,-1098.36
Buckinghamshire Council,Adults and Health,Ambient Support Limited,1000171,Res-Perm EMI-Other - Exp,Third Party Payments,7003019169,12/04/2023,1098.36
Buckinghamshire Council,Adults and Health,Ambient Support Limited,1000171,Res-Perm EMI-Other - Exp,Third Party Payments,7003019169,12/04/2023,-1098.36
Buckinghamshire Council,Adults and Health,Ambient Support Limited,1000171,Res-Perm EMI-Other - Exp,Third Party Payments,7003019169,12/04/2023,1098.36
Buckinghamshire Council,Adults and Health,Ambient Support Limited,1000171,Res-Perm EMI-Other - Exp,Third Party Payments,7003019169,12/04/2023,-1098.36
Buckinghamshire Council,Adults and Health,Ambient Support Limited,1000171,Res-Perm EMI-Other - Exp,Third Party Payments,7003019169,12/04/2023,1098.36
Buckinghamshire Council,Adults and Health,Ambient Support Limited,1000171,Res-Perm EMI-Other - Exp,Third Party Payments,7003019169,12/04/2023,-1098.36
Buckinghamshire Council,Adults and Health,Ambient Support Limited,1000171,Res-Perm EMI-Other - Exp,Third Party Payments,7003019169,12/04/2023,610.2
Buckinghamshire Council,Adults and Health,Ambient Support Limited,1000171,Res-Perm EMI-Other - Exp,Third Party Payments,7003019169,12/04/2023,610.2
Buckinghamshire Council,Adults and Health,Ambient Support Limited,1000171,Res-Perm EMI-Other - Exp,Third Party Payments,7003019169,12/04/2023,610.2
Buckinghamshire Council,Adults and Health,Ambient Support Limited,1000171,Res-Perm EMI-Other - Exp,Third Party Payments,7003019169,12/04/2023,610.2
Buckinghamshire Council,Adults and Health,Ambient Support Limited,1000171,Res-Perm EMI-Other - Exp,Third Party Payments,7003019169,12/04/2023,610.2
Buckinghamshire Council,Adults and Health,Ambient Support Limited,1000171,Res-Perm EMI-Other - Exp,Third Party Payments,7003019169,12/04/2023,610.2
Buckinghamshire Council,Adults and Health,Ambient Support Limited,1000171,Res-Perm EMI-Other - Exp,Third Party Payments,7003019169,12/04/2023,610.2
Buckinghamshire Council,Adults and Health,Ambient Support Limited,1000171,Res-Perm EMI-Other - Exp,Third Party Payments,7003019169,12/04/2023,610.2
Buckinghamshire Council,Adults and Health,Ambient Support Limited,1000171,Res-Perm EMI-Other - Exp,Third Party Payments,7003019169,12/04/2023,610.2
Buckinghamshire Council,Adults and Health,Ambient Support Limited,1000171,Res-Perm EMI-Other - Exp,Third Party Payments,7003019169,12/04/2023,610.2
Buckinghamshire Council,Adults and Health,Ambient Support Limited,1000171,Res-Perm EMI-Other - Exp,Third Party Payments,7003019169,12/04/2023,610.2
Buckinghamshire Council,Adults and Health,Ambient Support Limited,1000171,Res-Perm EMI-Other - Exp,Third Party Payments,7003019169,12/04/2023,610.2
Buckinghamshire Council,Adults and Health,Ambient Support Limited,1000171,Res-Perm EMI-Other - Exp,Third Party Payments,7003019169,12/04/2023,610.2
Buckinghamshire Council,Adults and Health,Ambient Support Limited,1000171,Res-Perm EMI-Other - Exp,Third Party Payments,7003019169,12/04/2023,610.2
Buckinghamshire Council,Adults and Health,Ambient Support Limited,1000171,Res-Perm EMI-Other - Exp,Third Party Payments,7003019169,12/04/2023,610.2
Buckinghamshire Council,Adults and Health,Ambient Support Limited,1000171,Res-Perm EMI-Other - Exp,Third Party Payments,7003019169,12/04/2023,610.2
Buckinghamshire Council,Adults and Health,Ambient Support Limited,1000171,Res-Perm EMI-Other - Exp,Third Party Payments,7003019169,12/04/2023,610.2
Buckinghamshire Council,Adults and Health,Ambient Support Limited,1000171,Res-Perm EMI-Other - Exp,Third Party Payments,7003019169,12/04/2023,3060.84
Buckinghamshire Council,Adults and Health,Ambient Support Limited,1000171,Res-Perm EMI-Other - Exp,Third Party Payments,7003019169,12/04/2023,3060.84
Buckinghamshire Council,Adults and Health,Ambient Support Limited,1000171,Res-Perm EMI-Other - Exp,Third Party Payments,7003019169,12/04/2023,3060.84
Buckinghamshire Council,Adults and Health,Ambient Support Limited,1000171,Res-Perm EMI-Other - Exp,Third Party Payments,7003019169,12/04/2023,3060.84
Buckinghamshire Council,Adults and Health,Ambient Support Limited,1000171,Res-Perm EMI-Other - Exp,Third Party Payments,7003019169,12/04/2023,3060.84
Buckinghamshire Council,Adults and Health,Ambient Support Limited,1000171,Res-Perm EMI-Other - Exp,Third Party Payments,7003019169,12/04/2023,3060.84
Buckinghamshire Council,Adults and Health,Ambient Support Limited,1000171,Res-Perm EMI-Other - Exp,Third Party Payments,7003019169,12/04/2023,3060.84
Buckinghamshire Council,Adults and Health,Ambient Support Limited,1000171,Res-Perm EMI-Other - Exp,Third Party Payments,7003019169,12/04/2023,3060.84
Buckinghamshire Council,Adults and Health,Ambient Support Limited,1000171,Res-Perm EMI-Other - Exp,Third Party Payments,7003019169,12/04/2023,3060.84
Buckinghamshire Council,Adults and Health,Ambient Support Limited,1000171,Res-Perm EMI-Other - Exp,Third Party Payments,7003019169,12/04/2023,3060.84
Buckinghamshire Council,Adults and Health,Ambient Support Limited,1000171,Res-Perm EMI-Other - Exp,Third Party Payments,7003019169,12/04/2023,3060.84
Buckinghamshire Council,Adults and Health,Ambient Support Limited,1000171,Res-Perm EMI-Other - Exp,Third Party Payments,7003019169,12/04/2023,3060.84
Buckinghamshire Council,Adults and Health,Ambient Support Limited,1000171,Res-Perm EMI-Other - Exp,Third Party Payments,7003019169,12/04/2023,3060.84
Buckinghamshire Council,Adults and Health,Ambient Support Limited,1000171,Res-Perm EMI-Other - Exp,Third Party Payments,7003019169,12/04/2023,3060.84
Buckinghamshire Council,Adults and Health,Ambient Support Limited,1000171,Res-Perm EMI-Other - Exp,Third Party Payments,7003019169,12/04/2023,3060.84
Buckinghamshire Council,Adults and Health,Ambient Support Limited,1000171,Res-Perm EMI-Other - Exp,Third Party Payments,7003019169,12/04/2023,3060.84
Buckinghamshire Council,Adults and Health,Ambient Support Limited,1000171,Res-Perm EMI-Other - Exp,Third Party Payments,7003019169,12/04/2023,3060.84
Buckinghamshire Council,Adults and Health,Ambient Support Limited,1000171,Res-Perm EMI-Other - Exp,Third Party Payments,7003019169,12/04/2023,610.2
Buckinghamshire Council,Adults and Health,Ambient Support Limited,1000171,Res-Perm EMI-Other - Exp,Third Party Payments,7003019169,12/04/2023,3060.84
Buckinghamshire Council,Adults and Health,Ambient Support Limited,1000171,Res-Perm EMI-Other - Exp,Third Party Payments,7003019169,12/04/2023,610.2
Buckinghamshire Council,Adults and Health,Ambient Support Limited,1000171,Res-Perm EMI-Other - Exp,Third Party Payments,7003019169,12/04/2023,610.2
Buckinghamshire Council,Adults and Health,Ambient Support Limited,1000171,Res-Perm EMI-Other - Exp,Third Party Payments,7003019169,12/04/2023,610.2
Buckinghamshire Council,Adults and Health,Ambient Support Limited,1000171,Res-Perm EMI-Other - Exp,Third Party Payments,7003019169,12/04/2023,3060.84
Buckinghamshire Council,Adults and Health,Ambient Support Limited,1000171,Res-Perm EMI-Other - Exp,Third Party Payments,7003019169,12/04/2023,3060.84
Buckinghamshire Council,Adults and Health,Ambient Support Limited,1000171,Res-Perm EMI-Other - Exp,Third Party Payments,7003019169,12/04/2023,3060.84
Buckinghamshire Council,Adults and Health,Ambient Support Limited,1000171,Res-Perm EMI-Other - Exp,Third Party Payments,7003019169,12/04/2023,610.2
Buckinghamshire Council,Adults and Health,Ambient Support Limited,1000171,Res-Perm EMI-Other - Exp,Third Party Payments,7003019169,12/04/2023,610.2
Buckinghamshire Council,Adults and Health,Ambient Support Limited,1000171,Res-Perm EMI-Other - Exp,Third Party Payments,7003019169,12/04/2023,610.2
Buckinghamshire Council,Adults and Health,Ambient Support Limited,1000171,Res-Perm EMI-Other - Exp,Third Party Payments,7003019169,12/04/2023,3060.84
Buckinghamshire Council,Adults and Health,Ambient Support Limited,1000171,Res-Perm EMI-Other - Exp,Third Party Payments,7003019169,12/04/2023,3060.84
Buckinghamshire Council,Adults and Health,Ambient Support Limited,1000171,Res-Perm EMI-Other - Exp,Third Party Payments,7003019169,12/04/2023,3060.84
Buckinghamshire Council,Adults and Health,Ambient Support Limited,1000171,Res-Perm EMI-Other - Exp,Third Party Payments,7003019169,12/04/2023,610.2
Buckinghamshire Council,Adults and Health,Ambient Support Limited,1000171,Res-Perm EMI-Other - Exp,Third Party Payments,7003019169,12/04/2023,3060.84
Buckinghamshire Council,Adults and Health,Ambient Support Limited,1000171,Residential  Care-Permanent Block - Othe,Third Party Payments,7003019169,12/04/2023,2196.72
Buckinghamshire Council,Adults and Health,Ambient Support Limited,1000171,Residential  Care-Permanent Block - Othe,Third Party Payments,7003019169,12/04/2023,1220.4
Buckinghamshire Council,Adults and Health,Ambient Support Limited,1000171,Residential  Care-Permanent Block - Othe,Third Party Payments,7003019169,12/04/2023,6121.68
Buckinghamshire Council,Adults and Health,Ambient Support Limited,1000171,Res care-permanent - other,Third Party Payments,7003019169,12/04/2023,-434
Buckinghamshire Council,Adults and Health,Ambient Support Limited,1000171,Res care-permanent - other,Third Party Payments,7003019169,12/04/2023,434
Buckinghamshire Council,Adults and Health,Ambient Support Limited,1000171,Res care-permanent - other,Third Party Payments,7003019169,12/04/2023,-434
Buckinghamshire Council,Adults and Health,Ambient Support Limited,1000171,Res care-permanent - other,Third Party Payments,7003019169,12/04/2023,434
Buckinghamshire Council,Adults and Health,Ambient Support Limited,1000171,Res care-permanent - other,Third Party Payments,7003019169,12/04/2023,-434
Buckinghamshire Council,Adults and Health,Ambient Support Limited,1000171,Res care-permanent - other,Third Party Payments,7003019169,12/04/2023,434
Buckinghamshire Council,Adults and Health,Ambient Support Limited,1000171,Res care-permanent - other,Third Party Payments,7003019169,12/04/2023,-434
Buckinghamshire Council,Adults and Health,Ambient Support Limited,1000171,Res care-permanent - other,Third Party Payments,7003019169,12/04/2023,217
Buckinghamshire Council,Adults and Health,Ambient Support Limited,1000171,Res care-permanent - other,Third Party Payments,7003019169,12/04/2023,-434
Buckinghamshire Council,Adults and Health,Ambient Support Limited,1000171,Res care-permanent - other,Third Party Payments,7003019169,12/04/2023,434
Buckinghamshire Council,Adults and Health,Ambient Support Limited,1000171,Res care-permanent - other,Third Party Payments,7003019169,12/04/2023,-434
Buckinghamshire Council,Adults and Health,Ambient Support Limited,1000171,Res care-permanent - other,Third Party Payments,7003019169,12/04/2023,434
Buckinghamshire Council,Adults and Health,Ambient Support Limited,1000171,Res care-permanent - other,Third Party Payments,7003019169,12/04/2023,-434
Buckinghamshire Council,Adults and Health,Ambient Support Limited,1000171,Res care-permanent - other,Third Party Payments,7003019169,12/04/2023,434
Buckinghamshire Council,Adults and Health,Ambient Support Limited,1000171,Res care-permanent - other,Third Party Payments,7003019169,12/04/2023,-434
Buckinghamshire Council,Adults and Health,Ambient Support Limited,1000171,Res care-permanent - other,Third Party Payments,7003019169,12/04/2023,325.5
Buckinghamshire Council,Adults and Health,Ambient Support Limited,1000171,Res care-permanent - other,Third Party Payments,7003019169,12/04/2023,-434
Buckinghamshire Council,Adults and Health,Ambient Support Limited,1000171,Res care-permanent - other,Third Party Payments,7003019169,12/04/2023,434
Buckinghamshire Council,Adults and Health,Ambient Support Limited,1000171,Res care-permanent - other,Third Party Payments,7003019169,12/04/2023,-434
Buckinghamshire Council,Adults and Health,Ambient Support Limited,1000171,Res care-permanent - other,Third Party Payments,7003019169,12/04/2023,434
Buckinghamshire Council,Adults and Health,Ambient Support Limited,1000171,Res care-permanent - other,Third Party Payments,7003019169,12/04/2023,-434
Buckinghamshire Council,Adults and Health,Ambient Support Limited,1000171,Res care-permanent - other,Third Party Payments,7003019169,12/04/2023,542.5
Buckinghamshire Council,Adults and Health,Ambient Support Limited,1000171,Res care-permanent - other,Third Party Payments,7003019169,12/04/2023,542.5
Buckinghamshire Council,Adults and Health,Ambient Support Limited,1000171,Res care-permanent - other,Third Party Payments,7003019169,12/04/2023,542.5
Buckinghamshire Council,Adults and Health,Ambient Support Limited,1000171,Res care-permanent - other,Third Party Payments,7003019169,12/04/2023,542.5
Buckinghamshire Council,Adults and Health,Ambient Support Limited,1000171,Res care-permanent - other,Third Party Payments,7003019169,12/04/2023,542.5
Buckinghamshire Council,Adults and Health,Ambient Support Limited,1000171,Res care-permanent - other,Third Party Payments,7003019169,12/04/2023,108.5
Buckinghamshire Council,Adults and Health,Ambient Support Limited,1000171,Res care-permanent - other,Third Party Payments,7003019169,12/04/2023,542.5
Buckinghamshire Council,Adults and Health,Ambient Support Limited,1000171,Res care-permanent - other,Third Party Payments,7003019169,12/04/2023,2721.13
Buckinghamshire Council,Adults and Health,Ambient Support Limited,1000171,Res care-permanent - other,Third Party Payments,7003019169,12/04/2023,2721.13
Buckinghamshire Council,Adults and Health,Ambient Support Limited,1000171,Res care-permanent - other,Third Party Payments,7003019169,12/04/2023,2721.13
Buckinghamshire Council,Adults and Health,Ambient Support Limited,1000171,Res care-permanent - other,Third Party Payments,7003019169,12/04/2023,2721.13
Buckinghamshire Council,Adults and Health,Ambient Support Limited,1000171,Res care-permanent - other,Third Party Payments,7003019169,12/04/2023,2721.13
Buckinghamshire Council,Adults and Health,Ambient Support Limited,1000171,Res care-permanent - other,Third Party Payments,7003019169,12/04/2023,2721.13
Buckinghamshire Council,Adults and Health,Ambient Support Limited,1000171,Res care-permanent - other,Third Party Payments,7003019169,12/04/2023,2721.13
Buckinghamshire Council,Adults and Health,Ambient Support Limited,1000171,Res care-permanent - other,Third Party Payments,7003019169,12/04/2023,542.5
Buckinghamshire Council,Adults and Health,Ambient Support Limited,1000171,Res care-permanent - other,Third Party Payments,7003019169,12/04/2023,2721.13
Buckinghamshire Council,Adults and Health,Ambient Support Limited,1000171,Res care-permanent - other,Third Party Payments,7003019169,12/04/2023,542.5
Buckinghamshire Council,Adults and Health,Ambient Support Limited,1000171,Res care-permanent - other,Third Party Payments,7003019169,12/04/2023,2721.13
Buckinghamshire Council,Adults and Health,Ambient Support Limited,1000171,Residential  Care-Permanent Block - Othe,Third Party Payments,7003019169,12/04/2023,2495.5
Buckinghamshire Council,Adults and Health,Ambient Support Limited,1000171,Residential  Care-Permanent Block - Othe,Third Party Payments,7003019169,12/04/2023,-1736
Buckinghamshire Council,Adults and Health,Ambient Support Limited,1000171,Residential  Care-Permanent Block - Othe,Third Party Payments,7003019169,12/04/2023,3689
Buckinghamshire Council,Adults and Health,Ambient Support Limited,1000171,Residential  Care-Permanent Block - Othe,Third Party Payments,7003019169,12/04/2023,16326.78
Buckinghamshire Council,Adults and Health,Ambient Support Limited,1000171,Res care-permanent - other,Controllable Customer & Client Receipts,7003019169,12/04/2023,-115.28
Buckinghamshire Council,Adults and Health,Ambient Support Limited,1000171,Res care-permanent - other,Controllable Customer & Client Receipts,7003019169,12/04/2023,-544.2
Buckinghamshire Council,Adults and Health,Ambient Support Limited,1000171,Res care-permanent - other,Controllable Customer & Client Receipts,7003019169,12/04/2023,-189.34
Buckinghamshire Council,Adults and Health,Ambient Support Limited,1000171,Res care-permanent - other,Controllable Customer & Client Receipts,7003019169,12/04/2023,-907.08
Buckinghamshire Council,Adults and Health,Ambient Support Limited,1000171,Res care-permanent - other,Controllable Customer & Client Receipts,7003019169,12/04/2023,-192
Buckinghamshire Council,Adults and Health,Ambient Support Limited,1000171,Res care-permanent - other,Controllable Customer & Client Receipts,7003019169,12/04/2023,-920.08
Buckinghamshire Council,Adults and Health,Ambient Support Limited,1000171,Res care-permanent - other,Controllable Customer & Client Receipts,7003019169,12/04/2023,-146.95
Buckinghamshire Council,Adults and Health,Ambient Support Limited,1000171,Res care-permanent - other,Controllable Customer & Client Receipts,7003019169,12/04/2023,-712.33
Buckinghamshire Council,Adults and Health,Ambient Support Limited,1000171,Res care-permanent - other,Controllable Customer & Client Receipts,7003019169,12/04/2023,-98.96
Buckinghamshire Council,Adults and Health,Ambient Support Limited,1000171,Res care-permanent - other,Controllable Customer & Client Receipts,7003019169,12/04/2023,-479.96
Buckinghamshire Council,Adults and Health,Ambient Support Limited,1000171,Res care-permanent - other,Controllable Customer & Client Receipts,7003019169,12/04/2023,-271.44
Buckinghamshire Council,Adults and Health,Ambient Support Limited,1000171,Res care-permanent - other,Controllable Customer & Client Receipts,7003019169,12/04/2023,-1303.08
Buckinghamshire Council,Adults and Health,Ambient Support Limited,1000171,Res care-permanent - other,Controllable Customer & Client Receipts,7003019169,12/04/2023,-379.41
Buckinghamshire Council,Adults and Health,Ambient Support Limited,1000171,Res care-permanent - other,Controllable Customer & Client Receipts,7003019169,12/04/2023,-1519.91
Buckinghamshire Council,Adults and Health,Ambient Support Limited,1000171,Res care-permanent - other,Controllable Customer & Client Receipts,7003019169,12/04/2023,-112.11
Buckinghamshire Council,Adults and Health,Ambient Support Limited,1000171,Res care-permanent - other,Controllable Customer & Client Receipts,7003019169,12/04/2023,-533.59
Buckinghamshire Council,Adults and Health,Ambient Support Limited,1000171,Res care-permanent - other,Controllable Customer & Client Receipts,7003019169,12/04/2023,-130.56
Buckinghamshire Council,Adults and Health,Ambient Support Limited,1000171,Res care-permanent - other,Controllable Customer & Client Receipts,7003019169,12/04/2023,-637.46
Buckinghamshire Council,Adults and Health,Ambient Support Limited,1000171,Res care-permanent - other,Controllable Customer & Client Receipts,7003019169,12/04/2023,-158.44
Buckinghamshire Council,Adults and Health,Ambient Support Limited,1000171,Res care-permanent - other,Controllable Customer & Client Receipts,7003019169,12/04/2023,-769.1
Buckinghamshire Council,Adults and Health,Ambient Support Limited,1000171,Res care-permanent - other,Controllable Customer & Client Receipts,7003019169,12/04/2023,-40.76
Buckinghamshire Council,Adults and Health,Ambient Support Limited,1000171,Res care-permanent - other,Controllable Customer & Client Receipts,7003019169,12/04/2023,-197.8
Buckinghamshire Council,Adults and Health,Ambient Support Limited,1000171,Res care-permanent - other,Controllable Customer & Client Receipts,7003019169,12/04/2023,-253.65
Buckinghamshire Council,Adults and Health,Ambient Support Limited,1000171,Res care-permanent - other,Controllable Customer & Client Receipts,7003019169,12/04/2023,-1224.23
Buckinghamshire Council,Adults and Health,Ambient Support Limited,1000171,Res care-permanent - other,Controllable Customer & Client Receipts,7003019169,12/04/2023,-140.42
Buckinghamshire Council,Adults and Health,Ambient Support Limited,1000171,Res care-permanent - other,Controllable Customer & Client Receipts,7003019169,12/04/2023,-681.7
Buckinghamshire Council,Adults and Health,Ambient Support Limited,1000171,Res care-permanent - other,Controllable Customer & Client Receipts,7003019169,12/04/2023,-69.46
Buckinghamshire Council,Adults and Health,Ambient Support Limited,1000171,Res care-permanent - other,Controllable Customer & Client Receipts,7003019169,12/04/2023,-495.55
Buckinghamshire Council,Adults and Health,Ambient Support Limited,1000171,Res care-permanent - other,Controllable Customer & Client Receipts,7003019169,12/04/2023,-180.23
Buckinghamshire Council,Adults and Health,Ambient Support Limited,1000171,Res care-permanent - other,Controllable Customer & Client Receipts,7003019169,12/04/2023,-867.27
Buckinghamshire Council,Adults and Health,Ambient Support Limited,1000171,Res care-permanent - other,Controllable Customer & Client Receipts,7003019169,12/04/2023,-137.08
Buckinghamshire Council,Adults and Health,Ambient Support Limited,1000171,Res care-permanent - other,Controllable Customer & Client Receipts,7003019169,12/04/2023,-667.5
Buckinghamshire Council,Adults and Health,Ambient Support Limited,1000171,Res care-permanent - other,Controllable Customer & Client Receipts,7003019169,12/04/2023,-117.82
Buckinghamshire Council,Adults and Health,Ambient Support Limited,1000171,Res care-permanent - other,Controllable Customer & Client Receipts,7003019169,12/04/2023,-536.78
Buckinghamshire Council,Adults and Health,Ambient Support Limited,1000171,Res care-permanent - other,Controllable Customer & Client Receipts,7003019169,12/04/2023,-56.67
Buckinghamshire Council,Adults and Health,Ambient Support Limited,1000171,Res care-permanent - other,Controllable Customer & Client Receipts,7003019169,12/04/2023,-410.71
Buckinghamshire Council,Adults and Health,Ambient Support Limited,1000171,Res care-permanent - other,Controllable Customer & Client Receipts,7003019169,12/04/2023,-43.05
Buckinghamshire Council,Adults and Health,Ambient Support Limited,1000171,Res care-permanent - other,Controllable Customer & Client Receipts,7003019169,12/04/2023,-210.17
Buckinghamshire Council,Adults and Health,Ambient Support Limited,1000171,Res care-permanent - other,Controllable Customer & Client Receipts,7003019169,12/04/2023,-167.9
Buckinghamshire Council,Adults and Health,Ambient Support Limited,1000171,Res care-permanent - other,Controllable Customer & Client Receipts,7003019169,12/04/2023,-772.34
Buckinghamshire Council,Adults and Health,Ambient Support Limited,1000171,Res care-permanent - other,Controllable Customer & Client Receipts,7003019169,12/04/2023,-178.57
Buckinghamshire Council,Adults and Health,Ambient Support Limited,1000171,Res care-permanent - other,Controllable Customer & Client Receipts,7003019169,12/04/2023,-821.43
Buckinghamshire Council,Adults and Health,Ambient Support Limited,1000171,Res care-permanent - other,Controllable Customer & Client Receipts,7003019169,12/04/2023,-140.64
Buckinghamshire Council,Adults and Health,Ambient Support Limited,1000171,Res care-permanent - other,Controllable Customer & Client Receipts,7003019169,12/04/2023,-683.18
Buckinghamshire Council,Adults and Health,Ambient Support Limited,1000171,Res care-permanent - other,Controllable Customer & Client Receipts,7003019169,12/04/2023,-113.93
Buckinghamshire Council,Adults and Health,Ambient Support Limited,1000171,Res care-permanent - other,Controllable Customer & Client Receipts,7003019169,12/04/2023,-556.27
Buckinghamshire Council,Adults and Health,Ambient Support Limited,1000171,Res care-permanent - other,Controllable Customer & Client Receipts,7003019169,12/04/2023,-114.78
Buckinghamshire Council,Adults and Health,Ambient Support Limited,1000171,Res care-permanent - other,Controllable Customer & Client Receipts,7003019169,12/04/2023,-561.68
Buckinghamshire Council,Adults and Health,Ambient Support Limited,1000171,Res care-permanent - other,Controllable Customer & Client Receipts,7003019169,12/04/2023,-128.95
Buckinghamshire Council,Adults and Health,Ambient Support Limited,1000171,Res care-permanent - other,Controllable Customer & Client Receipts,7003019169,12/04/2023,-629.61
Buckinghamshire Council,Adults and Health,Ambient Support Limited,1000171,Res care-permanent - other,Controllable Customer & Client Receipts,7003019169,12/04/2023,-161.15
Buckinghamshire Council,Adults and Health,Ambient Support Limited,1000171,Res care-permanent - other,Controllable Customer & Client Receipts,7003019169,12/04/2023,-777.13
Buckinghamshire Council,Adults and Health,Ambient Support Limited,1000171,Res care-permanent - other,Controllable Customer & Client Receipts,7003019169,12/04/2023,-112.11
Buckinghamshire Council,Adults and Health,Ambient Support Limited,1000171,Res care-permanent - other,Controllable Customer & Client Receipts,7003019169,12/04/2023,-510.49
Buckinghamshire Council,Adults and Health,Ambient Support Limited,1000171,Res care-permanent - other,Controllable Customer & Client Receipts,7003019169,12/04/2023,-137.89
Buckinghamshire Council,Adults and Health,Ambient Support Limited,1000171,Res care-permanent - other,Controllable Customer & Client Receipts,7003019169,12/04/2023,-673.23
Buckinghamshire Council,Adults and Health,Ambient Support Limited,1000171,Res care-permanent - other,Controllable Customer & Client Receipts,7003019169,12/04/2023,-208.36
Buckinghamshire Council,Adults and Health,Ambient Support Limited,1000171,Res care-permanent - other,Controllable Customer & Client Receipts,7003019169,12/04/2023,-1011.3
Buckinghamshire Council,Adults and Health,Ambient Support Limited,1000171,Res care-permanent - other,Controllable Customer & Client Receipts,7003019169,12/04/2023,-408.42
Buckinghamshire Council,Adults and Health,Ambient Support Limited,1000171,Res care-permanent - other,Controllable Customer & Client Receipts,7003019169,12/04/2023,-627.8
Buckinghamshire Council,Adults and Health,Ambient Support Limited,1000171,Res care-permanent - other,Controllable Customer & Client Receipts,7003019169,12/04/2023,-112.11
Buckinghamshire Council,Adults and Health,Ambient Support Limited,1000171,Res care-permanent - other,Controllable Customer & Client Receipts,7003019169,12/04/2023,-510.49
Buckinghamshire Council,Adults and Health,Ambient Support Limited,1000171,Res care-permanent - other,Controllable Customer & Client Receipts,7003019169,12/04/2023,-147.46
Buckinghamshire Council,Adults and Health,Ambient Support Limited,1000171,Res care-permanent - other,Controllable Customer & Client Receipts,7003019169,12/04/2023,-61.44
Buckinghamshire Council,Adults and Health,Ambient Support Limited,1000171,Res care-permanent - other,Controllable Customer & Client Receipts,7003019169,12/04/2023,-415.3
Buckinghamshire Council,Adults and Health,Ambient Support Limited,1000171,Res care-permanent - other,Controllable Customer & Client Receipts,7003019169,12/04/2023,144.98
Buckinghamshire Council,Adults and Health,Ambient Support Limited,1000171,Res care-permanent - other,Controllable Customer & Client Receipts,7003019169,12/04/2023,434
Buckinghamshire Council,Adults and Health,Ambient Support Limited,1000171,Res care-permanent - other,Controllable Customer & Client Receipts,7003019169,12/04/2023,3940.6
Buckinghamshire Council,Adults and Health,Ambient Support Limited,1000171,Res care-permanent - other,Controllable Customer & Client Receipts,7003019169,12/04/2023,67.26
Buckinghamshire Council,Adults and Health,Ambient Support Limited,1000171,Res care-permanent - other,Controllable Customer & Client Receipts,7003019169,12/04/2023,24.7
Buckinghamshire Council,Adults and Health,Ambient Support Limited,1000171,Res care-permanent - other,Controllable Customer & Client Receipts,7003019169,12/04/2023,-108.51
Buckinghamshire Council,Adults and Health,Ambient Support Limited,1000171,Res care-permanent - other,Controllable Customer & Client Receipts,7003019169,12/04/2023,-45.21
Buckinghamshire Council,Adults and Health,Ambient Support Limited,1000171,Res care-permanent - other,Controllable Customer & Client Receipts,7003019169,12/04/2023,-410.37
Buckinghamshire Council,Adults and Health,Ambient Support Limited,1000171,Res-Perm EMI-Other - Exp,Third Party Payments,7003019170,12/04/2023,610.2
Buckinghamshire Council,Adults and Health,Ambient Support Limited,1000171,Res-Perm EMI-Other - Exp,Third Party Payments,7003019170,12/04/2023,610.2
Buckinghamshire Council,Adults and Health,Ambient Support Limited,1000171,Res care-permanent - other,Third Party Payments,7003019170,12/04/2023,542.5
Buckinghamshire Council,Adults and Health,Ambient Support Limited,1000171,Res-Perm EMI-Other - Exp,Third Party Payments,7003019170,12/04/2023,610.2
Buckinghamshire Council,Adults and Health,Ambient Support Limited,1000171,Res-Perm EMI-Other - Exp,Third Party Payments,7003019170,12/04/2023,610.2
Buckinghamshire Council,Adults and Health,Ambient Support Limited,1000171,Res-Perm EMI-Other - Exp,Third Party Payments,7003019170,12/04/2023,610.2
Buckinghamshire Council,Adults and Health,Ambient Support Limited,1000171,Res-Perm EMI-Other - Exp,Third Party Payments,7003019170,12/04/2023,610.2
Buckinghamshire Council,Adults and Health,Ambient Support Limited,1000171,Res care-permanent - other,Third Party Payments,7003019170,12/04/2023,542.5
Buckinghamshire Council,Adults and Health,Ambient Support Limited,1000171,Res care-permanent - other,Third Party Payments,7003019170,12/04/2023,542.5
Buckinghamshire Council,Adults and Health,Ambient Support Limited,1000171,Res-Perm EMI-Other - Exp,Third Party Payments,7003019170,12/04/2023,610.2
Buckinghamshire Council,Adults and Health,Ambient Support Limited,1000171,Res-Perm EMI-Other - Exp,Third Party Payments,7003019170,12/04/2023,610.2
Buckinghamshire Council,Adults and Health,Ambient Support Limited,1000171,Res-Perm EMI-Other - Exp,Third Party Payments,7003019170,12/04/2023,610.2
Buckinghamshire Council,Adults and Health,Ambient Support Limited,1000171,Res-Perm EMI-Other - Exp,Third Party Payments,7003019170,12/04/2023,610.2
Buckinghamshire Council,Adults and Health,Ambient Support Limited,1000171,Res care-permanent - other,Third Party Payments,7003019170,12/04/2023,542.5
Buckinghamshire Council,Adults and Health,Ambient Support Limited,1000171,Res care-permanent - other,Third Party Payments,7003019170,12/04/2023,542.5
Buckinghamshire Council,Adults and Health,Ambient Support Limited,1000171,Res care-permanent - other,Third Party Payments,7003019170,12/04/2023,542.5
Buckinghamshire Council,Adults and Health,Ambient Support Limited,1000171,Res care-permanent - other,Third Party Payments,7003019170,12/04/2023,542.5
Buckinghamshire Council,Adults and Health,Ambient Support Limited,1000171,Res care-permanent - other,Third Party Payments,7003019170,12/04/2023,542.5
Buckinghamshire Council,Adults and Health,Ambient Support Limited,1000171,Res-Perm EMI-Other - Exp,Third Party Payments,7003019170,12/04/2023,610.2
Buckinghamshire Council,Adults and Health,Ambient Support Limited,1000171,Res-Perm EMI-Other - Exp,Third Party Payments,7003019170,12/04/2023,610.2
Buckinghamshire Council,Adults and Health,Ambient Support Limited,1000171,Res-Perm EMI-Other - Exp,Third Party Payments,7003019170,12/04/2023,610.2
Buckinghamshire Council,Adults and Health,Ambient Support Limited,1000171,Res-Perm EMI-Other - Exp,Third Party Payments,7003019170,12/04/2023,610.2
Buckinghamshire Council,Adults and Health,Ambient Support Limited,1000171,Res-Perm EMI-Other - Exp,Third Party Payments,7003019170,12/04/2023,610.2
Buckinghamshire Council,Adults and Health,Ambient Support Limited,1000171,Res-Perm EMI-Other - Exp,Third Party Payments,7003019170,12/04/2023,610.2
Buckinghamshire Council,Adults and Health,Ambient Support Limited,1000171,Res-Perm EMI-Other - Exp,Third Party Payments,7003019170,12/04/2023,610.2
Buckinghamshire Council,Adults and Health,Ambient Support Limited,1000171,Res-Perm EMI-Other - Exp,Third Party Payments,7003019170,12/04/2023,610.2
Buckinghamshire Council,Adults and Health,Ambient Support Limited,1000171,Res-Perm EMI-Other - Exp,Third Party Payments,7003019170,12/04/2023,610.2
Buckinghamshire Council,Adults and Health,Ambient Support Limited,1000171,Res-Perm EMI-Other - Exp,Third Party Payments,7003019170,12/04/2023,610.2
Buckinghamshire Council,Adults and Health,Ambient Support Limited,1000171,Res care-permanent - other,Third Party Payments,7003019170,12/04/2023,542.5
Buckinghamshire Council,Adults and Health,Ambient Support Limited,1000171,Res care-permanent - other,Third Party Payments,7003019170,12/04/2023,542.5
Buckinghamshire Council,Adults and Health,Ambient Support Limited,1000171,Res care-permanent - other,Third Party Payments,7003019170,12/04/2023,542.5
Buckinghamshire Council,Adults and Health,Ambient Support Limited,1000171,Res care-permanent - other,Third Party Payments,7003019170,12/04/2023,542.5
Buckinghamshire Council,Adults and Health,Ambient Support Limited,1000171,Res care-permanent - other,Third Party Payments,7003019170,12/04/2023,542.5
Buckinghamshire Council,Adults and Health,Ambient Support Limited,1000171,Res care-permanent - other,Third Party Payments,7003019170,12/04/2023,542.5
Buckinghamshire Council,Adults and Health,Ambient Support Limited,1000171,Res-Perm EMI-Other - Exp,Third Party Payments,7003019170,12/04/2023,610.2
Buckinghamshire Council,Adults and Health,Ambient Support Limited,1000171,Residential  Care-Permanent Block - Othe,Third Party Payments,7003019170,12/04/2023,3255
Buckinghamshire Council,Adults and Health,Ambient Support Limited,1000171,Residential  Care-Permanent Block - Othe,Third Party Payments,7003019170,12/04/2023,1586.52
Buckinghamshire Council,Adults and Health,Ambient Support Limited,1000171,Res-Perm EMI-Other - Exp,Third Party Payments,7003019170,12/04/2023,862.99
Buckinghamshire Council,Adults and Health,Ambient Support Limited,1000171,Res care-permanent - other,Third Party Payments,7003019170,12/04/2023,660.71
Buckinghamshire Council,Adults and Health,Ambient Support Limited,1000171,Res-Perm EMI-Other - Exp,Third Party Payments,7003019170,12/04/2023,3060.84
Buckinghamshire Council,Adults and Health,Ambient Support Limited,1000171,Res-Perm EMI-Other - Exp,Third Party Payments,7003019170,12/04/2023,3060.84
Buckinghamshire Council,Adults and Health,Ambient Support Limited,1000171,Res care-permanent - other,Third Party Payments,7003019170,12/04/2023,2721.13
Buckinghamshire Council,Adults and Health,Ambient Support Limited,1000171,Res-Perm EMI-Other - Exp,Third Party Payments,7003019170,12/04/2023,3060.84
Buckinghamshire Council,Adults and Health,Ambient Support Limited,1000171,Res-Perm EMI-Other - Exp,Third Party Payments,7003019170,12/04/2023,3060.84
Buckinghamshire Council,Adults and Health,Ambient Support Limited,1000171,Res-Perm EMI-Other - Exp,Third Party Payments,7003019170,12/04/2023,3060.84
Buckinghamshire Council,Adults and Health,Ambient Support Limited,1000171,Res-Perm EMI-Other - Exp,Third Party Payments,7003019170,12/04/2023,3060.84
Buckinghamshire Council,Adults and Health,Ambient Support Limited,1000171,Res care-permanent - other,Third Party Payments,7003019170,12/04/2023,2721.13
Buckinghamshire Council,Adults and Health,Ambient Support Limited,1000171,Res care-permanent - other,Third Party Payments,7003019170,12/04/2023,2721.13
Buckinghamshire Council,Adults and Health,Ambient Support Limited,1000171,Res-Perm EMI-Other - Exp,Third Party Payments,7003019170,12/04/2023,3060.84
Buckinghamshire Council,Adults and Health,Ambient Support Limited,1000171,Res-Perm EMI-Other - Exp,Third Party Payments,7003019170,12/04/2023,3060.84
Buckinghamshire Council,Adults and Health,Ambient Support Limited,1000171,Res-Perm EMI-Other - Exp,Third Party Payments,7003019170,12/04/2023,3060.84
Buckinghamshire Council,Adults and Health,Ambient Support Limited,1000171,Res-Perm EMI-Other - Exp,Third Party Payments,7003019170,12/04/2023,3060.84
Buckinghamshire Council,Adults and Health,Ambient Support Limited,1000171,Res care-permanent - other,Third Party Payments,7003019170,12/04/2023,2721.13
Buckinghamshire Council,Adults and Health,Ambient Support Limited,1000171,Res care-permanent - other,Third Party Payments,7003019170,12/04/2023,2721.13
Buckinghamshire Council,Adults and Health,Ambient Support Limited,1000171,Res care-permanent - other,Third Party Payments,7003019170,12/04/2023,2721.13
Buckinghamshire Council,Adults and Health,Ambient Support Limited,1000171,Res care-permanent - other,Third Party Payments,7003019170,12/04/2023,2721.13
Buckinghamshire Council,Adults and Health,Ambient Support Limited,1000171,Res care-permanent - other,Third Party Payments,7003019170,12/04/2023,2721.13
Buckinghamshire Council,Adults and Health,Ambient Support Limited,1000171,Res-Perm EMI-Other - Exp,Third Party Payments,7003019170,12/04/2023,3060.84
Buckinghamshire Council,Adults and Health,Ambient Support Limited,1000171,Res-Perm EMI-Other - Exp,Third Party Payments,7003019170,12/04/2023,3060.84
Buckinghamshire Council,Adults and Health,Ambient Support Limited,1000171,Res-Perm EMI-Other - Exp,Third Party Payments,7003019170,12/04/2023,3060.84
Buckinghamshire Council,Adults and Health,Ambient Support Limited,1000171,Res-Perm EMI-Other - Exp,Third Party Payments,7003019170,12/04/2023,3060.84
Buckinghamshire Council,Adults and Health,Ambient Support Limited,1000171,Res-Perm EMI-Other - Exp,Third Party Payments,7003019170,12/04/2023,3060.84
Buckinghamshire Council,Adults and Health,Ambient Support Limited,1000171,Res-Perm EMI-Other - Exp,Third Party Payments,7003019170,12/04/2023,3060.84
Buckinghamshire Council,Adults and Health,Ambient Support Limited,1000171,Res-Perm EMI-Other - Exp,Third Party Payments,7003019170,12/04/2023,3060.84
Buckinghamshire Council,Adults and Health,Ambient Support Limited,1000171,Res-Perm EMI-Other - Exp,Third Party Payments,7003019170,12/04/2023,3060.84
Buckinghamshire Council,Adults and Health,Ambient Support Limited,1000171,Res-Perm EMI-Other - Exp,Third Party Payments,7003019170,12/04/2023,3060.84
Buckinghamshire Council,Adults and Health,Ambient Support Limited,1000171,Res-Perm EMI-Other - Exp,Third Party Payments,7003019170,12/04/2023,3060.84
Buckinghamshire Council,Adults and Health,Ambient Support Limited,1000171,Res care-permanent - other,Third Party Payments,7003019170,12/04/2023,2721.13
Buckinghamshire Council,Adults and Health,Ambient Support Limited,1000171,Res care-permanent - other,Third Party Payments,7003019170,12/04/2023,2721.13
Buckinghamshire Council,Adults and Health,Ambient Support Limited,1000171,Res care-permanent - other,Third Party Payments,7003019170,12/04/2023,2721.13
Buckinghamshire Council,Adults and Health,Ambient Support Limited,1000171,Res care-permanent - other,Third Party Payments,7003019170,12/04/2023,2721.13
Buckinghamshire Council,Adults and Health,Ambient Support Limited,1000171,Res care-permanent - other,Third Party Payments,7003019170,12/04/2023,2721.13
Buckinghamshire Council,Adults and Health,Ambient Support Limited,1000171,Res care-permanent - other,Third Party Payments,7003019170,12/04/2023,2721.13
Buckinghamshire Council,Adults and Health,Ambient Support Limited,1000171,Res-Perm EMI-Other - Exp,Third Party Payments,7003019170,12/04/2023,3060.84
Buckinghamshire Council,Adults and Health,Ambient Support Limited,1000171,Residential  Care-Permanent Block - Othe,Third Party Payments,7003019170,12/04/2023,16326.78
Buckinghamshire Council,Adults and Health,Ambient Support Limited,1000171,Residential  Care-Permanent Block - Othe,Third Party Payments,7003019170,12/04/2023,6121.68
Buckinghamshire Council,Adults and Health,Ambient Support Limited,1000171,Res-Perm EMI-Other - Exp,Third Party Payments,7003019170,12/04/2023,4247.64
Buckinghamshire Council,Adults and Health,Ambient Support Limited,1000171,Res care-permanent - other,Third Party Payments,7003019170,12/04/2023,3252.04
Buckinghamshire Council,Adults and Health,Ambient Support Limited,1000171,Res-Perm EMI-Other - Exp,Third Party Payments,7003019170,12/04/2023,-1918.01
Buckinghamshire Council,Adults and Health,Ambient Support Limited,1000171,Res-Perm EMI-Other - Exp,Third Party Payments,7003019170,12/04/2023,244.08
Buckinghamshire Council,Adults and Health,Ambient Support Limited,1000171,Res-Perm EMI-Other - Exp,Third Party Payments,7003019170,12/04/2023,3060.84
Buckinghamshire Council,Adults and Health,Ambient Support Limited,1000171,Res-Perm EMI-Other - Exp,Third Party Payments,7003019170,12/04/2023,-366.12
Buckinghamshire Council,Adults and Health,Ambient Support Limited,1000171,Res care-permanent - other,Third Party Payments,7003019170,12/04/2023,325.5
Buckinghamshire Council,Adults and Health,Ambient Support Limited,1000171,Res care-permanent - other,Third Party Payments,7003019170,12/04/2023,542.5
Buckinghamshire Council,Adults and Health,Ambient Support Limited,1000171,Res care-permanent - other,Third Party Payments,7003019170,12/04/2023,2721.13
Buckinghamshire Council,Adults and Health,Ambient Support Limited,1000171,Residential  Care-Permanent Block - Othe,Third Party Payments,7003019170,12/04/2023,-325.5
Buckinghamshire Council,Adults and Health,Ambient Support Limited,1000171,Residential  Care-Permanent Block - Othe,Third Party Payments,7003019170,12/04/2023,366.12
Buckinghamshire Council,Adults and Health,Ambient Support Limited,1000171,Res care-permanent - other,Controllable Customer & Client Receipts,7003019170,12/04/2023,-116.53
Buckinghamshire Council,Adults and Health,Ambient Support Limited,1000171,Res care-permanent - other,Controllable Customer & Client Receipts,7003019170,12/04/2023,-550.31
Buckinghamshire Council,Adults and Health,Ambient Support Limited,1000171,Res care-permanent - other,Controllable Customer & Client Receipts,7003019170,12/04/2023,-610.2
Buckinghamshire Council,Adults and Health,Ambient Support Limited,1000171,Res care-permanent - other,Controllable Customer & Client Receipts,7003019170,12/04/2023,-3060.84
Buckinghamshire Council,Adults and Health,Ambient Support Limited,1000171,Res care-permanent - other,Controllable Customer & Client Receipts,7003019170,12/04/2023,-150.65
Buckinghamshire Council,Adults and Health,Ambient Support Limited,1000171,Res care-permanent - other,Controllable Customer & Client Receipts,7003019170,12/04/2023,-723.61
Buckinghamshire Council,Adults and Health,Ambient Support Limited,1000171,Res care-permanent - other,Controllable Customer & Client Receipts,7003019170,12/04/2023,-112.11
Buckinghamshire Council,Adults and Health,Ambient Support Limited,1000171,Res care-permanent - other,Controllable Customer & Client Receipts,7003019170,12/04/2023,-510.49
Buckinghamshire Council,Adults and Health,Ambient Support Limited,1000171,Res care-permanent - other,Controllable Customer & Client Receipts,7003019170,12/04/2023,-110.68
Buckinghamshire Council,Adults and Health,Ambient Support Limited,1000171,Res care-permanent - other,Controllable Customer & Client Receipts,7003019170,12/04/2023,-514.26
Buckinghamshire Council,Adults and Health,Ambient Support Limited,1000171,Res care-permanent - other,Controllable Customer & Client Receipts,7003019170,12/04/2023,-129.53
Buckinghamshire Council,Adults and Health,Ambient Support Limited,1000171,Res care-permanent - other,Controllable Customer & Client Receipts,7003019170,12/04/2023,-613.79
Buckinghamshire Council,Adults and Health,Ambient Support Limited,1000171,Res care-permanent - other,Controllable Customer & Client Receipts,7003019170,12/04/2023,-112.11
Buckinghamshire Council,Adults and Health,Ambient Support Limited,1000171,Res care-permanent - other,Controllable Customer & Client Receipts,7003019170,12/04/2023,-515.65
Buckinghamshire Council,Adults and Health,Ambient Support Limited,1000171,Res care-permanent - other,Controllable Customer & Client Receipts,7003019170,12/04/2023,-112.11
Buckinghamshire Council,Adults and Health,Ambient Support Limited,1000171,Res care-permanent - other,Controllable Customer & Client Receipts,7003019170,12/04/2023,-510.49
Buckinghamshire Council,Adults and Health,Ambient Support Limited,1000171,Res care-permanent - other,Controllable Customer & Client Receipts,7003019170,12/04/2023,-44.67
Buckinghamshire Council,Adults and Health,Ambient Support Limited,1000171,Res care-permanent - other,Controllable Customer & Client Receipts,7003019170,12/04/2023,-216.85
Buckinghamshire Council,Adults and Health,Ambient Support Limited,1000171,Res care-permanent - other,Controllable Customer & Client Receipts,7003019170,12/04/2023,-115.39
Buckinghamshire Council,Adults and Health,Ambient Support Limited,1000171,Res care-permanent - other,Controllable Customer & Client Receipts,7003019170,12/04/2023,-578.83
Buckinghamshire Council,Adults and Health,Ambient Support Limited,1000171,Res care-permanent - other,Controllable Customer & Client Receipts,7003019170,12/04/2023,-183.94
Buckinghamshire Council,Adults and Health,Ambient Support Limited,1000171,Res care-permanent - other,Controllable Customer & Client Receipts,7003019170,12/04/2023,-877.42
Buckinghamshire Council,Adults and Health,Ambient Support Limited,1000171,Res care-permanent - other,Controllable Customer & Client Receipts,7003019170,12/04/2023,-138.76
Buckinghamshire Council,Adults and Health,Ambient Support Limited,1000171,Res care-permanent - other,Controllable Customer & Client Receipts,7003019170,12/04/2023,-670.12
Buckinghamshire Council,Adults and Health,Ambient Support Limited,1000171,Res care-permanent - other,Controllable Customer & Client Receipts,7003019170,12/04/2023,-140.83
Buckinghamshire Council,Adults and Health,Ambient Support Limited,1000171,Res care-permanent - other,Controllable Customer & Client Receipts,7003019170,12/04/2023,-681.09
Buckinghamshire Council,Adults and Health,Ambient Support Limited,1000171,Res care-permanent - other,Controllable Customer & Client Receipts,7003019170,12/04/2023,-221.16
Buckinghamshire Council,Adults and Health,Ambient Support Limited,1000171,Res care-permanent - other,Controllable Customer & Client Receipts,7003019170,12/04/2023,-1070.86
Buckinghamshire Council,Adults and Health,Ambient Support Limited,1000171,Res care-permanent - other,Controllable Customer & Client Receipts,7003019170,12/04/2023,-179.57
Buckinghamshire Council,Adults and Health,Ambient Support Limited,1000171,Res care-permanent - other,Controllable Customer & Client Receipts,7003019170,12/04/2023,-859.03
Buckinghamshire Council,Adults and Health,Ambient Support Limited,1000171,Res care-permanent - other,Controllable Customer & Client Receipts,7003019170,12/04/2023,-153.41
Buckinghamshire Council,Adults and Health,Ambient Support Limited,1000171,Res care-permanent - other,Controllable Customer & Client Receipts,7003019170,12/04/2023,-749.05
Buckinghamshire Council,Adults and Health,Ambient Support Limited,1000171,Res care-permanent - other,Controllable Customer & Client Receipts,7003019170,12/04/2023,-112.11
Buckinghamshire Council,Adults and Health,Ambient Support Limited,1000171,Res care-permanent - other,Controllable Customer & Client Receipts,7003019170,12/04/2023,-510.49
Buckinghamshire Council,Adults and Health,Ambient Support Limited,1000171,Res care-permanent - other,Controllable Customer & Client Receipts,7003019170,12/04/2023,-112.11
Buckinghamshire Council,Adults and Health,Ambient Support Limited,1000171,Res care-permanent - other,Controllable Customer & Client Receipts,7003019170,12/04/2023,-510.49
Buckinghamshire Council,Adults and Health,Ambient Support Limited,1000171,Res care-permanent - other,Controllable Customer & Client Receipts,7003019170,12/04/2023,-106.99
Buckinghamshire Council,Adults and Health,Ambient Support Limited,1000171,Res care-permanent - other,Controllable Customer & Client Receipts,7003019170,12/04/2023,-534.69
Buckinghamshire Council,Adults and Health,Ambient Support Limited,1000171,Res care-permanent - other,Controllable Customer & Client Receipts,7003019170,12/04/2023,-11.61
Buckinghamshire Council,Adults and Health,Ambient Support Limited,1000171,Res care-permanent - other,Controllable Customer & Client Receipts,7003019170,12/04/2023,-53.39
Buckinghamshire Council,Adults and Health,Ambient Support Limited,1000171,Res care-permanent - other,Controllable Customer & Client Receipts,7003019170,12/04/2023,-122.86
Buckinghamshire Council,Adults and Health,Ambient Support Limited,1000171,Res care-permanent - other,Controllable Customer & Client Receipts,7003019170,12/04/2023,-580.76
Buckinghamshire Council,Adults and Health,Ambient Support Limited,1000171,Res care-permanent - other,Controllable Customer & Client Receipts,7003019170,12/04/2023,-140.57
Buckinghamshire Council,Adults and Health,Ambient Support Limited,1000171,Res care-permanent - other,Controllable Customer & Client Receipts,7003019170,12/04/2023,-686.35
Buckinghamshire Council,Adults and Health,Ambient Support Limited,1000171,Res care-permanent - other,Controllable Customer & Client Receipts,7003019170,12/04/2023,-109.11
Buckinghamshire Council,Adults and Health,Ambient Support Limited,1000171,Res care-permanent - other,Controllable Customer & Client Receipts,7003019170,12/04/2023,-551.69
Buckinghamshire Council,Adults and Health,Ambient Support Limited,1000171,Res care-permanent - other,Controllable Customer & Client Receipts,7003019170,12/04/2023,-112.11
Buckinghamshire Council,Adults and Health,Ambient Support Limited,1000171,Res care-permanent - other,Controllable Customer & Client Receipts,7003019170,12/04/2023,-540.21
Buckinghamshire Council,Adults and Health,Ambient Support Limited,1000171,Res care-permanent - other,Controllable Customer & Client Receipts,7003019170,12/04/2023,-115.48
Buckinghamshire Council,Adults and Health,Ambient Support Limited,1000171,Res care-permanent - other,Controllable Customer & Client Receipts,7003019170,12/04/2023,-563.18
Buckinghamshire Council,Adults and Health,Ambient Support Limited,1000171,Res care-permanent - other,Controllable Customer & Client Receipts,7003019170,12/04/2023,-112.11
Buckinghamshire Council,Adults and Health,Ambient Support Limited,1000171,Res care-permanent - other,Controllable Customer & Client Receipts,7003019170,12/04/2023,-510.49
Buckinghamshire Council,Adults and Health,Ambient Support Limited,1000171,Res care-permanent - other,Controllable Customer & Client Receipts,7003019170,12/04/2023,-110.83
Buckinghamshire Council,Adults and Health,Ambient Support Limited,1000171,Res care-permanent - other,Controllable Customer & Client Receipts,7003019170,12/04/2023,-531.15
Buckinghamshire Council,Adults and Health,Ambient Support Limited,1000171,Res care-permanent - other,Controllable Customer & Client Receipts,7003019170,12/04/2023,-211.39
Buckinghamshire Council,Adults and Health,Ambient Support Limited,1000171,Res care-permanent - other,Controllable Customer & Client Receipts,7003019170,12/04/2023,-1013.27
Buckinghamshire Council,Adults and Health,Ambient Support Limited,1000171,Res care-permanent - other,Controllable Customer & Client Receipts,7003019170,12/04/2023,-114.1
Buckinghamshire Council,Adults and Health,Ambient Support Limited,1000171,Res care-permanent - other,Controllable Customer & Client Receipts,7003019170,12/04/2023,-570.34
Buckinghamshire Council,Adults and Health,Ambient Support Limited,1000171,Res care-permanent - other,Controllable Customer & Client Receipts,7003019170,12/04/2023,-175.83
Buckinghamshire Council,Adults and Health,Ambient Support Limited,1000171,Res care-permanent - other,Controllable Customer & Client Receipts,7003019170,12/04/2023,-854.17
Buckinghamshire Council,Adults and Health,Ambient Support Limited,1000171,Res care-permanent - other,Controllable Customer & Client Receipts,7003019170,12/04/2023,-179.83
Buckinghamshire Council,Adults and Health,Ambient Support Limited,1000171,Res care-permanent - other,Controllable Customer & Client Receipts,7003019170,12/04/2023,-861.67
Buckinghamshire Council,Adults and Health,Ambient Support Limited,1000171,Res care-permanent - other,Controllable Customer & Client Receipts,7003019170,12/04/2023,-273.58
Buckinghamshire Council,Adults and Health,Ambient Support Limited,1000171,Res care-permanent - other,Controllable Customer & Client Receipts,7003019170,12/04/2023,-1258.46
Buckinghamshire Council,Adults and Health,Ambient Support Limited,1000171,Res care-permanent - other,Controllable Customer & Client Receipts,7003019170,12/04/2023,-123.04
Buckinghamshire Council,Adults and Health,Ambient Support Limited,1000171,Res care-permanent - other,Controllable Customer & Client Receipts,7003019170,12/04/2023,-582.82
Buckinghamshire Council,Adults and Health,Ambient Support Limited,1000171,Res care-permanent - other,Controllable Customer & Client Receipts,7003019170,12/04/2023,-179.38
Buckinghamshire Council,Adults and Health,Ambient Support Limited,1000171,Res care-permanent - other,Controllable Customer & Client Receipts,7003019170,12/04/2023,-867.12
Buckinghamshire Council,Adults and Health,Ambient Support Limited,1000171,Res care-permanent - other,Controllable Customer & Client Receipts,7003019170,12/04/2023,-208.81
Buckinghamshire Council,Adults and Health,Ambient Support Limited,1000171,Res care-permanent - other,Controllable Customer & Client Receipts,7003019170,12/04/2023,-1000.47
Buckinghamshire Council,Adults and Health,Ambient Support Limited,1000171,Res care-permanent - other,Controllable Customer & Client Receipts,7003019170,12/04/2023,-64
Buckinghamshire Council,Adults and Health,Ambient Support Limited,1000171,Res care-permanent - other,Controllable Customer & Client Receipts,7003019170,12/04/2023,-435.9
Buckinghamshire Council,Adults and Health,Ambient Support Limited,1000171,Res care-permanent - other,Controllable Customer & Client Receipts,7003019170,12/04/2023,-573.08
Buckinghamshire Council,Adults and Health,Ambient Support Limited,1000171,Res care-permanent - other,Controllable Customer & Client Receipts,7003019170,12/04/2023,-69.07
Buckinghamshire Council,Adults and Health,Ambient Support Limited,1000171,Res care-permanent - other,Controllable Customer & Client Receipts,7003019170,12/04/2023,383.66
Buckinghamshire Council,Adults and Health,Ambient Support Limited,1000171,Res care-permanent - other,Controllable Customer & Client Receipts,7003019170,12/04/2023,-171.88
Buckinghamshire Council,Adults and Health,Ambient Support Limited,1000171,Res care-permanent - other,Controllable Customer & Client Receipts,7003019170,12/04/2023,171.88
Buckinghamshire Council,Adults and Health,Ambient Support Limited,1000171,Res care-permanent - other,Controllable Customer & Client Receipts,7003019170,12/04/2023,21.82
Buckinghamshire Council,Adults and Health,Ambient Support Limited,1000171,Res care-permanent - other,Controllable Customer & Client Receipts,7003019170,12/04/2023,-286.47
Buckinghamshire Council,Adults and Health,Ambient Support Limited,1000171,Res care-permanent - other,Controllable Customer & Client Receipts,7003019170,12/04/2023,-1368.23
Buckinghamshire Council,Adults and Health,Ambient Support Limited,1000171,Res care-permanent - other,Controllable Customer & Client Receipts,7003019170,12/04/2023,-32.75
Buckinghamshire Council,Adults and Health,Ambient Support Limited,1000171,Res care-permanent - other,Controllable Customer & Client Receipts,7003019170,12/04/2023,-400.85
Buckinghamshire Council,Adults and Health,Ambient Support Limited,1000171,Res-Perm EMI-Other - Exp,Third Party Payments,7003019171,12/04/2023,3244
Buckinghamshire Council,Adults and Health,Ambient Support Limited,1000171,Res care-permanent - other,Third Party Payments,7003019171,12/04/2023,542.5
Buckinghamshire Council,Adults and Health,Ambient Support Limited,1000171,Res care-permanent - other,Third Party Payments,7003019171,12/04/2023,542.5
Buckinghamshire Council,Adults and Health,Ambient Support Limited,1000171,Res care-permanent - other,Third Party Payments,7003019171,12/04/2023,542.5
Buckinghamshire Council,Adults and Health,Ambient Support Limited,1000171,Res care-permanent - other,Third Party Payments,7003019171,12/04/2023,542.5
Buckinghamshire Council,Adults and Health,Ambient Support Limited,1000171,Res care-permanent - other,Third Party Payments,7003019171,12/04/2023,542.5
Buckinghamshire Council,Adults and Health,Ambient Support Limited,1000171,Res care-permanent - other,Third Party Payments,7003019171,12/04/2023,542.5
Buckinghamshire Council,Adults and Health,Ambient Support Limited,1000171,Res care-permanent - other,Third Party Payments,7003019171,12/04/2023,542.5
Buckinghamshire Council,Adults and Health,Ambient Support Limited,1000171,Res care-permanent - other,Third Party Payments,7003019171,12/04/2023,542.5
Buckinghamshire Council,Adults and Health,Ambient Support Limited,1000171,Res care-permanent - other,Third Party Payments,7003019171,12/04/2023,542.5
Buckinghamshire Council,Adults and Health,Ambient Support Limited,1000171,Res care-permanent - other,Third Party Payments,7003019171,12/04/2023,542.5
Buckinghamshire Council,Adults and Health,Ambient Support Limited,1000171,Res care-permanent - other,Third Party Payments,7003019171,12/04/2023,542.5
Buckinghamshire Council,Adults and Health,Ambient Support Limited,1000171,Res care-permanent - other,Third Party Payments,7003019171,12/04/2023,542.5
Buckinghamshire Council,Adults and Health,Ambient Support Limited,1000171,Res care-permanent - other,Third Party Payments,7003019171,12/04/2023,542.5
Buckinghamshire Council,Adults and Health,Ambient Support Limited,1000171,Res care-permanent - other,Third Party Payments,7003019171,12/04/2023,542.5
Buckinghamshire Council,Adults and Health,Ambient Support Limited,1000171,Residential  Care-Permanent Block - Othe,Third Party Payments,7003019171,12/04/2023,542.5
Buckinghamshire Council,Adults and Health,Ambient Support Limited,1000171,Res-Perm EMI-Other - Exp,Third Party Payments,7003019171,12/04/2023,643.04
Buckinghamshire Council,Adults and Health,Ambient Support Limited,1000171,Res-Perm EMI-Other - Exp,Third Party Payments,7003019171,12/04/2023,678.57
Buckinghamshire Council,Adults and Health,Ambient Support Limited,1000171,Res-Perm EMI-Other - Exp,Third Party Payments,7003019171,12/04/2023,593.05
Buckinghamshire Council,Adults and Health,Ambient Support Limited,1000171,Res-Perm EMI-Other - Exp,Third Party Payments,7003019171,12/04/2023,-1969.57
Buckinghamshire Council,Adults and Health,Ambient Support Limited,1000171,Res care-permanent - other,Third Party Payments,7003019171,12/04/2023,2721.13
Buckinghamshire Council,Adults and Health,Ambient Support Limited,1000171,Res care-permanent - other,Third Party Payments,7003019171,12/04/2023,2721.13
Buckinghamshire Council,Adults and Health,Ambient Support Limited,1000171,Res care-permanent - other,Third Party Payments,7003019171,12/04/2023,2721.13
Buckinghamshire Council,Adults and Health,Ambient Support Limited,1000171,Res care-permanent - other,Third Party Payments,7003019171,12/04/2023,2721.13
Buckinghamshire Council,Adults and Health,Ambient Support Limited,1000171,Res care-permanent - other,Third Party Payments,7003019171,12/04/2023,2721.13
Buckinghamshire Council,Adults and Health,Ambient Support Limited,1000171,Res care-permanent - other,Third Party Payments,7003019171,12/04/2023,2721.13
Buckinghamshire Council,Adults and Health,Ambient Support Limited,1000171,Res care-permanent - other,Third Party Payments,7003019171,12/04/2023,2721.13
Buckinghamshire Council,Adults and Health,Ambient Support Limited,1000171,Res care-permanent - other,Third Party Payments,7003019171,12/04/2023,2721.13
Buckinghamshire Council,Adults and Health,Ambient Support Limited,1000171,Res care-permanent - other,Third Party Payments,7003019171,12/04/2023,2721.13
Buckinghamshire Council,Adults and Health,Ambient Support Limited,1000171,Res care-permanent - other,Third Party Payments,7003019171,12/04/2023,2721.13
Buckinghamshire Council,Adults and Health,Ambient Support Limited,1000171,Res care-permanent - other,Third Party Payments,7003019171,12/04/2023,2721.13
Buckinghamshire Council,Adults and Health,Ambient Support Limited,1000171,Res care-permanent - other,Third Party Payments,7003019171,12/04/2023,2721.13
Buckinghamshire Council,Adults and Health,Ambient Support Limited,1000171,Res care-permanent - other,Third Party Payments,7003019171,12/04/2023,2721.13
Buckinghamshire Council,Adults and Health,Ambient Support Limited,1000171,Res care-permanent - other,Third Party Payments,7003019171,12/04/2023,2721.13
Buckinghamshire Council,Adults and Health,Ambient Support Limited,1000171,Residential  Care-Permanent Block - Othe,Third Party Payments,7003019171,12/04/2023,2721.13
Buckinghamshire Council,Adults and Health,Ambient Support Limited,1000171,Res care-permanent - other,Third Party Payments,7003019171,12/04/2023,542.5
Buckinghamshire Council,Adults and Health,Ambient Support Limited,1000171,Res care-permanent - other,Third Party Payments,7003019171,12/04/2023,542.5
Buckinghamshire Council,Adults and Health,Ambient Support Limited,1000171,Res care-permanent - other,Third Party Payments,7003019171,12/04/2023,2721.13
Buckinghamshire Council,Adults and Health,Ambient Support Limited,1000171,Residential  Care-Permanent Block - Othe,Third Party Payments,7003019171,12/04/2023,-542.5
Buckinghamshire Council,Adults and Health,Ambient Support Limited,1000171,Res-Perm EMI-Other - Exp,Third Party Payments,7003019171,12/04/2023,-3244
Buckinghamshire Council,Adults and Health,Ambient Support Limited,1000171,Res-Perm EMI-Other - Exp,Third Party Payments,7003019171,12/04/2023,3339.93
Buckinghamshire Council,Adults and Health,Ambient Support Limited,1000171,Res-Perm EMI-Other - Exp,Third Party Payments,7003019171,12/04/2023,2919
Buckinghamshire Council,Adults and Health,Ambient Support Limited,1000171,Res-Perm EMI-Other - Exp,Third Party Payments,7003019171,12/04/2023,3165.06
Buckinghamshire Council,Adults and Health,Ambient Support Limited,1000171,Nursing care-permanent -other,Third Party Payments,7003019171,12/04/2023,108.86
Buckinghamshire Council,Adults and Health,Ambient Support Limited,1000171,Nursing care-permanent -other,Third Party Payments,7003019171,12/04/2023,108.86
Buckinghamshire Council,Adults and Health,Ambient Support Limited,1000171,Nursing care-permanent -other,Third Party Payments,7003019171,12/04/2023,1187
Buckinghamshire Council,Adults and Health,Ambient Support Limited,1000171,Nursing care-permanent -other,Third Party Payments,7003019171,12/04/2023,1543.1
Buckinghamshire Council,Adults and Health,Ambient Support Limited,1000171,Nursing care-permanent -other,Third Party Payments,7003019171,12/04/2023,108.86
Buckinghamshire Council,Adults and Health,Ambient Support Limited,1000171,Nursing care-permanent -other,Third Party Payments,7003019171,12/04/2023,108.86
Buckinghamshire Council,Adults and Health,Ambient Support Limited,1000171,Nursing care-permanent -other,Third Party Payments,7003019171,12/04/2023,1187
Buckinghamshire Council,Adults and Health,Ambient Support Limited,1000171,Nursing care-permanent -other,Third Party Payments,7003019171,12/04/2023,1543.1
Buckinghamshire Council,Adults and Health,Ambient Support Limited,1000171,Nursing care-permanent -other,Third Party Payments,7003019171,12/04/2023,108.86
Buckinghamshire Council,Adults and Health,Ambient Support Limited,1000171,Nursing care-permanent -other,Third Party Payments,7003019171,12/04/2023,108.86
Buckinghamshire Council,Adults and Health,Ambient Support Limited,1000171,Nursing care-permanent -other,Third Party Payments,7003019171,12/04/2023,108.86
Buckinghamshire Council,Adults and Health,Ambient Support Limited,1000171,Nursing care-permanent -other,Third Party Payments,7003019171,12/04/2023,108.86
Buckinghamshire Council,Adults and Health,Ambient Support Limited,1000171,Nursing care-permanent -other,Third Party Payments,7003019171,12/04/2023,108.86
Buckinghamshire Council,Adults and Health,Ambient Support Limited,1000171,Nursing care-permanent -other,Third Party Payments,7003019171,12/04/2023,108.86
Buckinghamshire Council,Adults and Health,Ambient Support Limited,1000171,Nursing care-permanent -other,Third Party Payments,7003019171,12/04/2023,108.86
Buckinghamshire Council,Adults and Health,Ambient Support Limited,1000171,Nursing care-permanent -other,Third Party Payments,7003019171,12/04/2023,108.86
Buckinghamshire Council,Adults and Health,Ambient Support Limited,1000171,Nursing care-permanent -other,Third Party Payments,7003019171,12/04/2023,108.86
Buckinghamshire Council,Adults and Health,Ambient Support Limited,1000171,Nursing care-permanent -other,Third Party Payments,7003019171,12/04/2023,108.86
Buckinghamshire Council,Adults and Health,Ambient Support Limited,1000171,Nursing care-permanent -other,Third Party Payments,7003019171,12/04/2023,1187
Buckinghamshire Council,Adults and Health,Ambient Support Limited,1000171,Nursing care-permanent -other,Third Party Payments,7003019171,12/04/2023,1543.1
Buckinghamshire Council,Adults and Health,Ambient Support Limited,1000171,Nursing care-permanent -other,Third Party Payments,7003019171,12/04/2023,1187
Buckinghamshire Council,Adults and Health,Ambient Support Limited,1000171,Nursing care-permanent -other,Third Party Payments,7003019171,12/04/2023,1543.1
Buckinghamshire Council,Adults and Health,Ambient Support Limited,1000171,Nursing care-permanent -other,Third Party Payments,7003019171,12/04/2023,1187
Buckinghamshire Council,Adults and Health,Ambient Support Limited,1000171,Nursing care-permanent -other,Third Party Payments,7003019171,12/04/2023,1543.1
Buckinghamshire Council,Adults and Health,Ambient Support Limited,1000171,Nursing care-permanent -other,Third Party Payments,7003019171,12/04/2023,1187
Buckinghamshire Council,Adults and Health,Ambient Support Limited,1000171,Nursing care-permanent -other,Third Party Payments,7003019171,12/04/2023,1543.1
Buckinghamshire Council,Adults and Health,Ambient Support Limited,1000171,Nursing care-permanent -other,Third Party Payments,7003019171,12/04/2023,1187
Buckinghamshire Council,Adults and Health,Ambient Support Limited,1000171,Nursing care-permanent -other,Third Party Payments,7003019171,12/04/2023,1543.1
Buckinghamshire Council,Adults and Health,Ambient Support Limited,1000171,Nursing care-permanent -other,Third Party Payments,7003019171,12/04/2023,108.86
Buckinghamshire Council,Adults and Health,Ambient Support Limited,1000171,Nursing care-permanent -other,Third Party Payments,7003019171,12/04/2023,108.86
Buckinghamshire Council,Adults and Health,Ambient Support Limited,1000171,Nursing care-permanent -other,Third Party Payments,7003019171,12/04/2023,1187
Buckinghamshire Council,Adults and Health,Ambient Support Limited,1000171,Nursing care-permanent -other,Third Party Payments,7003019171,12/04/2023,1543.1
Buckinghamshire Council,Adults and Health,Ambient Support Limited,1000171,Nursing care-permanent -other,Third Party Payments,7003019171,12/04/2023,108.86
Buckinghamshire Council,Adults and Health,Ambient Support Limited,1000171,Nursing care-permanent -other,Third Party Payments,7003019171,12/04/2023,108.86
Buckinghamshire Council,Adults and Health,Ambient Support Limited,1000171,Nursing care-permanent -other,Third Party Payments,7003019171,12/04/2023,108.86
Buckinghamshire Council,Adults and Health,Ambient Support Limited,1000171,Nursing care-permanent -other,Third Party Payments,7003019171,12/04/2023,108.86
Buckinghamshire Council,Adults and Health,Ambient Support Limited,1000171,Nursing care-permanent -other,Third Party Payments,7003019171,12/04/2023,108.86
Buckinghamshire Council,Adults and Health,Ambient Support Limited,1000171,Nursing care-permanent -other,Third Party Payments,7003019171,12/04/2023,108.86
Buckinghamshire Council,Adults and Health,Ambient Support Limited,1000171,Nursing care-permanent -other,Third Party Payments,7003019171,12/04/2023,108.86
Buckinghamshire Council,Adults and Health,Ambient Support Limited,1000171,Nursing care-permanent -other,Third Party Payments,7003019171,12/04/2023,108.86
Buckinghamshire Council,Adults and Health,Ambient Support Limited,1000171,Nursing care-permanent -other,Third Party Payments,7003019171,12/04/2023,108.86
Buckinghamshire Council,Adults and Health,Ambient Support Limited,1000171,Nursing care-permanent -other,Third Party Payments,7003019171,12/04/2023,108.86
Buckinghamshire Council,Adults and Health,Ambient Support Limited,1000171,Nursing care-permanent -other,Third Party Payments,7003019171,12/04/2023,108.86
Buckinghamshire Council,Adults and Health,Ambient Support Limited,1000171,Nursing care-permanent -other,Third Party Payments,7003019171,12/04/2023,108.86
Buckinghamshire Council,Adults and Health,Ambient Support Limited,1000171,Nursing care-permanent -other,Third Party Payments,7003019171,12/04/2023,108.86
Buckinghamshire Council,Adults and Health,Ambient Support Limited,1000171,Nursing care-permanent -other,Third Party Payments,7003019171,12/04/2023,108.86
Buckinghamshire Council,Adults and Health,Ambient Support Limited,1000171,Nursing care-permanent -other,Third Party Payments,7003019171,12/04/2023,108.86
Buckinghamshire Council,Adults and Health,Ambient Support Limited,1000171,Nursing care-permanent -other,Third Party Payments,7003019171,12/04/2023,108.86
Buckinghamshire Council,Adults and Health,Ambient Support Limited,1000171,Nursing care-permanent -other,Third Party Payments,7003019171,12/04/2023,108.86
Buckinghamshire Council,Adults and Health,Ambient Support Limited,1000171,Nursing care-permanent -other,Third Party Payments,7003019171,12/04/2023,108.86
Buckinghamshire Council,Adults and Health,Ambient Support Limited,1000171,Nursing care-permanent -other,Third Party Payments,7003019171,12/04/2023,108.86
Buckinghamshire Council,Adults and Health,Ambient Support Limited,1000171,Nursing care-permanent -other,Third Party Payments,7003019171,12/04/2023,108.86
Buckinghamshire Council,Adults and Health,Ambient Support Limited,1000171,Nursing care-permanent -other,Third Party Payments,7003019171,12/04/2023,108.86
Buckinghamshire Council,Adults and Health,Ambient Support Limited,1000171,Nursing care-permanent -other,Third Party Payments,7003019171,12/04/2023,108.86
Buckinghamshire Council,Adults and Health,Ambient Support Limited,1000171,Nursing care-permanent -other,Third Party Payments,7003019171,12/04/2023,108.86
Buckinghamshire Council,Adults and Health,Ambient Support Limited,1000171,Nursing care-permanent -other,Third Party Payments,7003019171,12/04/2023,108.86
Buckinghamshire Council,Adults and Health,Ambient Support Limited,1000171,Nursing care-permanent -other,Third Party Payments,7003019171,12/04/2023,1187
Buckinghamshire Council,Adults and Health,Ambient Support Limited,1000171,Nursing care-permanent -other,Third Party Payments,7003019171,12/04/2023,1543.1
Buckinghamshire Council,Adults and Health,Ambient Support Limited,1000171,Nursing care-permanent -other,Third Party Payments,7003019171,12/04/2023,1187
Buckinghamshire Council,Adults and Health,Ambient Support Limited,1000171,Nursing care-permanent -other,Third Party Payments,7003019171,12/04/2023,1543.1
Buckinghamshire Council,Adults and Health,Ambient Support Limited,1000171,Nursing care-permanent -other,Third Party Payments,7003019171,12/04/2023,1187
Buckinghamshire Council,Adults and Health,Ambient Support Limited,1000171,Nursing care-permanent -other,Third Party Payments,7003019171,12/04/2023,1543.1
Buckinghamshire Council,Adults and Health,Ambient Support Limited,1000171,Nursing care-permanent -other,Third Party Payments,7003019171,12/04/2023,1187
Buckinghamshire Council,Adults and Health,Ambient Support Limited,1000171,Nursing care-permanent -other,Third Party Payments,7003019171,12/04/2023,1543.1
Buckinghamshire Council,Adults and Health,Ambient Support Limited,1000171,Nursing care-permanent -other,Third Party Payments,7003019171,12/04/2023,1187
Buckinghamshire Council,Adults and Health,Ambient Support Limited,1000171,Nursing care-permanent -other,Third Party Payments,7003019171,12/04/2023,1543.1
Buckinghamshire Council,Adults and Health,Ambient Support Limited,1000171,Nursing care-permanent -other,Third Party Payments,7003019171,12/04/2023,1187
Buckinghamshire Council,Adults and Health,Ambient Support Limited,1000171,Nursing care-permanent -other,Third Party Payments,7003019171,12/04/2023,1543.1
Buckinghamshire Council,Adults and Health,Ambient Support Limited,1000171,Nursing care-permanent -other,Third Party Payments,7003019171,12/04/2023,1187
Buckinghamshire Council,Adults and Health,Ambient Support Limited,1000171,Nursing care-permanent -other,Third Party Payments,7003019171,12/04/2023,1543.1
Buckinghamshire Council,Adults and Health,Ambient Support Limited,1000171,Nursing care-permanent -other,Third Party Payments,7003019171,12/04/2023,1187
Buckinghamshire Council,Adults and Health,Ambient Support Limited,1000171,Nursing care-permanent -other,Third Party Payments,7003019171,12/04/2023,1543.1
Buckinghamshire Council,Adults and Health,Ambient Support Limited,1000171,Nursing care-permanent -other,Third Party Payments,7003019171,12/04/2023,1187
Buckinghamshire Council,Adults and Health,Ambient Support Limited,1000171,Nursing care-permanent -other,Third Party Payments,7003019171,12/04/2023,1543.1
Buckinghamshire Council,Adults and Health,Ambient Support Limited,1000171,Nursing care-permanent -other,Third Party Payments,7003019171,12/04/2023,1187
Buckinghamshire Council,Adults and Health,Ambient Support Limited,1000171,Nursing care-permanent -other,Third Party Payments,7003019171,12/04/2023,1543.1
Buckinghamshire Council,Adults and Health,Ambient Support Limited,1000171,Nursing care-permanent -other,Third Party Payments,7003019171,12/04/2023,1187
Buckinghamshire Council,Adults and Health,Ambient Support Limited,1000171,Nursing care-permanent -other,Third Party Payments,7003019171,12/04/2023,1543.1
Buckinghamshire Council,Adults and Health,Ambient Support Limited,1000171,Nursing care-permanent -other,Third Party Payments,7003019171,12/04/2023,1187
Buckinghamshire Council,Adults and Health,Ambient Support Limited,1000171,Nursing care-permanent -other,Third Party Payments,7003019171,12/04/2023,1543.1
Buckinghamshire Council,Adults and Health,Ambient Support Limited,1000171,Nursing care-permanent -other,Third Party Payments,7003019171,12/04/2023,108.86
Buckinghamshire Council,Adults and Health,Ambient Support Limited,1000171,Nursing care-permanent -other,Third Party Payments,7003019171,12/04/2023,1543.1
Buckinghamshire Council,Adults and Health,Ambient Support Limited,1000171,Nursing care-permanent -other,Third Party Payments,7003019171,12/04/2023,108.86
Buckinghamshire Council,Adults and Health,Ambient Support Limited,1000171,Nursing care-permanent -other,Third Party Payments,7003019171,12/04/2023,108.86
Buckinghamshire Council,Adults and Health,Ambient Support Limited,1000171,Nursing care-permanent -other,Third Party Payments,7003019171,12/04/2023,108.86
Buckinghamshire Council,Adults and Health,Ambient Support Limited,1000171,Nursing care-permanent -other,Third Party Payments,7003019171,12/04/2023,108.86
Buckinghamshire Council,Adults and Health,Ambient Support Limited,1000171,Nursing care-permanent -other,Third Party Payments,7003019171,12/04/2023,1187
Buckinghamshire Council,Adults and Health,Ambient Support Limited,1000171,Nursing care-permanent -other,Third Party Payments,7003019171,12/04/2023,1543.1
Buckinghamshire Council,Adults and Health,Ambient Support Limited,1000171,Nursing care-permanent -other,Third Party Payments,7003019171,12/04/2023,1187
Buckinghamshire Council,Adults and Health,Ambient Support Limited,1000171,Nursing care-permanent -other,Third Party Payments,7003019171,12/04/2023,1543.1
Buckinghamshire Council,Adults and Health,Ambient Support Limited,1000171,Nursing care-permanent -other,Third Party Payments,7003019171,12/04/2023,108.86
Buckinghamshire Council,Adults and Health,Ambient Support Limited,1000171,Nursing care-permanent -other,Third Party Payments,7003019171,12/04/2023,108.86
Buckinghamshire Council,Adults and Health,Ambient Support Limited,1000171,Nursing care-permanent -other,Third Party Payments,7003019171,12/04/2023,1187
Buckinghamshire Council,Adults and Health,Ambient Support Limited,1000171,Nursing care-permanent -other,Third Party Payments,7003019171,12/04/2023,1543.1
Buckinghamshire Council,Adults and Health,Ambient Support Limited,1000171,Nursing care-permanent block- other,Third Party Payments,7003019171,12/04/2023,653.16
Buckinghamshire Council,Adults and Health,Ambient Support Limited,1000171,Nursing care-permanent block- other,Third Party Payments,7003019171,12/04/2023,108.86
Buckinghamshire Council,Adults and Health,Ambient Support Limited,1000171,Nursing care-permanent block- other,Third Party Payments,7003019171,12/04/2023,544.3
Buckinghamshire Council,Adults and Health,Ambient Support Limited,1000171,Nursing care-permanent block- other,Third Party Payments,7003019171,12/04/2023,108.86
Buckinghamshire Council,Adults and Health,Ambient Support Limited,1000171,Nursing care-permanent block- other,Third Party Payments,7003019171,12/04/2023,7715.5
Buckinghamshire Council,Adults and Health,Ambient Support Limited,1000171,Nursing care-permanent block- other,Third Party Payments,7003019171,12/04/2023,1543.1
Buckinghamshire Council,Adults and Health,Ambient Support Limited,1000171,Nursing care-permanent block- other,Third Party Payments,7003019171,12/04/2023,7122
Buckinghamshire Council,Adults and Health,Ambient Support Limited,1000171,Nursing care-permanent block- other,Third Party Payments,7003019171,12/04/2023,1187
Buckinghamshire Council,Adults and Health,Ambient Support Limited,1000171,Nursing care-permanent -other,Third Party Payments,7003019171,12/04/2023,-762.02
Buckinghamshire Council,Adults and Health,Ambient Support Limited,1000171,Nursing care-permanent -other,Third Party Payments,7003019171,12/04/2023,762.02
Buckinghamshire Council,Adults and Health,Ambient Support Limited,1000171,Nursing care-permanent -other,Third Party Payments,7003019171,12/04/2023,-762.02
Buckinghamshire Council,Adults and Health,Ambient Support Limited,1000171,Nursing care-permanent -other,Third Party Payments,7003019171,12/04/2023,762.02
Buckinghamshire Council,Adults and Health,Ambient Support Limited,1000171,Nursing care-permanent -other,Third Party Payments,7003019171,12/04/2023,-762.02
Buckinghamshire Council,Adults and Health,Ambient Support Limited,1000171,Nursing care-permanent -other,Third Party Payments,7003019171,12/04/2023,762.02
Buckinghamshire Council,Adults and Health,Ambient Support Limited,1000171,Nursing care-permanent -other,Third Party Payments,7003019171,12/04/2023,-762.02
Buckinghamshire Council,Adults and Health,Ambient Support Limited,1000171,Nursing care-permanent -other,Third Party Payments,7003019171,12/04/2023,762.02
Buckinghamshire Council,Adults and Health,Ambient Support Limited,1000171,Nursing care-permanent -other,Third Party Payments,7003019171,12/04/2023,-762.02
Buckinghamshire Council,Adults and Health,Ambient Support Limited,1000171,Nursing care-permanent -other,Third Party Payments,7003019171,12/04/2023,-762.02
Buckinghamshire Council,Adults and Health,Ambient Support Limited,1000171,Nursing care-permanent -other,Third Party Payments,7003019171,12/04/2023,762.02
Buckinghamshire Council,Adults and Health,Ambient Support Limited,1000171,Nursing care-permanent -other,Third Party Payments,7003019171,12/04/2023,762.02
Buckinghamshire Council,Adults and Health,Ambient Support Limited,1000171,Nursing care-permanent -other,Third Party Payments,7003019171,12/04/2023,-762.02
Buckinghamshire Council,Adults and Health,Ambient Support Limited,1000171,Nursing care-permanent -other,Third Party Payments,7003019171,12/04/2023,762.02
Buckinghamshire Council,Adults and Health,Ambient Support Limited,1000171,Nursing care-permanent -other,Third Party Payments,7003019171,12/04/2023,-762.02
Buckinghamshire Council,Adults and Health,Ambient Support Limited,1000171,Nursing care-permanent -other,Third Party Payments,7003019171,12/04/2023,762.02
Buckinghamshire Council,Adults and Health,Ambient Support Limited,1000171,Nursing care-permanent -other,Third Party Payments,7003019171,12/04/2023,-762.02
Buckinghamshire Council,Adults and Health,Ambient Support Limited,1000171,Nursing care-permanent -other,Third Party Payments,7003019171,12/04/2023,762.02
Buckinghamshire Council,Adults and Health,Ambient Support Limited,1000171,Nursing care-permanent -other,Third Party Payments,7003019171,12/04/2023,-762.02
Buckinghamshire Council,Adults and Health,Ambient Support Limited,1000171,Nursing care-permanent -other,Third Party Payments,7003019171,12/04/2023,762.02
Buckinghamshire Council,Adults and Health,Ambient Support Limited,1000171,Nursing care-permanent -other,Third Party Payments,7003019171,12/04/2023,-762.02
Buckinghamshire Council,Adults and Health,Ambient Support Limited,1000171,Nursing care-permanent -other,Third Party Payments,7003019171,12/04/2023,762.02
Buckinghamshire Council,Adults and Health,Ambient Support Limited,1000171,Nursing care-permanent -other,Third Party Payments,7003019171,12/04/2023,-762.02
Buckinghamshire Council,Adults and Health,Ambient Support Limited,1000171,Nursing care-permanent -other,Third Party Payments,7003019171,12/04/2023,762.02
Buckinghamshire Council,Adults and Health,Ambient Support Limited,1000171,Nursing care-permanent -other,Third Party Payments,7003019171,12/04/2023,-762.02
Buckinghamshire Council,Adults and Health,Ambient Support Limited,1000171,Nursing care-permanent -other,Third Party Payments,7003019171,12/04/2023,762.02
Buckinghamshire Council,Adults and Health,Ambient Support Limited,1000171,Nursing care-permanent -other,Third Party Payments,7003019171,12/04/2023,-762.02
Buckinghamshire Council,Adults and Health,Ambient Support Limited,1000171,Nursing care-permanent -other,Third Party Payments,7003019171,12/04/2023,762.02
Buckinghamshire Council,Adults and Health,Ambient Support Limited,1000171,Nursing care-permanent -other,Third Party Payments,7003019171,12/04/2023,-762.02
Buckinghamshire Council,Adults and Health,Ambient Support Limited,1000171,Nursing care-permanent -other,Third Party Payments,7003019171,12/04/2023,762.02
Buckinghamshire Council,Adults and Health,Ambient Support Limited,1000171,Nursing care-permanent -other,Third Party Payments,7003019171,12/04/2023,-762.02
Buckinghamshire Council,Adults and Health,Ambient Support Limited,1000171,Nursing care-permanent -other,Third Party Payments,7003019171,12/04/2023,762.02
Buckinghamshire Council,Adults and Health,Ambient Support Limited,1000171,Nursing care-permanent -other,Third Party Payments,7003019171,12/04/2023,-762.02
Buckinghamshire Council,Adults and Health,Ambient Support Limited,1000171,Nursing care-permanent -other,Third Party Payments,7003019171,12/04/2023,762.02
Buckinghamshire Council,Adults and Health,Ambient Support Limited,1000171,Nursing care-permanent -other,Third Party Payments,7003019171,12/04/2023,-762.02
Buckinghamshire Council,Adults and Health,Ambient Support Limited,1000171,Nursing care-permanent -other,Third Party Payments,7003019171,12/04/2023,108.86
Buckinghamshire Council,Adults and Health,Ambient Support Limited,1000171,Nursing care-permanent -other,Third Party Payments,7003019171,12/04/2023,-108.86
Buckinghamshire Council,Adults and Health,Ambient Support Limited,1000171,Nursing care-permanent -other,Third Party Payments,7003019171,12/04/2023,762.02
Buckinghamshire Council,Adults and Health,Ambient Support Limited,1000171,Nursing care-permanent -other,Third Party Payments,7003019171,12/04/2023,-762.02
Buckinghamshire Council,Adults and Health,Ambient Support Limited,1000171,Nursing care-permanent -other,Third Party Payments,7003019171,12/04/2023,762.02
Buckinghamshire Council,Adults and Health,Ambient Support Limited,1000171,Nursing care-permanent -other,Third Party Payments,7003019171,12/04/2023,-762.02
Buckinghamshire Council,Adults and Health,Ambient Support Limited,1000171,Nursing care-permanent -other,Third Party Payments,7003019171,12/04/2023,762.02
Buckinghamshire Council,Adults and Health,Ambient Support Limited,1000171,Nursing care-permanent -other,Third Party Payments,7003019171,12/04/2023,-762.02
Buckinghamshire Council,Adults and Health,Ambient Support Limited,1000171,Nursing care-permanent -other,Third Party Payments,7003019171,12/04/2023,762.02
Buckinghamshire Council,Adults and Health,Ambient Support Limited,1000171,Nursing care-permanent -other,Third Party Payments,7003019171,12/04/2023,-762.02
Buckinghamshire Council,Adults and Health,Ambient Support Limited,1000171,Nursing care-permanent -other,Third Party Payments,7003019171,12/04/2023,-3048.08
Buckinghamshire Council,Adults and Health,Ambient Support Limited,1000171,Nursing care-permanent -other,Third Party Payments,7003019171,12/04/2023,-3048.08
Buckinghamshire Council,Adults and Health,Ambient Support Limited,1000171,Nursing care-permanent -other,Third Party Payments,7003019171,12/04/2023,-3048.08
Buckinghamshire Council,Adults and Health,Ambient Support Limited,1000171,Nursing care-permanent -other,Third Party Payments,7003019171,12/04/2023,2068.34
Buckinghamshire Council,Adults and Health,Ambient Support Limited,1000171,Nursing care-permanent -other,Third Party Payments,7003019171,12/04/2023,326.58
Buckinghamshire Council,Adults and Health,Ambient Support Limited,1000171,Nursing care-permanent -other,Third Party Payments,7003019171,12/04/2023,326.58
Buckinghamshire Council,Adults and Health,Ambient Support Limited,1000171,Nursing care-permanent -other,Third Party Payments,7003019171,12/04/2023,326.58
Buckinghamshire Council,Adults and Health,Ambient Support Limited,1000171,Nursing care-permanent -other,Third Party Payments,7003019171,12/04/2023,326.58
Buckinghamshire Council,Adults and Health,Ambient Support Limited,1000171,Nursing care-permanent -other,Third Party Payments,7003019171,12/04/2023,326.58
Buckinghamshire Council,Adults and Health,Ambient Support Limited,1000171,Nursing care-permanent -other,Third Party Payments,7003019171,12/04/2023,326.58
Buckinghamshire Council,Adults and Health,Ambient Support Limited,1000171,Nursing care-permanent -other,Third Party Payments,7003019171,12/04/2023,326.58
Buckinghamshire Council,Adults and Health,Ambient Support Limited,1000171,Nursing care-permanent -other,Third Party Payments,7003019171,12/04/2023,326.58
Buckinghamshire Council,Adults and Health,Ambient Support Limited,1000171,Nursing care-permanent -other,Third Party Payments,7003019171,12/04/2023,326.58
Buckinghamshire Council,Adults and Health,Ambient Support Limited,1000171,Nursing care-permanent -other,Third Party Payments,7003019171,12/04/2023,326.58
Buckinghamshire Council,Adults and Health,Ambient Support Limited,1000171,Nursing care-permanent -other,Third Party Payments,7003019171,12/04/2023,326.58
Buckinghamshire Council,Adults and Health,Ambient Support Limited,1000171,Nursing care-permanent -other,Third Party Payments,7003019171,12/04/2023,326.58
Buckinghamshire Council,Adults and Health,Ambient Support Limited,1000171,Nursing care-permanent -other,Third Party Payments,7003019171,12/04/2023,326.58
Buckinghamshire Council,Adults and Health,Ambient Support Limited,1000171,Nursing care-permanent -other,Third Party Payments,7003019171,12/04/2023,326.58
Buckinghamshire Council,Adults and Health,Ambient Support Limited,1000171,Nursing care-permanent -other,Third Party Payments,7003019171,12/04/2023,326.58
Buckinghamshire Council,Adults and Health,Ambient Support Limited,1000171,Nursing care-permanent -other,Third Party Payments,7003019171,12/04/2023,326.58
Buckinghamshire Council,Adults and Health,Ambient Support Limited,1000171,Nursing care-permanent -other,Third Party Payments,7003019171,12/04/2023,326.58
Buckinghamshire Council,Adults and Health,Ambient Support Limited,1000171,Nursing care-permanent -other,Third Party Payments,7003019171,12/04/2023,326.58
Buckinghamshire Council,Adults and Health,Ambient Support Limited,1000171,Nursing care-permanent -other,Third Party Payments,7003019171,12/04/2023,326.58
Buckinghamshire Council,Adults and Health,Ambient Support Limited,1000171,Nursing care-permanent -other,Third Party Payments,7003019171,12/04/2023,326.58
Buckinghamshire Council,Adults and Health,Ambient Support Limited,1000171,Nursing care-permanent -other,Third Party Payments,7003019171,12/04/2023,326.58
Buckinghamshire Council,Adults and Health,Ambient Support Limited,1000171,Nursing care-permanent -other,Third Party Payments,7003019171,12/04/2023,326.58
Buckinghamshire Council,Adults and Health,Ambient Support Limited,1000171,Nursing care-permanent -other,Third Party Payments,7003019171,12/04/2023,326.58
Buckinghamshire Council,Adults and Health,Ambient Support Limited,1000171,Nursing care-permanent block- other,Third Party Payments,7003019171,12/04/2023,-6749.32
Buckinghamshire Council,Adults and Health,Ambient Support Limited,1000171,Nursing care-permanent block- other,Third Party Payments,7003019171,12/04/2023,6749.32
Buckinghamshire Council,Adults and Health,Ambient Support Limited,1000171,Nursing care-permanent block- other,Third Party Payments,7003019171,12/04/2023,-21663.14
Buckinghamshire Council,Adults and Health,Ambient Support Limited,1000171,Nursing care-permanent block- other,Third Party Payments,7003019171,12/04/2023,22642.88
Buckinghamshire Council,Adults and Health,Ambient Support Limited,1000171,Nursing care-permanent block- other,Third Party Payments,7003019171,12/04/2023,2286.06
Buckinghamshire Council,Adults and Health,Ambient Support Limited,1000171,Nursing care-permanent -other,Controllable Customer & Client Receipts,7003019171,12/04/2023,-160.66
Buckinghamshire Council,Adults and Health,Ambient Support Limited,1000171,Nursing care-permanent -other,Controllable Customer & Client Receipts,7003019171,12/04/2023,-770.1
Buckinghamshire Council,Adults and Health,Ambient Support Limited,1000171,Res care-permanent - other,Controllable Customer & Client Receipts,7003019171,12/04/2023,-111.45
Buckinghamshire Council,Adults and Health,Ambient Support Limited,1000171,Res care-permanent - other,Controllable Customer & Client Receipts,7003019171,12/04/2023,-525.99
Buckinghamshire Council,Adults and Health,Ambient Support Limited,1000171,Nursing care-permanent -other,Controllable Customer & Client Receipts,7003019171,12/04/2023,-118.55
Buckinghamshire Council,Adults and Health,Ambient Support Limited,1000171,Nursing care-permanent -other,Controllable Customer & Client Receipts,7003019171,12/04/2023,-577.15
Buckinghamshire Council,Adults and Health,Ambient Support Limited,1000171,Nursing care-permanent -other,Controllable Customer & Client Receipts,7003019171,12/04/2023,-107.89
Buckinghamshire Council,Adults and Health,Ambient Support Limited,1000171,Nursing care-permanent -other,Controllable Customer & Client Receipts,7003019171,12/04/2023,-550.61
Buckinghamshire Council,Adults and Health,Ambient Support Limited,1000171,Nursing care-permanent -other,Controllable Customer & Client Receipts,7003019171,12/04/2023,-223.16
Buckinghamshire Council,Adults and Health,Ambient Support Limited,1000171,Nursing care-permanent -other,Controllable Customer & Client Receipts,7003019171,12/04/2023,-1070.24
Buckinghamshire Council,Adults and Health,Ambient Support Limited,1000171,Nursing care-permanent -other,Controllable Customer & Client Receipts,7003019171,12/04/2023,-78.36
Buckinghamshire Council,Adults and Health,Ambient Support Limited,1000171,Nursing care-permanent -other,Controllable Customer & Client Receipts,7003019171,12/04/2023,-360.44
Buckinghamshire Council,Adults and Health,Ambient Support Limited,1000171,Res care-permanent - other,Controllable Customer & Client Receipts,7003019171,12/04/2023,-182.11
Buckinghamshire Council,Adults and Health,Ambient Support Limited,1000171,Res care-permanent - other,Controllable Customer & Client Receipts,7003019171,12/04/2023,-880.75
Buckinghamshire Council,Adults and Health,Ambient Support Limited,1000171,Res care-permanent - other,Controllable Customer & Client Receipts,7003019171,12/04/2023,-261.98
Buckinghamshire Council,Adults and Health,Ambient Support Limited,1000171,Res care-permanent - other,Controllable Customer & Client Receipts,7003019171,12/04/2023,-1233.7
Buckinghamshire Council,Adults and Health,Ambient Support Limited,1000171,Res care-permanent - other,Controllable Customer & Client Receipts,7003019171,12/04/2023,-226.28
Buckinghamshire Council,Adults and Health,Ambient Support Limited,1000171,Res care-permanent - other,Controllable Customer & Client Receipts,7003019171,12/04/2023,-1089.88
Buckinghamshire Council,Adults and Health,Ambient Support Limited,1000171,Res care-permanent - other,Controllable Customer & Client Receipts,7003019171,12/04/2023,-285.96
Buckinghamshire Council,Adults and Health,Ambient Support Limited,1000171,Res care-permanent - other,Controllable Customer & Client Receipts,7003019171,12/04/2023,-1365.18
Buckinghamshire Council,Adults and Health,Ambient Support Limited,1000171,Res care-permanent - other,Controllable Customer & Client Receipts,7003019171,12/04/2023,-442.96
Buckinghamshire Council,Adults and Health,Ambient Support Limited,1000171,Res care-permanent - other,Controllable Customer & Client Receipts,7003019171,12/04/2023,-2037.6
Buckinghamshire Council,Adults and Health,Ambient Support Limited,1000171,Res care-permanent - other,Controllable Customer & Client Receipts,7003019171,12/04/2023,-148.04
Buckinghamshire Council,Adults and Health,Ambient Support Limited,1000171,Res care-permanent - other,Controllable Customer & Client Receipts,7003019171,12/04/2023,-717.6
Buckinghamshire Council,Adults and Health,Ambient Support Limited,1000171,Res care-permanent - other,Controllable Customer & Client Receipts,7003019171,12/04/2023,-156
Buckinghamshire Council,Adults and Health,Ambient Support Limited,1000171,Res care-permanent - other,Controllable Customer & Client Receipts,7003019171,12/04/2023,-748.04
Buckinghamshire Council,Adults and Health,Ambient Support Limited,1000171,Res care-permanent - other,Controllable Customer & Client Receipts,7003019171,12/04/2023,-139.73
Buckinghamshire Council,Adults and Health,Ambient Support Limited,1000171,Res care-permanent - other,Controllable Customer & Client Receipts,7003019171,12/04/2023,-671.59
Buckinghamshire Council,Adults and Health,Ambient Support Limited,1000171,Res care-permanent - other,Controllable Customer & Client Receipts,7003019171,12/04/2023,-143.16
Buckinghamshire Council,Adults and Health,Ambient Support Limited,1000171,Res care-permanent - other,Controllable Customer & Client Receipts,7003019171,12/04/2023,-687.06
Buckinghamshire Council,Adults and Health,Ambient Support Limited,1000171,Res care-permanent - other,Controllable Customer & Client Receipts,7003019171,12/04/2023,-124.49
Buckinghamshire Council,Adults and Health,Ambient Support Limited,1000171,Res care-permanent - other,Controllable Customer & Client Receipts,7003019171,12/04/2023,-607.29
Buckinghamshire Council,Adults and Health,Ambient Support Limited,1000171,Res care-permanent - other,Controllable Customer & Client Receipts,7003019171,12/04/2023,-193.54
Buckinghamshire Council,Adults and Health,Ambient Support Limited,1000171,Res care-permanent - other,Controllable Customer & Client Receipts,7003019171,12/04/2023,-924.3
Buckinghamshire Council,Adults and Health,Ambient Support Limited,1000171,Res care-permanent - other,Controllable Customer & Client Receipts,7003019171,12/04/2023,-113.72
Buckinghamshire Council,Adults and Health,Ambient Support Limited,1000171,Res care-permanent - other,Controllable Customer & Client Receipts,7003019171,12/04/2023,-536.6
Buckinghamshire Council,Adults and Health,Ambient Support Limited,1000171,Nursing care-permanent -other,Controllable Customer & Client Receipts,7003019171,12/04/2023,-88.65
Buckinghamshire Council,Adults and Health,Ambient Support Limited,1000171,Nursing care-permanent -other,Controllable Customer & Client Receipts,7003019171,12/04/2023,-432.83
Buckinghamshire Council,Adults and Health,Ambient Support Limited,1000171,Nursing care-permanent -other,Controllable Customer & Client Receipts,7003019171,12/04/2023,-153.85
Buckinghamshire Council,Adults and Health,Ambient Support Limited,1000171,Nursing care-permanent -other,Controllable Customer & Client Receipts,7003019171,12/04/2023,-737.55
Buckinghamshire Council,Adults and Health,Ambient Support Limited,1000171,Nursing care-permanent -other,Controllable Customer & Client Receipts,7003019171,12/04/2023,-152.19
Buckinghamshire Council,Adults and Health,Ambient Support Limited,1000171,Nursing care-permanent -other,Controllable Customer & Client Receipts,7003019171,12/04/2023,-739.15
Buckinghamshire Council,Adults and Health,Ambient Support Limited,1000171,Nursing care-permanent -other,Controllable Customer & Client Receipts,7003019171,12/04/2023,-187.91
Buckinghamshire Council,Adults and Health,Ambient Support Limited,1000171,Nursing care-permanent -other,Controllable Customer & Client Receipts,7003019171,12/04/2023,-910.99
Buckinghamshire Council,Adults and Health,Ambient Support Limited,1000171,Nursing care-permanent -other,Controllable Customer & Client Receipts,7003019171,12/04/2023,-164.11
Buckinghamshire Council,Adults and Health,Ambient Support Limited,1000171,Nursing care-permanent -other,Controllable Customer & Client Receipts,7003019171,12/04/2023,-795.69
Buckinghamshire Council,Adults and Health,Ambient Support Limited,1000171,Nursing care-permanent -other,Controllable Customer & Client Receipts,7003019171,12/04/2023,-218.32
Buckinghamshire Council,Adults and Health,Ambient Support Limited,1000171,Nursing care-permanent -other,Controllable Customer & Client Receipts,7003019171,12/04/2023,-1054.4
Buckinghamshire Council,Adults and Health,Ambient Support Limited,1000171,Nursing care-permanent -other,Controllable Customer & Client Receipts,7003019171,12/04/2023,-275.29
Buckinghamshire Council,Adults and Health,Ambient Support Limited,1000171,Nursing care-permanent -other,Controllable Customer & Client Receipts,7003019171,12/04/2023,-1266.31
Buckinghamshire Council,Adults and Health,Ambient Support Limited,1000171,Nursing care-permanent -other,Controllable Customer & Client Receipts,7003019171,12/04/2023,-105.19
Buckinghamshire Council,Adults and Health,Ambient Support Limited,1000171,Nursing care-permanent -other,Controllable Customer & Client Receipts,7003019171,12/04/2023,-541.32
Buckinghamshire Council,Adults and Health,Ambient Support Limited,1000171,Nursing care-permanent -other,Controllable Customer & Client Receipts,7003019171,12/04/2023,-153.37
Buckinghamshire Council,Adults and Health,Ambient Support Limited,1000171,Nursing care-permanent -other,Controllable Customer & Client Receipts,7003019171,12/04/2023,-748.85
Buckinghamshire Council,Adults and Health,Ambient Support Limited,1000171,Nursing care-permanent -other,Controllable Customer & Client Receipts,7003019171,12/04/2023,-212.29
Buckinghamshire Council,Adults and Health,Ambient Support Limited,1000171,Nursing care-permanent -other,Controllable Customer & Client Receipts,7003019171,12/04/2023,-1030.23
Buckinghamshire Council,Adults and Health,Ambient Support Limited,1000171,Nursing care-permanent -other,Controllable Customer & Client Receipts,7003019171,12/04/2023,-187.81
Buckinghamshire Council,Adults and Health,Ambient Support Limited,1000171,Nursing care-permanent -other,Controllable Customer & Client Receipts,7003019171,12/04/2023,-885.49
Buckinghamshire Council,Adults and Health,Ambient Support Limited,1000171,Nursing care-permanent -other,Controllable Customer & Client Receipts,7003019171,12/04/2023,-112.33
Buckinghamshire Council,Adults and Health,Ambient Support Limited,1000171,Nursing care-permanent -other,Controllable Customer & Client Receipts,7003019171,12/04/2023,-533.21
Buckinghamshire Council,Adults and Health,Ambient Support Limited,1000171,Nursing care-permanent -other,Controllable Customer & Client Receipts,7003019171,12/04/2023,-156.61
Buckinghamshire Council,Adults and Health,Ambient Support Limited,1000171,Nursing care-permanent -other,Controllable Customer & Client Receipts,7003019171,12/04/2023,-764.65
Buckinghamshire Council,Adults and Health,Ambient Support Limited,1000171,Res care-permanent - other,Controllable Customer & Client Receipts,7003019171,12/04/2023,-84.56
Buckinghamshire Council,Adults and Health,Ambient Support Limited,1000171,Res care-permanent - other,Controllable Customer & Client Receipts,7003019171,12/04/2023,-411.86
Buckinghamshire Council,Adults and Health,Ambient Support Limited,1000171,Nursing care-permanent -other,Controllable Customer & Client Receipts,7003019171,12/04/2023,-145.23
Buckinghamshire Council,Adults and Health,Ambient Support Limited,1000171,Nursing care-permanent -other,Controllable Customer & Client Receipts,7003019171,12/04/2023,-688.31
Buckinghamshire Council,Adults and Health,Ambient Support Limited,1000171,Res care-permanent - other,Controllable Customer & Client Receipts,7003019171,12/04/2023,-382.4
Buckinghamshire Council,Adults and Health,Ambient Support Limited,1000171,Res care-permanent - other,Controllable Customer & Client Receipts,7003019171,12/04/2023,245.83
Buckinghamshire Council,Adults and Health,Ambient Support Limited,1000171,Res care-permanent - other,Controllable Customer & Client Receipts,7003019171,12/04/2023,382.4
Buckinghamshire Council,Adults and Health,Ambient Support Limited,1000171,Nursing care-permanent -other,Controllable Customer & Client Receipts,7003019171,12/04/2023,57.11
Buckinghamshire Council,Adults and Health,Ambient Support Limited,1000171,Nursing care-permanent -other,Controllable Customer & Client Receipts,7003019171,12/04/2023,320.4
Buckinghamshire Council,Adults and Health,Ambient Support Limited,1000171,Res care-permanent - other,Controllable Customer & Client Receipts,7003019171,12/04/2023,-105.99
Buckinghamshire Council,Adults and Health,Ambient Support Limited,1000171,Res care-permanent - other,Controllable Customer & Client Receipts,7003019171,12/04/2023,-105.99
Buckinghamshire Council,Adults and Health,Ambient Support Limited,1000171,Res care-permanent - other,Controllable Customer & Client Receipts,7003019171,12/04/2023,-487.57
Buckinghamshire Council,Adults and Health,Ambient Support Limited,1000171,Nursing care-permanent -other,Controllable Customer & Client Receipts,7003019171,12/04/2023,-22.37
Buckinghamshire Council,Adults and Health,Ambient Support Limited,1000171,Nursing care-permanent -other,Controllable Customer & Client Receipts,7003019171,12/04/2023,-222.81
Buckinghamshire Council,Adults and Health,Ambient Support Limited,1000171,Nursing care-permanent -other,Controllable Customer & Client Receipts,7003019171,12/04/2023,762.02
Buckinghamshire Council,Adults and Health,Ambient Support Limited,1000171,Nursing care-permanent -other,Controllable Customer & Client Receipts,7003019171,12/04/2023,3048.08
Buckinghamshire Council,Adults and Health,Ambient Support Limited,1000171,Nursing care-permanent -other,Controllable Customer & Client Receipts,7003019171,12/04/2023,3048.08
Buckinghamshire Council,Adults and Health,Ambient Support Limited,1000171,Res-Perm EMI-Other - Exp,Third Party Payments,7003019172,12/04/2023,610.2
Buckinghamshire Council,Adults and Health,Ambient Support Limited,1000171,Res-Perm EMI-Other - Exp,Third Party Payments,7003019172,12/04/2023,610.2
Buckinghamshire Council,Adults and Health,Ambient Support Limited,1000171,Res care-permanent - other,Third Party Payments,7003019172,12/04/2023,542.5
Buckinghamshire Council,Adults and Health,Ambient Support Limited,1000171,Res care-permanent - other,Third Party Payments,7003019172,12/04/2023,542.5
Buckinghamshire Council,Adults and Health,Ambient Support Limited,1000171,Res care-permanent - other,Third Party Payments,7003019172,12/04/2023,542.5
Buckinghamshire Council,Adults and Health,Ambient Support Limited,1000171,Res care-permanent - other,Third Party Payments,7003019172,12/04/2023,542.5
Buckinghamshire Council,Adults and Health,Ambient Support Limited,1000171,Res care-permanent - other,Third Party Payments,7003019172,12/04/2023,542.5
Buckinghamshire Council,Adults and Health,Ambient Support Limited,1000171,Res-Perm EMI-Other - Exp,Third Party Payments,7003019172,12/04/2023,610.2
Buckinghamshire Council,Adults and Health,Ambient Support Limited,1000171,Res care-permanent - other,Third Party Payments,7003019172,12/04/2023,542.5
Buckinghamshire Council,Adults and Health,Ambient Support Limited,1000171,Res-Perm EMI-Other - Exp,Third Party Payments,7003019172,12/04/2023,610.2
Buckinghamshire Council,Adults and Health,Ambient Support Limited,1000171,Res-Perm EMI-Other - Exp,Third Party Payments,7003019172,12/04/2023,610.2
Buckinghamshire Council,Adults and Health,Ambient Support Limited,1000171,Res care-permanent - other,Third Party Payments,7003019172,12/04/2023,34.29
Buckinghamshire Council,Adults and Health,Ambient Support Limited,1000171,Res-Perm EMI-Other - Exp,Third Party Payments,7003019172,12/04/2023,862.99
Buckinghamshire Council,Adults and Health,Ambient Support Limited,1000171,Res-Perm EMI-Other - Exp,Third Party Payments,7003019172,12/04/2023,3060.84
Buckinghamshire Council,Adults and Health,Ambient Support Limited,1000171,Res-Perm EMI-Other - Exp,Third Party Payments,7003019172,12/04/2023,3060.84
Buckinghamshire Council,Adults and Health,Ambient Support Limited,1000171,Res-Perm EMI-Other - Exp,Third Party Payments,7003019172,12/04/2023,3060.84
Buckinghamshire Council,Adults and Health,Ambient Support Limited,1000171,Res-Perm EMI-Other - Exp,Third Party Payments,7003019172,12/04/2023,3060.84
Buckinghamshire Council,Adults and Health,Ambient Support Limited,1000171,Res-Perm EMI-Other - Exp,Third Party Payments,7003019172,12/04/2023,3060.84
Buckinghamshire Council,Adults and Health,Ambient Support Limited,1000171,Res-Perm EMI-Other - Exp,Third Party Payments,7003019172,12/04/2023,717.14
Buckinghamshire Council,Adults and Health,Ambient Support Limited,1000171,Res-Perm EMI-Other - Exp,Third Party Payments,7003019172,12/04/2023,5020
Buckinghamshire Council,Adults and Health,Ambient Support Limited,1000171,Res-Perm EMI-Other - Exp,Third Party Payments,7003019172,12/04/2023,896.43
Buckinghamshire Council,Adults and Health,Ambient Support Limited,1000171,Res-Perm EMI-Other - Exp,Third Party Payments,7003019172,12/04/2023,4247.64
Buckinghamshire Council,Adults and Health,Ambient Support Limited,1000171,Res-Perm EMI-Other - Exp,Third Party Payments,7003019172,12/04/2023,4412.22
Buckinghamshire Council,Adults and Health,Ambient Support Limited,1000171,Res care-permanent - other,Third Party Payments,7003019172,12/04/2023,2495.5
Buckinghamshire Council,Adults and Health,Ambient Support Limited,1000171,Res care-permanent - other,Third Party Payments,7003019172,12/04/2023,2495.5
Buckinghamshire Council,Adults and Health,Ambient Support Limited,1000171,Res care-permanent - other,Third Party Payments,7003019172,12/04/2023,2495.5
Buckinghamshire Council,Adults and Health,Ambient Support Limited,1000171,Res care-permanent - other,Third Party Payments,7003019172,12/04/2023,2495.5
Buckinghamshire Council,Adults and Health,Ambient Support Limited,1000171,Res care-permanent - other,Third Party Payments,7003019172,12/04/2023,2495.5
Buckinghamshire Council,Adults and Health,Ambient Support Limited,1000171,Res care-permanent - other,Third Party Payments,7003019172,12/04/2023,2495.5
Buckinghamshire Council,Adults and Health,Ambient Support Limited,1000171,Res care-permanent - other,Third Party Payments,7003019172,12/04/2023,157.71
Buckinghamshire Council,Adults and Health,Ambient Support Limited,1000171,Res care-permanent - other,Controllable Customer & Client Receipts,7003019172,12/04/2023,-168.59
Buckinghamshire Council,Adults and Health,Ambient Support Limited,1000171,Res care-permanent - other,Controllable Customer & Client Receipts,7003019172,12/04/2023,-814.23
Buckinghamshire Council,Adults and Health,Ambient Support Limited,1000171,Res care-permanent - other,Controllable Customer & Client Receipts,7003019172,12/04/2023,-3.39
Buckinghamshire Council,Adults and Health,Ambient Support Limited,1000171,Res care-permanent - other,Controllable Customer & Client Receipts,7003019172,12/04/2023,-4.75
Buckinghamshire Council,Adults and Health,Ambient Support Limited,1000171,Res care-permanent - other,Controllable Customer & Client Receipts,7003019172,12/04/2023,-334.12
Buckinghamshire Council,Adults and Health,Ambient Support Limited,1000171,Res care-permanent - other,Controllable Customer & Client Receipts,7003019172,12/04/2023,-1588.96
Buckinghamshire Council,Adults and Health,Ambient Support Limited,1000171,Res care-permanent - other,Controllable Customer & Client Receipts,7003019172,12/04/2023,-111.9
Buckinghamshire Council,Adults and Health,Ambient Support Limited,1000171,Res care-permanent - other,Controllable Customer & Client Receipts,7003019172,12/04/2023,-513.84
Buckinghamshire Council,Adults and Health,Ambient Support Limited,1000171,Res care-permanent - other,Controllable Customer & Client Receipts,7003019172,12/04/2023,-192.59
Buckinghamshire Council,Adults and Health,Ambient Support Limited,1000171,Res care-permanent - other,Controllable Customer & Client Receipts,7003019172,12/04/2023,-926.21
Buckinghamshire Council,Adults and Health,Ambient Support Limited,1000171,Res care-permanent - other,Controllable Customer & Client Receipts,7003019172,12/04/2023,-112.11
Buckinghamshire Council,Adults and Health,Ambient Support Limited,1000171,Res care-permanent - other,Controllable Customer & Client Receipts,7003019172,12/04/2023,-510.49
Buckinghamshire Council,Adults and Health,Ambient Support Limited,1000171,Res care-permanent - other,Controllable Customer & Client Receipts,7003019172,12/04/2023,-12.61
Buckinghamshire Council,Adults and Health,Ambient Support Limited,1000171,Res care-permanent - other,Controllable Customer & Client Receipts,7003019172,12/04/2023,-199.46
Buckinghamshire Council,Adults and Health,Ambient Support Limited,1000171,Res care-permanent - other,Controllable Customer & Client Receipts,7003019172,12/04/2023,-60.35
Buckinghamshire Council,Adults and Health,Ambient Support Limited,1000171,Res care-permanent - other,Controllable Customer & Client Receipts,7003019172,12/04/2023,-955.06
Buckinghamshire Council,Adults and Health,Ambient Support Limited,1000171,Res care-permanent - other,Controllable Customer & Client Receipts,7003019172,12/04/2023,-170.17
Buckinghamshire Council,Adults and Health,Ambient Support Limited,1000171,Res care-permanent - other,Controllable Customer & Client Receipts,7003019172,12/04/2023,-815.37
Buckinghamshire Council,Adults and Health,Ambient Support Limited,1000171,Res care-permanent - other,Controllable Customer & Client Receipts,7003019172,12/04/2023,-199.19
Buckinghamshire Council,Adults and Health,Ambient Support Limited,1000171,Res care-permanent - other,Controllable Customer & Client Receipts,7003019172,12/04/2023,-916.29
